Workbook

Sheet Parâmetros
A7: Município de : NOVA PÁDUA
A8: LEI DE DIRETRIZES ORÇAMENTÁRIAS PARA 2025
A9: TABELA 01 - Parâmentos Utilizados nas Estimativas das Receitas e Despesas
A10: Indicador | B10: 2022 | C10: =B10+1 -> 2023 | D10: =C10+1 -> 2024 | E10: =D10+1 -> 2025 | F10: =E10+1 -> 2026 | G10: =F10+1 -> 2027
A11: INFLAÇÃO MÉDIA ANUAL (I P C A) | B11: 5.78% | C11: 5.80% | D11: 4.60% | E11: 4.00% | F11: 4.00% | G11: 4.00%
A12: VARIAÇÃODO PIB | B12: 2.90% | C12: 1.20% | D12: 2.50% | E12: 2.00% | F12: 2.00% | G12: 2.00%
A13: CRESCIMENTO VEGETATIVO DA FOLHA SALARIAL | B13: =IF(Projeções!D116=0,"0",((Projeções!E116/Projeções!D116)-1)-B11-B18) -> -12.23% | C13: =IF(Projeções!E116=0,"0",((Projeções!F116/Projeções!E116)-1)-C11-C18) -> 33.21% | D13: =IF(Projeções!F116=0,"0",((Projeções!G116/Projeções!F116)-1)-D11-D18) -> 7.09% | E13: =(B13+C13+D13)/3 -> 9.36% | F13: 16.55% | G13: 11.00%
A14: CRESCIMENTO AUTÔNOMO DE OUTROS CUSTEIOS | B14: =IF(Projeções!D126=0,"0",((Projeções!E126/Projeções!D126)-1)-B11-B12) -> 17.63% | C14: =IF(Projeções!E126=0,"0",((Projeções!F126/Projeções!E126)-1)-C11-C12) -> 28.03% | D14: =IF(Projeções!F126=0,"0",((Projeções!G126/Projeções!F126)-1)-D11-D12) -> 0.89% | E14: 15.52% | F14: 14.81% | G14: 10.41%
A15: ESFORÇO NA ARRECADAÇÃO TRIBUTÁRIA | B15: =IF(Projeções!D9=0,"0",((Projeções!E9/Projeções!D9)-1)-B11-B12) -> -7.03% | C15: =IF(Projeções!E9=0,"0",((Projeções!F9/Projeções!E9)-1)-C11-C12) -> 54.16% | D15: =IF(Projeções!F9=0,"0",((Projeções!G9/Projeções!F9)-1)-D11-D12) -> 1.64% | E15: 16.26% | F15: 24.02% | G15: 13.97%
A16: CRESC.REAL DAS TRANSFER CORR DA UNIÃO | B16: =IF(Projeções!D38=0,"0",((Projeções!E38/Projeções!D38)-1)-B11-B12) -> 11.77% | C16: =IF(Projeções!E38=0,"0",((Projeções!F38/Projeções!E38)-1)-C11-C12) -> 26.96% | D16: =IF(Projeções!F38=0,"0",((Projeções!G38/Projeções!F38)-1)-D11-D12) -> 4.32% | E16: 14.35% | F16: 15.21% | G16: 11.29%
A17: CRESC.REAL DAS TRANSFER CORR DO ESTADO | B17: =IF(Projeções!D50=0,"0",((Projeções!E50/Projeções!D50)-1)-B11-B12) -> 13.26% | C17: =IF(Projeções!E50=0,"0",((Projeções!F50/Projeções!E50)-1)-C11-C12) -> 4.68% | D17: =IF(Projeções!F50=0,"0",((Projeções!G50/Projeções!F50)-1)-D11-D12) -> -13.86% | E17: 1.36% | F17: -2.61% | G17: -5.03%
A18: PERCENTUAL DE AUMENTO SALARIAL (acima do IPCA)- EXECUTVO | B18: 0.00% | C18: 0.00% | D18: 0.00% | E18: 0.00% | F18: 0.00% | G18: 0.00%
A19: PERCENTUAL DE AUMENTO SALARIAL -(acima do IPCA) LEGISLATIVO | B19: 0.00% | C19: 0.00% | D19: 0.00% | E19: 0.00% | F19: 0.00% | G19: 0.00%
A20: CRESCIMENTO DOS INVESTIMENTOS | B20: =IF(Projeções!D132=0,"0",((Projeções!E132/Projeções!D132)-1)-B11-B12) -> 150.82% | C20: =IF(Projeções!E132=0,"0",((Projeções!F132/Projeções!E132)-1)-C11-C12) -> -0.31% | D20: =IF(Projeções!F132=0,"0",((Projeções!G132/Projeções!F132)-1)-D11-D12) -> -13.26% | E20: 45.75% | F20: 10.73% | G20: 14.41%
A21: Taxa de Juros Selic (Média do Ano) | B21: 9.15% | C21: 13.65% | D21: 12.50% | E21: 10.00% | F21: 9.00% | G21: 8.75%
A22: Taxa de Câmbio (Média do Ano) | B22: 5.39 | C22: 5.16 | D22: 5.15 | E22: 5.20 | F22: 5.20 | G22: 5.27

Sheet Projeções
A1: =Parâmetros!A7 -> Município de : NOVA PÁDUA
A2: =Parâmetros!A8 -> LEI DE DIRETRIZES ORÇAMENTÁRIAS PARA 2025
A3: Tabela 02 - Memória de Cálculo das Estimativas das Receitas - EXCETO RPPS
J5: Valores em R$ 1,00
A6: Código até 2022 | B6: Código a partir de 2023 | C6: CONTAS | D6: ARRECADADA | E6: ARRECADADA | F6: ARRECADADA | G6: REESTIMADO | H6: PROJETADO | I6: PROJETADO | J6: PROJETADO
C7: CONSOLIDADAS ANUAIS | D7: =Parâmetros!B10-1 -> 2021 | E7: =D7+1 -> 2022 | F7: 2023 | G7: 2024 | H7: 2025 | I7: 2026 | J7: 2027
A8: 1.0.0.0.00.0.0.00.00.00 | B8: 1.0.0.0.00.0.0 | C8: Receitas Correntes | D8: =D9+D15+D22+D32+D33+D34+D37+D65 -> 18,575,917.33 | E8: 22,567,191.65 | F8: 29,025,621.02 | G8: 31,359,828.67 | H8: 32,321,166.70 | I8: 37,164,916.99 | J8: 41,532,442.25
A9: 1.1.0.0.00.0.0.00.00.00 | B9: 1.1.0.0.00.0.0 | C9: Impostos, Taxas e Contribuições de Melhoria | D9: =D10+D11+D12+D13+D14 -> 1,287,075.30 | E9: 1,308,349.51 | F9: 2,108,529.75 | G9: 2,292,879.78 | H9: 2,530,457.08 | I9: 3,263,813.20 | J9: 3,868,693.42
A10: 1.1.1.3.03.1.1.01.00.00 | B10: 1.1.1.3.01.0.0 | C10: IRRF s/Rend.Trabalho - Principal - Ativos/Inativos do Poder Executivo/Indiretas | D10: 298,424.66 | E10: =295146.7+6628.88-318.17 -> 301,457.41 | F10: 771,309.36 | G10: =((431594.12-210.54)/6)*13 -> 934,664.42 | H10: =G10*1.05 -> 981,397.64 | I10: =H10*(1+Parâmetros!F11)*(1+Parâmetros!F15) -> 1,265,818.18 | J10: =I10*(1+Parâmetros!G11)*(1+Parâmetros!G15) -> 1,500,411.39
A11: 1.1.1.3.03.1.1.02.00.00 | B11: 1.1.1.3.01.0.0 | C11: IRRF s/Rend.Trabalho - Principal - Ativos/Inativos do Poder Legislativo | D11: 7,011.06 | E11: =318.17 -> 318.17 | F11: 0 | G11: =(210.54/6)*13 -> 456.17 | H11: =(((E11*(1+Parâmetros!B11)*(1+Parâmetros!C11)*(1+Parâmetros!D11))+(F11*(1+Parâmetros!C11)*(1+Parâmetros!D11)+(G11*(1+Parâmetros!D11))))/3)*(1+Parâmetros!E11)*(1+Parâmetros!E15) -> 342.42 | I11: =H11*(1+Parâmetros!F11)*(1+Parâmetros!F15) -> 441.66 | J11: =I11*(1+Parâmetros!G11)*(1+Parâmetros!G15) -> 523.51
A12: 1.1.1.0.00.0.0.00.00.00 | B12: 1.1.1.0.00.0.0 | C12: Demais Impostos | D12: =1009457.44-305435.72 -> 704,021.72 | E12: =1099588.01-301775.58 -> 797,812.43 | F12: =1896072.05-F10 -> 1,124,762.69 | G12: =F12*1.05 -> 1,181,000.82 | H12: =(((E12*(1+Parâmetros!B11)*(1+Parâmetros!C11)*(1+Parâmetros!D11))+(F12*(1+Parâmetros!C11)*(1+Parâmetros!D11)+(G12*(1+Parâmetros!D11))))/3)*(1+Parâmetros!E11)*(1+Parâmetros!E15)-95000 -> 1,280,947.24 | I12: =H12*(1+Parâmetros!F11)*(1+Parâmetros!F15) -> 1,652,180.76 | J12: =I12*(1+Parâmetros!G11)*(1+Parâmetros!G15) -> 1,958,378.27
A13: 1.1.2.0.00.0.0.00.00.00 | B13: 1.1.2.0.00.0.0 | C13: Taxas | D13: 198,459.17 | E13: 116,199.80 | F13: 133,614.14 | G13: =(76798.48/6)*12 -> 153,596.96 | H13: =(((E13*(1+Parâmetros!B11)*(1+Parâmetros!C11)*(1+Parâmetros!D11))+(F13*(1+Parâmetros!C11)*(1+Parâmetros!D11)+(G13*(1+Parâmetros!D11))))/3)*(1+Parâmetros!E11)*(1+Parâmetros!E15) -> 179,169.27 | I13: =H13*(1+Parâmetros!F11)*(1+Parâmetros!F15) -> 231,094.63 | J13: =I13*(1+Parâmetros!G11)*(1+Parâmetros!G15) -> 273,923.24
A14: 1.1.3.0.00.0.0.00.00.00 | B14: 1.1.3.1.00.0.0 | C14: Contribuição de Melhoria | D14: 79,158.69 | E14: 92,561.70 | F14: 78,843.56 | G14: =(11580.7/6)*12 -> 23,161.40 | H14: =(((E14*(1+Parâmetros!B11)*(1+Parâmetros!C11)*(1+Parâmetros!D11))+(F14*(1+Parâmetros!C11)*(1+Parâmetros!D11)+(G14*(1+Parâmetros!D11))))/3)*(1+Parâmetros!E11)*(1+Parâmetros!E15) -> 88,600.50 | I14: =H14*(1+Parâmetros!F11)*(1+Parâmetros!F15) -> 114,277.96 | J14: =I14*(1+Parâmetros!G11)*(1+Parâmetros!G15) -> 135,457.02
A15: 1.2.0.0.00.0.0.00.00.00 | B15: 1.2.0.0.00.0.0 | C15: Contribuições | D15: =D16+D20+D21 -> 0 | E15: 0 | F15: 0 | G15: 0 | H15: 0 | I15: 0 | J15: 0
A16: 1.2.1.0.00.0.0.00.00.00 | B16: 1.2.1.0.00.0.0 | C16: Contribuições Sociais | D16: =D17+D18+D19 -> 0 | E16: 0 | F16: 0 | G16: 0 | H16: 0 | I16: 0 | J16: 0
A17: 1.2.1.0.06.0.0.00.00.00 | B17: 1.2.1.6.03.0.0 | C17: Contribuição para os Fundos de Assistência Médica | H17: =(((E17*(1+Parâmetros!B11)*(1+Parâmetros!C11)*(1+Parâmetros!D11))+(F17*(1+Parâmetros!C11)*(1+Parâmetros!D11)+(G17*(1+Parâmetros!D11))))/3)*(1+Parâmetros!E11) -> 0 | I17: =H17*(1+Parâmetros!F11) -> 0 | J17: =I17*(1+Parâmetros!G11) -> 0
A18: 1.2.1.0.99.0.0.00.00.00 | B18: 1.2.1.9.00.0.0 | C18: Outras Contribuições Sociais | H18: =(((E18*(1+Parâmetros!B11)*(1+Parâmetros!C11)*(1+Parâmetros!D11))+(F18*(1+Parâmetros!C11)*(1+Parâmetros!D11)+(G18*(1+Parâmetros!D11))))/3)*(1+Parâmetros!E11) -> 0 | I18: =H18*(1+Parâmetros!F11) -> 0 | J18: =I18*(1+Parâmetros!G11) -> 0
A19: 1.2.1.8.00.0.0.00.00.00 | B19: 1.2.1.9.99.0.0 | C19: Contribuições Sociais específicas de Estados, DF, Municípios | H19: =(((E19*(1+Parâmetros!B11)*(1+Parâmetros!C11)*(1+Parâmetros!D11))+(F19*(1+Parâmetros!C11)*(1+Parâmetros!D11)+(G19*(1+Parâmetros!D11))))/3)*(1+Parâmetros!E11) -> 0 | I19: =H19*(1+Parâmetros!F11) -> 0 | J19: =I19*(1+Parâmetros!G11) -> 0
A20: 1.2.2.0.00.0.0.00.00.00 | B20: 1.2.2.1.00.0.0 | C20: Contribuições Econômicas | H20: =(((E20*(1+Parâmetros!B11)*(1+Parâmetros!C11)*(1+Parâmetros!D11))+(F20*(1+Parâmetros!C11)*(1+Parâmetros!D11)+(G20*(1+Parâmetros!D11))))/3)*(1+Parâmetros!E11) -> 0 | I20: =H20*(1+Parâmetros!F11) -> 0 | J20: =I20*(1+Parâmetros!G11) -> 0
A21: 1.2.4.0.00.0.0.00.00.00 | B21: 1.2.4.1.50.0.0 | C21: Contribuição para o Custeio do Serviço de Iluminação Pública | H21: =(((E21*(1+Parâmetros!B11)*(1+Parâmetros!C11)*(1+Parâmetros!D11))+(F21*(1+Parâmetros!C11)*(1+Parâmetros!D11)+(G21*(1+Parâmetros!D11))))/3)*(1+Parâmetros!E11)*(1+Parâmetros!E12) -> 0 | I21: =H21*(1+Parâmetros!F11)*(1+Parâmetros!F12) -> 0 | J21: =I21*(1+Parâmetros!G11)*(1+Parâmetros!G12) -> 0
A22: 1.3.0.0.00.0.0.00.00.00 | B22: 1.3.0.0.00.0.0 | C22: Receita Patrimonial | D22: =D23+D24+D29+D30+D31 -> 33,751.23 | E22: 101,221.93 | F22: 551,315.14 | G22: 664,343.60 | H22: 502,630.18 | I22: 532,434.54 | J22: 564,020.79
A23: 1.3.1.0.00.0.0.00.00.00 | B23: 1.3.1.1.00.0.0 | C23: Exploração do Patrimônio Imobiliário do Estado | D23: 21,341.69 | E23: 19,945.16 | F23: 32,638.75 | G23: =(21660.6/6)*12 -> 43,321.20 | H23: =(((E23*(1+Parâmetros!B11)*(1+Parâmetros!C11)*(1+Parâmetros!D11))+(F23*(1+Parâmetros!C11)*(1+Parâmetros!D11)+(G23*(1+Parâmetros!D11))))/3)*(1+Parâmetros!E11) -> 36,324.67 | I23: =H23*(1+Parâmetros!F11) -> 37,777.66 | J23: =I23*(1+Parâmetros!G11) -> 39,288.76
A24: 1.3.2.0.00.0.0.00.00.00 | B24: 1.3.2.0.00.0.0 | C24: Valores Mobiliários | D24: =D25+D26+D27+D28 -> 12,409.54 | E24: 81,276.77 | F24: 301,876.39 | G24: 621,022.40 | H24: 381,467.81 | I24: 404,661.05 | J24: 429,264.44
A25: 1.3.2.1.00.1.1.01.00.00 | B25: 1.3.2.1.01.0.0 | C25: Remuneração de Depósitos de Recursos Vinculados - Principal | D25: =972031.67-959622.13-D26 -> 4,553.11 | E25: 13,493.52 | F25: =3.88+301872.51-F26 -> 104,768.79 | G25: =(185190.68/6)*12 -> 370,381.36 | H25: =(((E25*(1+Parâmetros!B11)*(1+Parâmetros!C11)*(1+Parâmetros!D11))+(F25*(1+Parâmetros!C11)*(1+Parâmetros!D11)+(G25*(1+Parâmetros!D11))))/3)*(1+Parâmetros!E11)*(1+Parâmetros!E12) -> 183,574.67 | I25: =H25*(1+Parâmetros!F11)*(1+Parâmetros!F12) -> 194,736.01 | J25: =I25*(1+Parâmetros!G11)*(1+Parâmetros!G12) -> 206,575.96
A26: 1.3.2.1.00.1.1.02.00.00 | B26: 1.3.2.1.01.0.0 | C26: Remuneração de Depósitos de Recursos Não Vinculados - Principal | D26: =8419.7-563.27 -> 7,856.43 | E26: 67,783.25 | F26: 197,107.60 | G26: =(125320.52/6)*12 -> 250,641.04 | H26: =(((E26*(1+Parâmetros!B11)*(1+Parâmetros!C11)*(1+Parâmetros!D11))+(F26*(1+Parâmetros!C11)*(1+Parâmetros!D11)+(G26*(1+Parâmetros!D11))))/3)*(1+Parâmetros!E11)*(1+Parâmetros!E12) -> 197,893.14 | I26: =H26*(1+Parâmetros!F11)*(1+Parâmetros!F12) -> 209,925.04 | J26: =I26*(1+Parâmetros!G11)*(1+Parâmetros!G12) -> 222,688.48
A27: 1.3.2.1.00.5.0.00.00.00 | B27: 1.3.2.1.05.0.0 | C27: Juros de Títulos de Renda | H27: =(((E27*(1+Parâmetros!B11)*(1+Parâmetros!C11)*(1+Parâmetros!D11))+(F27*(1+Parâmetros!C11)*(1+Parâmetros!D11)+(G27*(1+Parâmetros!D11))))/3)*(1+Parâmetros!E11)*(1+Parâmetros!E12) -> 0 | I27: =H27*(1+Parâmetros!F11)*(1+Parâmetros!F12) -> 0 | J27: =I27*(1+Parâmetros!G11)*(1+Parâmetros!G12) -> 0
A28: 1.3.2.9.00.0.0.00.00.00 | B28: 1.3.2.9.99.0.0 | C28: Outros Valores Mobiliários | H28: =(((E28*(1+Parâmetros!B11)*(1+Parâmetros!C11)*(1+Parâmetros!D11))+(F28*(1+Parâmetros!C11)*(1+Parâmetros!D11)+(G28*(1+Parâmetros!D11))))/3)*(1+Parâmetros!E11)*(1+Parâmetros!E12) -> 0 | I28: =H28*(1+Parâmetros!F11)*(1+Parâmetros!F12) -> 0 | J28: =I28*(1+Parâmetros!G11)*(1+Parâmetros!G12) -> 0
A29: 1.3.3.0.00.0.0.00.00.00 | B29: 1.3.3.0.00.0.0 | C29: Delegação de Serviços Públicos Mediante Concessão, Permissão, Autorização ou Licença | H29: =(((E29*(1+Parâmetros!B11)*(1+Parâmetros!C11)*(1+Parâmetros!D11))+(F29*(1+Parâmetros!C11)*(1+Parâmetros!D11)+(G29*(1+Parâmetros!D11))))/3)*(1+Parâmetros!E11)*(1+Parâmetros!E12) -> 0 | I29: =H29*(1+Parâmetros!F11)*(1+Parâmetros!F12) -> 0 | J29: =I29*(1+Parâmetros!G11)*(1+Parâmetros!G12) -> 0
A30: 1.3.6.0.00.0.0.00.00.00 | B30: 1.3.6.1.00.0.0 | C30: Cessão de Direitos | F30: 216,800.00 | H30: =(((E30*(1+Parâmetros!B11)*(1+Parâmetros!C11)*(1+Parâmetros!D11))+(F30*(1+Parâmetros!C11)*(1+Parâmetros!D11)+(G30*(1+Parâmetros!D11))))/3)*(1+Parâmetros!E11)*(1+Parâmetros!E12) -> 84,837.70 | I30: =H30*(1+Parâmetros!F11)*(1+Parâmetros!F12) -> 89,995.83 | J30: =I30*(1+Parâmetros!G11)*(1+Parâmetros!G12) -> 95,467.58
A31: 1.3.9.0.00.0.0.00.00.00 | B31: 1.3.9.0.00.0.0 | C31: Demais Receitas Patrimoniais | H31: =(((E31*(1+Parâmetros!B11)*(1+Parâmetros!C11)*(1+Parâmetros!D11))+(F31*(1+Parâmetros!C11)*(1+Parâmetros!D11)+(G31*(1+Parâmetros!D11))))/3)*(1+Parâmetros!E11)*(1+Parâmetros!E12) -> 0 | I31: =H31*(1+Parâmetros!F11)*(1+Parâmetros!F12) -> 0 | J31: =I31*(1+Parâmetros!G11)*(1+Parâmetros!G12) -> 0
A32: 1.4.0.0.00.0.0.00.00.00 | B32: 1.4.1.1.01.0.0 | C32: Receita Agropecuária | H32: =(((E32*(1+Parâmetros!B11)*(1+Parâmetros!C11)*(1+Parâmetros!D11))+(F32*(1+Parâmetros!C11)*(1+Parâmetros!D11)+(G32*(1+Parâmetros!D11))))/3)*(1+Parâmetros!E11)*(1+Parâmetros!E12) -> 0 | I32: =H32*(1+Parâmetros!F11)*(1+Parâmetros!F12) -> 0 | J32: =I32*(1+Parâmetros!G11)*(1+Parâmetros!G12) -> 0
A33: 1.5.0.0.00.0.0.00.00.00 | B33: 1.5.1.1.01.0.0 | C33: Receita Industrial | H33: =(((E33*(1+Parâmetros!B11)*(1+Parâmetros!C11)*(1+Parâmetros!D11))+(F33*(1+Parâmetros!C11)*(1+Parâmetros!D11)+(G33*(1+Parâmetros!D11))))/3)*(1+Parâmetros!E11)*(1+Parâmetros!E12) -> 0 | I33: =H33*(1+Parâmetros!F11)*(1+Parâmetros!F12) -> 0 | J33: =I33*(1+Parâmetros!G11)*(1+Parâmetros!G12) -> 0
A34: 1.6.0.0.00.0.0.00.00 | B34: 1.6.0.0.00.0.0 | C34: Receita de Serviços | D34: =D35+D36 -> 578,014.13 | E34: 756,062.97 | F34: 802,035.32 | G34: 974,198.42 | H34: 987,134.85 | I34: 1,047,152.64 | J34: 1,110,819.53
A35: 1.6.4.0.01.1.0.00.00 + 1.6.4.0.03.1.0.00.00 | B35: 1.6.4.1.01.00 +1.6.4.1.03.00 | C35: Retorno de Operações - Juros e Encargos Financeiros / Rem. s/Repasse para Programas de Desenv.Econômico | H35: =(((E35*(1+Parâmetros!B11)*(1+Parâmetros!C11)*(1+Parâmetros!D11))+(F35*(1+Parâmetros!C11)*(1+Parâmetros!D11)+(G35*(1+Parâmetros!D11))))/3)*(1+Parâmetros!E11) -> 0 | I35: =H35*(1+Parâmetros!F11) -> 0 | J35: =I35*(1+Parâmetros!G11) -> 0
A36: 1.6.0.0.00.0.0.00.00 | B36: 1.6.9.9.99.0.0 | C36: Demais Serviços | D36: 578,014.13 | E36: 756,062.97 | F36: 802,035.32 | G36: =(487099.21/6)*12 -> 974,198.42 | H36: =(((E36*(1+Parâmetros!B11)*(1+Parâmetros!C11)*(1+Parâmetros!D11))+(F36*(1+Parâmetros!C11)*(1+Parâmetros!D11)+(G36*(1+Parâmetros!D11))))/3)*(1+Parâmetros!E11)*(1+Parâmetros!E12) -> 987,134.85 | I36: =H36*(1+Parâmetros!F11)*(1+Parâmetros!F12) -> 1,047,152.64 | J36: =I36*(1+Parâmetros!G11)*(1+Parâmetros!G12) -> 1,110,819.53
A37: 1.7.0.0.00.0.0.00.00.00 | B37: 1.7.0.0.00.0.0 | C37: Transferências Correntes | D37: =D38+D50+D60+D61+D62+D63+D64 -> 16,646,118.77 | E37: 20,346,120.56 | F37: 25,455,931.02 | G37: 27,397,202.29 | H37: 28,225,771.44 | I37: 32,243,336.52 | J37: 35,907,601.22
A38: 1.7.1.0.00.0.0.00.00.00 | B38: 1.7.1.0.00.0.0 | C38: Transferências da União e de suas Entidades | D38: =D39+D40+D41+D42+D43+D44+D45+D46+D47+D48+D49 -> 10,261,164.72 | E38: 12,359,114.49 | F38: 16,556,584.85 | G38: 18,446,643.21 | H38: 19,128,878.50 | I38: 22,746,613.08 | J38: 26,193,874.11
A39: 1.7.1.8.01.2.0.00.00.00 | B39: 1.7.1.1.51.1.0 | C39: Cota-Parte do Fundo de Participação dos Municípios - Cota Mensal | D39: =7653463.73+1002390.68 -> 8,655,854.41 | E39: 10,319,993.65 | F39: 13,237,017.91 | G39: =(8168749.63/6)*11 -> 14,976,040.99 | H39: =(((E39*(1+Parâmetros!B11)*(1+Parâmetros!C11)*(1+Parâmetros!D11))+(F39*(1+Parâmetros!C11)*(1+Parâmetros!D11)+(G39*(1+Parâmetros!D11))))/3)*(1+Parâmetros!E11)*(1+Parâmetros!E16)-1600000 -> 15,205,582.58 | I39: =H39*(1+Parâmetros!F11)*(1+Parâmetros!F16) -> 18,218,887.74 | J39: =I39*(1+Parâmetros!G11)*(1+Parâmetros!G16) -> 21,086,986.41
A40: 1.7.1.8.01.3.0.00.00.00 | B40: 1.7.1.1.51.2.0 | C40: Cota-Parte do Fundo de Participação do Municípios – 1% Cota entregue no mês de dezembro | D40: 344,445.14 | E40: 452,337.92 | F40: 581,708.91 | G40: =F40 -> 581,708.91 | H40: =(((E40*(1+Parâmetros!B11)*(1+Parâmetros!C11)*(1+Parâmetros!D11))+(F40*(1+Parâmetros!C11)*(1+Parâmetros!D11)+(G40*(1+Parâmetros!D11))))/3)*(1+Parâmetros!E11)*(1+Parâmetros!E16) -> 706,295.98 | I40: =H40*(1+Parâmetros!F11)*(1+Parâmetros!F16) -> 846,263.34 | J40: =I40*(1+Parâmetros!G11)*(1+Parâmetros!G16) -> 979,485.90
A41: 1.7.1.8.01.4.0.00.00.00 | B41: 1.7.1.1.51.3.0 | C41: Cota-Parte do Fundo de Participação dos Municípios - 1% Cota entregue no mês de julho | D41: 345,179.50 | E41: 399,571.60 | F41: 729,839.47 | G41: =F41 -> 729,839.47 | H41: =(((E41*(1+Parâmetros!B11)*(1+Parâmetros!C11)*(1+Parâmetros!D11))+(F41*(1+Parâmetros!C11)*(1+Parâmetros!D11)+(G41*(1+Parâmetros!D11))))/3)*(1+Parâmetros!E11)*(1+Parâmetros!E16) -> 808,214.35 | I41: =H41*(1+Parâmetros!F11)*(1+Parâmetros!F16) -> 968,378.98 | J41: =I41*(1+Parâmetros!G11)*(1+Parâmetros!G16) -> 1,120,825.53
A42: 1.7.1.8.01.5.0.00.00.00 | B42: 1.7.1.1.52.0.0 | C42: Cota-Parte do Imposto Sobre a Propriedade Territorial Rural | D42: 12,735.81 | E42: 13,809.21 | F42: 15,622.61 | G42: =(1348.49/6)*12 -> 2,696.98 | H42: =(((E42*(1+Parâmetros!B11)*(1+Parâmetros!C11)*(1+Parâmetros!D11))+(F42*(1+Parâmetros!C11)*(1+Parâmetros!D11)+(G42*(1+Parâmetros!D11))))/3)*(1+Parâmetros!E11)*(1+Parâmetros!E16) -> 14,379.88 | I42: =H42*(1+Parâmetros!F11)*(1+Parâmetros!F16) -> 17,229.55 | J42: =I42*(1+Parâmetros!G11)*(1+Parâmetros!G16) -> 19,941.90
A43: 1.7.1.8.02.0.0.00.00.00 | B43: 1.7.1.2.00.0.0 | C43: Transferência da Compensação Financeira pela Exploração de Recursos Naturais | D43: 603,136.69 | E43: 846,340.23 | F43: 1,066,391.07 | G43: =(530284.32/6)*12 -> 1,060,568.64 | H43: =(((E43*(1+Parâmetros!B11)*(1+Parâmetros!C11)*(1+Parâmetros!D11))+(F43*(1+Parâmetros!C11)*(1+Parâmetros!D11)+(G43*(1+Parâmetros!D11))))/3)*(1+Parâmetros!E11)*(1+Parâmetros!E16) -> 1,300,311.39 | I43: =H43*(1+Parâmetros!F11)*(1+Parâmetros!F16) -> 1,557,995.36 | J43: =I43*(1+Parâmetros!G11)*(1+Parâmetros!G16) -> 1,803,261.95
A44: 1.7.1.8.03.0.0.00.00.00 | B44: 1.7.1.3.00.0.0 | C44: Transferência de Recursos do Sistema Único de Saúde – SUS – Repasses Fundo a Fundo | D44: 228,443.61 | E44: 202,966.26 | F44: 352,450.87 | G44: =(391577.32/6)*12 -> 783,154.64 | H44: =G44 -> 783,154.64 | I44: =H44*(1+Parâmetros!F11) -> 814,480.83 | J44: =I44*(1+Parâmetros!G11) -> 847,060.06
A45: 1.7.1.8.12.0.0.00.00.00 | B45: 1.7.1.6.50.0.0 | C45: Transferências de Recursos do Fundo Nacional de Assistência Social – FNAS | D45: 0 | F45: 40,888.55 | G45: =(13634.25/6)*12 -> 27,268.50 | H45: =(((E45*(1+Parâmetros!B11)*(1+Parâmetros!C11)*(1+Parâmetros!D11))+(F45*(1+Parâmetros!C11)*(1+Parâmetros!D11)+(G45*(1+Parâmetros!D11))))/3)*(1+Parâmetros!E11) -> 25,574.61 | I45: =H45*(1+Parâmetros!F11) -> 26,597.59 | J45: =I45*(1+Parâmetros!G11) -> 27,661.49
A46: 1.7.1.8.05.0.0.00.00.00 | B46: 1.7.1.4.00.0.0 | C46: Transferências de Recursos do Fundo Nacional do Desenvolvimento da Educação – FNDE | D46: 71,369.56 | E46: 76,812.86 | F46: =108221.09+8579.43 -> 116,800.52 | G46: =(124460.12/6)*12 -> 248,920.24 | H46: =G46 -> 248,920.24 | I46: =H46*(1+Parâmetros!F11) -> 258,877.05 | J46: =I46*(1+Parâmetros!G11) -> 269,232.13
A47: 1.7.1.8.06.0.0.00.00.00 | B47: 1.7.1.9.51.0.0 | C47: Transferência Financeira do ICMS – Desoneração – L.C. Nº 87/96 | D47: 0
A48: 1.7.1.8.10.0.0.00.00.00 | B48: 1.7.1.7.00.0.0 | C48: Transferências de Convênios da União e de Suas Entidades | D48: 0 | H48: =(((E48*(1+Parâmetros!B11)*(1+Parâmetros!C11)*(1+Parâmetros!D11))+(F48*(1+Parâmetros!C11)*(1+Parâmetros!D11)+(G48*(1+Parâmetros!D11))))/3)*(1+Parâmetros!E11) -> 0 | I48: =H48*(1+Parâmetros!F11) -> 0 | J48: =I48*(1+Parâmetros!G11) -> 0
A49: 1.7.1.8.99.0.0.00.00.00 | B49: 1.7.1.9.00.0.0 | C49: Outras Transferências da União | D49: 0 | E49: 47,282.76 | F49: 415,864.94 | G49: =(18222.42/6)*12 -> 36,444.84 | H49: =G49 -> 36,444.84 | I49: =H49*(1+Parâmetros!F11) -> 37,902.63 | J49: =I49*(1+Parâmetros!G11) -> 39,418.74
A50: 1.7.2.0.00.0.0.00.00.00 | B50: 1.7.2.0.00.0.0 | C50: Transferências dos Estados e do Distrito Federal e de suas Entidades | D50: =D51+D52+D53+D54+D55+D56+D57+D58+D59 -> 6,012,044.54 | E50: =E51+E52+E53+E54+E55+E56+E57+E58+E59 -> 7,331,365.18 | F50: 8,187,498.61 | G50: 7,634,145.95 | H50: 7,714,827.00 | I50: 7,840,795.42 | J50: 7,797,133.48
A51: 1.7.2.8.01.1.0.00.00.00 | B51: 1.7.2.1.50.0.0 | C51: Cota-Parte do ICMS | D51: 5,183,159.83 | E51: 6,249,403.46 | F51: 6,227,680.91 | G51: =(2691642.1/6)*12 -> 5,383,284.20 | H51: =(((E51*(1+Parâmetros!B11)*(1+Parâmetros!C11)*(1+Parâmetros!D11))+(F51*(1+Parâmetros!C11)*(1+Parâmetros!D11)+(G51*(1+Parâmetros!D11))))/3)*(1+Parâmetros!E11)*(1+Parâmetros!E17)-1200000 -> 5,771,018.71 | I51: =H51*(1+Parâmetros!F11)*(1+Parâmetros!F17) -> 5,845,419.80 | J51: =I51*(1+Parâmetros!G11)*(1+Parâmetros!G17) -> 5,773,172.15
A52: 1.7.2.8.01.2.0.00.00.00 | B52: 1.7.2.1.51.0.0 | C52: Cota-Parte do IPVA | D52: 555,987.42 | E52: 696,749.04 | F52: 768,054.56 | G52: =F52*1.05 -> 806,457.29 | H52: =(((E52*(1+Parâmetros!B11)*(1+Parâmetros!C11)*(1+Parâmetros!D11))+(F52*(1+Parâmetros!C11)*(1+Parâmetros!D11)+(G52*(1+Parâmetros!D11))))/3)*(1+Parâmetros!E11)*(1+Parâmetros!E17) -> 881,687.72 | I52: =H52*(1+Parâmetros!F11)*(1+Parâmetros!F17) -> 893,054.61 | J52: =I52*(1+Parâmetros!G11)*(1+Parâmetros!G17) -> 882,016.72
A53: 1.7.2.8.01.3.0.00.00.00 | B53: 1.7.2.1.52.0.0 | C53: Cota-Parte do IPI - Municípios | D53: 73,815.71 | E53: 73,553.84 | F53: 59,997.44 | G53: =(34999.35/6)*12 -> 69,998.70 | H53: =(((E53*(1+Parâmetros!B11)*(1+Parâmetros!C11)*(1+Parâmetros!D11))+(F53*(1+Parâmetros!C11)*(1+Parâmetros!D11)+(G53*(1+Parâmetros!D11))))/3)*(1+Parâmetros!E11)*(1+Parâmetros!E17) -> 79,314.95 | I53: =H53*(1+Parâmetros!F11)*(1+Parâmetros!F17) -> 80,337.49 | J53: =I53*(1+Parâmetros!G11)*(1+Parâmetros!G17) -> 79,344.55
A54: 1.7.2.8.01.4.0.00.00.00 | B54: 1.7.2.1.53.0.0 | C54: Cota-Parte da Contribuição de Intervenção no Domínio Econômico | D54: 6,261.88 | E54: 4,027.26 | F54: 1,249.59 | G54: =(3826.24/6)*12 -> 7,652.48 | H54: =(((E54*(1+Parâmetros!B11)*(1+Parâmetros!C11)*(1+Parâmetros!D11))+(F54*(1+Parâmetros!C11)*(1+Parâmetros!D11)+(G54*(1+Parâmetros!D11))))/3)*(1+Parâmetros!E11)*(1+Parâmetros!E17) -> 4,955.18 | I54: =H54*(1+Parâmetros!F11)*(1+Parâmetros!F17) -> 5,019.06 | J54: =I54*(1+Parâmetros!G11)*(1+Parâmetros!G17) -> 4,957.03
A55: 1.7.2.8.01.5.0.00.00.00 | B55: 1.7.2.1.98.0.0 | C55: Outras Participações na Receita dos Estados | D55: 0 | H55: =(((E55*(1+Parâmetros!B11)*(1+Parâmetros!C11)*(1+Parâmetros!D11))+(F55*(1+Parâmetros!C11)*(1+Parâmetros!D11)+(G55*(1+Parâmetros!D11))))/3)*(1+Parâmetros!E11) -> 0 | I55: =H55*(1+Parâmetros!F11) -> 0 | J55: =I55*(1+Parâmetros!G11) -> 0
A56: 1.7.2.8.01.9.0.00.00.00 | B56: 1.7.2.9.99.0.0 | C56: Outras Transferências dos Estados | D56: 0 | H56: =(((E56*(1+Parâmetros!B11)*(1+Parâmetros!C11)*(1+Parâmetros!D11))+(F56*(1+Parâmetros!C11)*(1+Parâmetros!D11)+(G56*(1+Parâmetros!D11))))/3)*(1+Parâmetros!E11) -> 0 | I56: =H56*(1+Parâmetros!F11) -> 0 | J56: =I56*(1+Parâmetros!G11) -> 0
A57: 1.7.2.8.03.0.0.00.00.00 | B57: 1.7.2.3.50.0.0 | C57: Transferência de Recursos do Estado para Programas de Saúde – Repasse Fundo a Fundo | D57: 45,221.35 | E57: 142,941.93 | F57: 122,664.43 | G57: =(153010.73/6)*10 -> 255,017.88 | H57: =(((E57*(1+Parâmetros!B11)*(1+Parâmetros!C11)*(1+Parâmetros!D11))+(F57*(1+Parâmetros!C11)*(1+Parâmetros!D11)+(G57*(1+Parâmetros!D11))))/3)*(1+Parâmetros!E11) -> 197,541.10 | I57: =H57*(1+Parâmetros!F11) -> 205,442.75 | J57: =I57*(1+Parâmetros!G11) -> 213,660.46
A58: 1.7.2.8.10.0.0.00.00.00 | B58: 1.7.2.4.00.0.0 | C58: Transferência de Convênios dos Estados e do Distrito Federal e de Suas Entidades | D58: 147,598.35 | E58: 164,689.65 | F58: 690,323.31 | G58: =(180781.63/6)*12 -> 361,563.26 | H58: =(((E58*(1+Parâmetros!B11)*(1+Parâmetros!C11)*(1+Parâmetros!D11))+(F58*(1+Parâmetros!C11)*(1+Parâmetros!D11)+(G58*(1+Parâmetros!D11))))/3)*(1+Parâmetros!E11) -> 462,780.97 | I58: =H58*(1+Parâmetros!F11) -> 481,292.20 | J58: =I58*(1+Parâmetros!G11) -> 500,543.89
A59: 1.7.2.8.99.0.0.00.00.00 | B59: 1.7.2.9.00.0.0 | C59: Outras Transferências dos Estados | D59: 0 | F59: 317,528.37 | G59: 750,172.14 | H59: =F59 -> 317,528.37 | I59: =H59*(1+Parâmetros!F11) -> 330,229.50 | J59: =I59*(1+Parâmetros!G11) -> 343,438.68
A60: 1.7.3.0.00.0.0.00.00.00 | B60: 1.7.3.0.00.0.0 | C60: Transferências dos Municípios e de suas Entidades | D60: 0 | H60: =(((E60*(1+Parâmetros!B11)*(1+Parâmetros!C11)*(1+Parâmetros!D11))+(F60*(1+Parâmetros!C11)*(1+Parâmetros!D11)+(G60*(1+Parâmetros!D11))))/3)*(1+Parâmetros!E11) -> 0 | I60: =H60*(1+Parâmetros!F11) -> 0 | J60: =I60*(1+Parâmetros!G11) -> 0
A61: 1.7.4.0.00.0.0.00.00.00 | B61: 1.7.4.0.00.0.0 | C61: Transferências de Instituições Privadas | D61: 0 | H61: =(((E61*(1+Parâmetros!B11)*(1+Parâmetros!C11)*(1+Parâmetros!D11))+(F61*(1+Parâmetros!C11)*(1+Parâmetros!D11)+(G61*(1+Parâmetros!D11))))/3)*(1+Parâmetros!E11) -> 0 | I61: =H61*(1+Parâmetros!F11) -> 0 | J61: =I61*(1+Parâmetros!G11) -> 0
A62: 1.7.5.8.01.1.1.00.00.00 | B62: 1.7.5.1.50.0.0 | C62: Transferências de Recursos do FUNDEB - Principal | D62: 372,909.51 | E62: 655,640.89 | F62: 711,747.56 | G62: =(717879.89/6)*11 -> 1,316,113.13 | H62: =G62*1.05 -> 1,381,918.79 | I62: =H62*(1+Parâmetros!F11)*(1+Parâmetros!F16) -> 1,655,774.99 | J62: =I62*(1+Parâmetros!G11)*(1+Parâmetros!G16) -> 1,916,434.48
A63: 1.7.6.0.00.0.0.00.00.00 | B63: 1.7.6.1.00.0.0 | C63: Transferências do Exterior | H63: =(((E63*(1+Parâmetros!B11)*(1+Parâmetros!C11)*(1+Parâmetros!D11))+(F63*(1+Parâmetros!C11)*(1+Parâmetros!D11)+(G63*(1+Parâmetros!D11))))/3)*(1+Parâmetros!E11) -> 0 | I63: =H63*(1+Parâmetros!F11) -> 0 | J63: =I63*(1+Parâmetros!G11) -> 0
A64: 1.7.7.0.00.0.0.00.00.00 | B64: 1.7.9.1.00.0.0 | C64: Transferências de Pessoas Físicas | D64: 0 | E64: 0 | F64: 100.00 | G64: 300.00 | H64: =(((E64*(1+Parâmetros!B11)*(1+Parâmetros!C11)*(1+Parâmetros!D11))+(F64*(1+Parâmetros!C11)*(1+Parâmetros!D11)+(G64*(1+Parâmetros!D11))))/3)*(1+Parâmetros!E11) -> 147.15 | I64: =H64*(1+Parâmetros!F11) -> 153.03 | J64: =I64*(1+Parâmetros!G11) -> 159.16
A65: 1.9.0.0.00.0.0.00.00.00 | B65: 1.9.0.0.00.0.0 | C65: Outras Receitas Correntes | D65: =D66+D67+D70 -> 30,957.90 | E65: 55,436.68 | F65: 107,809.79 | G65: 31,204.58 | H65: 75,173.16 | I65: 78,180.09 | J65: 81,307.29
A66: 1.9.1.0.00.0.0.00.00.00 | B66: 1.9.1.1.00.0.0 | C66: Multas Administrativas, Contratuais e Judiciais | D66: 8,637.79 | E66: 24,488.33 | F66: 20,068.31 | G66: =(6353.9/6)*12 -> 12,707.80 | H66: =(((E66*(1+Parâmetros!B11)*(1+Parâmetros!C11)*(1+Parâmetros!D11))+(F66*(1+Parâmetros!C11)*(1+Parâmetros!D11)+(G66*(1+Parâmetros!D11))))/3)*(1+Parâmetros!E11) -> 22,244.97 | I66: =H66*(1+Parâmetros!F11) -> 23,134.77 | J66: =I66*(1+Parâmetros!G11) -> 24,060.16
A67: 1.9.2.0.00.0.0.00.00.00 | B67: 1.9.2.0.00.0.0 | C67: Indenizações, Restituições e Ressarcimentos | D67: =D68+D69 -> 18,245.11 | E67: 30,948.35 | F67: 85,303.08 | G67: 18,154.00 | H67: 51,868.42 | I67: 53,943.16 | J67: 56,100.88
A68: 1.9.2.2.01.2.0.00.00 | B68: 1.9.2.2.01.2.0 | C68: Restituição de Convênios - Financeiras | H68: =(((E68*(1+Parâmetros!B11)*(1+Parâmetros!C11)*(1+Parâmetros!D11))+(F68*(1+Parâmetros!C11)*(1+Parâmetros!D11)+(G68*(1+Parâmetros!D11))))/3)*(1+Parâmetros!E11) -> 0 | I68: =H68*(1+Parâmetros!F11) -> 0 | J68: =I68*(1+Parâmetros!G11) -> 0
A69: 1.9.2.0.00.0.0.00.00 | B69: 1.9.2.2.99.0.0 | C69: Outras Indenizações, Restituições e Ressarcimentos | D69: 18,245.11 | E69: 30,948.35 | F69: 85,303.08 | G69: =(9077/6)*12 -> 18,154.00 | H69: =(((E69*(1+Parâmetros!B11)*(1+Parâmetros!C11)*(1+Parâmetros!D11))+(F69*(1+Parâmetros!C11)*(1+Parâmetros!D11)+(G69*(1+Parâmetros!D11))))/3)*(1+Parâmetros!E11) -> 51,868.42 | I69: =H69*(1+Parâmetros!F11) -> 53,943.16 | J69: =I69*(1+Parâmetros!G11) -> 56,100.88
A70: 1.9.9.0.00.0.0.00.00.00 | B70: 1.9.9.9.00.0.0 | C70: Demais Receitas Correntes | D70: =D71+D72+D73+D74+D75 -> 4,075.00 | E70: 0 | F70: 2,438.40 | G70: 342.78 | H70: 1,059.78 | I70: 1,102.17 | J70: 1,146.25
A71: 1.9.9.0.06.0.0.00.00.00 | B71: 1.9.9.9.06.0.0 | C71: Contrapartida de Subvenções ou Subsídios | H71: =(((E71*(1+Parâmetros!B11)*(1+Parâmetros!C11)*(1+Parâmetros!D11))+(F71*(1+Parâmetros!C11)*(1+Parâmetros!D11)+(G71*(1+Parâmetros!D11))))/3)*(1+Parâmetros!E11) -> 0 | I71: =H71*(1+Parâmetros!F11) -> 0 | J71: =I71*(1+Parâmetros!G11) -> 0
A72: 1.9.9.0.1.1.1.0.00.00.00 | B72: 1.9.9.9.11.0.0 | C72: Variação Cambial | H72: =((D72+E72+F72+G72)/4)/Parâmetros!D22*Parâmetros!E22 -> 0 | I72: =((E72+F72+G72+H72)/4)/Parâmetros!E22*Parâmetros!F22 -> 0 | J72: =((F72+G72+H72+I72)/4)/Parâmetros!F22*Parâmetros!G22 -> 0
A73: 1.9.9.0.12.0.0.00.00.00 | B73: 1.9.9.9.12.0.0 | C73: Encargos Legais pela Inscrição em Dívida Ativa e Receitas de Ônus de Sucumbência | H73: =(((E73*(1+Parâmetros!B11)*(1+Parâmetros!C11)*(1+Parâmetros!D11))+(F73*(1+Parâmetros!C11)*(1+Parâmetros!D11)+(G73*(1+Parâmetros!D11))))/3)*(1+Parâmetros!E11) -> 0 | I73: =H73*(1+Parâmetros!F11) -> 0 | J73: =I73*(1+Parâmetros!G11) -> 0
A74: 1.9.9.0.99.2.0.00.00.00 | B74: 1.9.9.9.99.3.0 | C74: Outras Receitas Financeiras | H74: =((D74+E74+F74+G74)/4)*(1+Parâmetros!E11) -> 0 | I74: =((E74+F74+G74+H74)/4)*(1+Parâmetros!F11) -> 0 | J74: =((F74+G74+H74+I74)/4)*(1+Parâmetros!G11) -> 0
A75: 1.9.9.0.99.0.0.00.00.00 | B75: 1.9.9.9.99.0.0 | C75: Outras Receitas (demais receitas diversas) | D75: 4,075.00 | F75: 2,438.40 | G75: =(171.39/6)*12 -> 342.78 | H75: =(((E75*(1+Parâmetros!B11)*(1+Parâmetros!C11)*(1+Parâmetros!D11))+(F75*(1+Parâmetros!C11)*(1+Parâmetros!D11)+(G75*(1+Parâmetros!D11))))/3)*(1+Parâmetros!E11) -> 1,059.78 | I75: =H75*(1+Parâmetros!F11) -> 1,102.17 | J75: =I75*(1+Parâmetros!G11) -> 1,146.25
A76: 2.0.0.0.00.0.0.00.00.00 | B76: 2.0.0.0.00.0.0 | C76: Receitas de Capital | D76: =D77+D78+D83+D84+D92 -> 123,159.69 | E76: 1,659,929.32 | F76: 2,038,276.44 | G76: 816,629.50 | H76: 478,825.52 | I76: 504,752.19 | J76: 532,127.75
A77: 2.1.0.0.00.0.0.00.00.00 | B77: 2.1.0.0.00.0.0 | C77: Operações de Crédito | E77: 973,000.00 | F77: 0 | H77: =Dívida!E21 -> 0 | I77: =Dívida!F21 -> 0 | J77: =Dívida!G21 -> 0
A78: 2.2.0.0.00.0.0.00.00.00 | B78: 2.2.0.0.00.0.0 | C78: Alienação de Bens | D78: =D79+D80+D81+D82 -> 69,008.01 | E78: 59,437.05 | F78: 92,124.90 | G78: 85,956.48 | H78: 90,632.93 | I78: 94,258.25 | J78: 98,028.58
A79: 2.2.1.8.01.1.0.00.00.00 | B79: 2.2.1.1.01.0.0 | C79: Alienação de Investimentos Temporários | H79: =((D79+E79+F79+G79)/4)*(1+Parâmetros!E11) -> 0 | I79: =((E79+F79+G79+H79)/4)*(1+Parâmetros!F11) -> 0 | J79: =((F79+G79+H79+I79)/4)*(1+Parâmetros!G11) -> 0
A80: 2.2.1.8.01.2.0.00.00.00 | B80: 2.2.1.1.02.0.0 | C80: Alienação de Investimenros Permanentes | D80: 0 | E80: 0 | H80: =((D80+E80+F80+G80)/4)*(1+Parâmetros!E11) -> 0 | I80: =((E80+F80+G80+H80)/4)*(1+Parâmetros!F11) -> 0 | J80: =((F80+G80+H80+I80)/4)*(1+Parâmetros!G11) -> 0
A81: 2.2.1.0.00.0.0.00.00.00 | B81: 2.2.1.0.00.0.0 | C81: Alienação de Bens Móveis | F81: 0 | H81: =(((E81*(1+Parâmetros!B11)*(1+Parâmetros!C11)*(1+Parâmetros!D11))+(F81*(1+Parâmetros!C11)*(1+Parâmetros!D11)+(G81*(1+Parâmetros!D11))))/3)*(1+Parâmetros!E11) -> 0 | I81: =H81*(1+Parâmetros!F11) -> 0 | J81: =I81*(1+Parâmetros!G11) -> 0
A82: 2.2.2.0.00.0.0.00.00.00 | B82: 2.2.2.1.01.0.0 | C82: Alienação de Bens Imóveis | D82: 69,008.01 | E82: 59,437.05 | F82: 92,124.90 | G82: =(42978.24/6)*12 -> 85,956.48 | H82: =(((E82*(1+Parâmetros!B11)*(1+Parâmetros!C11)*(1+Parâmetros!D11))+(F82*(1+Parâmetros!C11)*(1+Parâmetros!D11)+(G82*(1+Parâmetros!D11))))/3)*(1+Parâmetros!E11) -> 90,632.93 | I82: =H82*(1+Parâmetros!F11) -> 94,258.25 | J82: =I82*(1+Parâmetros!G11) -> 98,028.58
A83: 2.3.0.0.00.0.0.00.00.00 | B83: 2.3.1.1.00.0.0 | C83: Amortização de Empréstimos | D83: 0 | E83: 0 | H83: =(((E83*(1+Parâmetros!B11)*(1+Parâmetros!C11)*(1+Parâmetros!D11))+(F83*(1+Parâmetros!C11)*(1+Parâmetros!D11)+(G83*(1+Parâmetros!D11))))/3)*(1+Parâmetros!E11) -> 0 | I83: =H83*(1+Parâmetros!F11) -> 0 | J83: =I83*(1+Parâmetros!G11) -> 0
A84: 2.4.0.0.00.0.0.00.00.00 | B84: 2.4.0.0.00.0.0 | C84: Transferências de Capital | D84: =D85+D86+D87+D88+D89+D90+D91 -> 54,095.23 | E84: 616,380.96 | F84: 1,857,368.06 | G84: 664,580.16 | H84: 325,655.92 | I84: 345,455.80 | J84: 366,459.51
A85: 2.4.1.0.00.0.0.00.00.00 | B85: 2.4.1.0.00.0.0 | C85: Transferências da União e de suas Entidades | D85: 54,095.23 | E85: 616,380.96 | F85: 1,607,030.00 | G85: 216,185.00 | H85: 100,000.00 | I85: =H85*(1+Parâmetros!F11)*(1+Parâmetros!F12) -> 106,080.00 | J85: =I85*(1+Parâmetros!G11)*(1+Parâmetros!G12) -> 112,529.66
A86: 2.4.2.0.00.0.0.00.00.00 | B86: 2.4.2.0.00.0.0 | C86: Transferências dos Estados e do Distrito Federal e de suas Entidades | F86: 250,338.06 | G86: 448,395.16 | H86: =100000+125655.92 -> 225,655.92 | I86: =H86*(1+Parâmetros!F11)*(1+Parâmetros!F12) -> 239,375.80 | J86: =I86*(1+Parâmetros!G11)*(1+Parâmetros!G12) -> 253,929.85
A87: 2.4.3.0.00.0.0.00.00.00 | B87: 2.4.3.0.00.0.0 | C87: Transferências dos Municípios e de suas Entidades | H87: =(((E87*(1+Parâmetros!B11)*(1+Parâmetros!C11)*(1+Parâmetros!D11))+(F87*(1+Parâmetros!C11)*(1+Parâmetros!D11)+(G87*(1+Parâmetros!D11))))/3)*(1+Parâmetros!E11)*(1+Parâmetros!E12) -> 0 | I87: =H87*(1+Parâmetros!F11)*(1+Parâmetros!F12) -> 0 | J87: =I87*(1+Parâmetros!G11)*(1+Parâmetros!G12) -> 0
A88: 2.4.4.0.00.0.0.00.00.00 | B88: 2.4.4.1.00.0.0 | C88: Transferências de Instituições Privadas | H88: =(((E88*(1+Parâmetros!B11)*(1+Parâmetros!C11)*(1+Parâmetros!D11))+(F88*(1+Parâmetros!C11)*(1+Parâmetros!D11)+(G88*(1+Parâmetros!D11))))/3)*(1+Parâmetros!E11)*(1+Parâmetros!E12) -> 0 | I88: =H88*(1+Parâmetros!F11)*(1+Parâmetros!F12) -> 0 | J88: =I88*(1+Parâmetros!G11)*(1+Parâmetros!G12) -> 0
A89: 2.4.5.0.00.0.0.00.00.00 | B89: 2.4.5.1.01.0.0 | C89: Transferências de Outras Instituições Públicas | H89: =(((E89*(1+Parâmetros!B11)*(1+Parâmetros!C11)*(1+Parâmetros!D11))+(F89*(1+Parâmetros!C11)*(1+Parâmetros!D11)+(G89*(1+Parâmetros!D11))))/3)*(1+Parâmetros!E11)*(1+Parâmetros!E12) -> 0 | I89: =H89:H90*(1+Parâmetros!F11)*(1+Parâmetros!F12) -> 0 | J89: =I89:I90*(1+Parâmetros!G11)*(1+Parâmetros!G12) -> 0
A90: 2.4.6.0.00.0.0.00.00.00 | B90: 2.4.6.1.00.0.0 | C90: Transferências do Exterior | H90: =(((E90*(1+Parâmetros!B11)*(1+Parâmetros!C11)*(1+Parâmetros!D11))+(F90*(1+Parâmetros!C11)*(1+Parâmetros!D11)+(G90*(1+Parâmetros!D11))))/3)*(1+Parâmetros!E11)*(1+Parâmetros!E12) -> 0 | I90: =H90*(1+Parâmetros!F11)*(1+Parâmetros!F12) -> 0 | J90: =I90*(1+Parâmetros!G11)*(1+Parâmetros!G12) -> 0
A91: 2.4.7.0.00.0.0.00.00.00 | B91: 2.4.9.1.00.0.0 | C91: Transferências de Pessoas Físicas | H91: =(((E91*(1+Parâmetros!B11)*(1+Parâmetros!C11)*(1+Parâmetros!D11))+(F91*(1+Parâmetros!C11)*(1+Parâmetros!D11)+(G91*(1+Parâmetros!D11))))/3)*(1+Parâmetros!E11)*(1+Parâmetros!E12) -> 0 | I91: =H91*(1+Parâmetros!F11)*(1+Parâmetros!F12) -> 0 | J91: =I91*(1+Parâmetros!G11)*(1+Parâmetros!G12) -> 0
A92: 2.9.0.0.00.0.0.00.00.00 | B92: 2.9.0.0.00.0.0 | C92: Outras Receitas de Capital | D92: =D93+D94 -> 56.45 | E92: 11,111.31 | F92: 88,783.48 | G92: 66,092.86 | H92: 62,536.67 | I92: 65,038.14 | J92: 67,639.66
A93: 2.9.9.0.00.1.1.01.00.00 | B93: 2.9.9.9.99.0.0 | C93: Outras Receitas de Capital | H93: =(((E93*(1+Parâmetros!B11)*(1+Parâmetros!C11)*(1+Parâmetros!D11))+(F93*(1+Parâmetros!C11)*(1+Parâmetros!D11)+(G93*(1+Parâmetros!D11))))/3)*(1+Parâmetros!E11) -> 0 | I93: =H93*(1+Parâmetros!F11) -> 0 | J93: =I93*(1+Parâmetros!G11) -> 0
A94: 2.9.9.0.00.1.1.02.00.00 | B94: 2.9.9.9.99.0.0 | C94: Remuneracao de Depósitos Bancários - Principal | D94: 56.45 | E94: 11,111.31 | F94: 88,783.48 | G94: =(33046.43/6)*12 -> 66,092.86 | H94: =(((E94*(1+Parâmetros!B11)*(1+Parâmetros!C11)*(1+Parâmetros!D11))+(F94*(1+Parâmetros!C11)*(1+Parâmetros!D11)+(G94*(1+Parâmetros!D11))))/3)*(1+Parâmetros!E11) -> 62,536.67 | I94: =H94*(1+Parâmetros!F11) -> 65,038.14 | J94: =I94*(1+Parâmetros!G11) -> 67,639.66
A95: 7.0.0.0.00.0.0.00.00.00 | B95: 7.0.0.0.00.0.0 | C95: Receitas Correntes Intraorçamentárias | D95: =D96+D97 -> 0 | E95: 0 | F95: 0 | G95: 0 | H95: 0 | I95: 0 | J95: 0
B96: 7.0.0.0.00.0.0 | C96: Receitas Correntes Intraorçamentárias - Primárias | H96: =(((E96*(1+Parâmetros!B11)*(1+Parâmetros!C11)*(1+Parâmetros!D11))+(F96*(1+Parâmetros!C11)*(1+Parâmetros!D11)+(G96*(1+Parâmetros!D11))))/3)*(1+Parâmetros!E11) -> 0 | I96: =H96*(1+Parâmetros!F11) -> 0 | J96: =I96*(1+Parâmetros!G11) -> 0 | IV96: 100.00
B97: 7.0.0.0.00.0.0 | C97: Receitas Correntes Intraorçamentárias - Financeiras / Não Primárias | H97: =(((E97*(1+Parâmetros!B11)*(1+Parâmetros!C11)*(1+Parâmetros!D11))+(F97*(1+Parâmetros!C11)*(1+Parâmetros!D11)+(G97*(1+Parâmetros!D11))))/3)*(1+Parâmetros!E11) -> 0 | I97: =H97*(1+Parâmetros!F11) -> 0 | J97: =I97*(1+Parâmetros!G11) -> 0
A98: 8.0.0.0.00.0.0.00.00.00 | B98: 8.0.0.0.00.0.0 | C98: Receitas de Capital Intraorçamentárias | D98: =D99+D100 -> 0 | E98: 0 | F98: 0 | G98: 0 | H98: 0 | I98: 0 | J98: 0
B99: 8.0.0.0.00.0.0 | C99: Receitas de Capital Intraorçamentárias - Primárias | H99: =(((E99*(1+Parâmetros!B11)*(1+Parâmetros!C11)*(1+Parâmetros!D11))+(F99*(1+Parâmetros!C11)*(1+Parâmetros!D11)+(G99*(1+Parâmetros!D11))))/3)*(1+Parâmetros!E11) -> 0 | I99: =H99*(1+Parâmetros!F11) -> 0 | J99: =I99*(1+Parâmetros!G11) -> 0
B100: 8.0.0.0.00.0.0 | C100: Receitas de Capital Intraorçamentárias - Financeiras / Não Primárias | H100: =(((E100*(1+Parâmetros!B11)*(1+Parâmetros!C11)*(1+Parâmetros!D11))+(F100*(1+Parâmetros!C11)*(1+Parâmetros!D11)+(G100*(1+Parâmetros!D11))))/3)*(1+Parâmetros!E11) -> 0 | I100: =H100*(1+Parâmetros!F11) -> 0 | J100: =I100*(1+Parâmetros!G11) -> 0
A101: 9.0.0.0.0.00.0.0.00.00 | B101: 9.0.0.0.0.00.0.0 | C101: ( R ) Deduções da Receita - Digitar com sinal negativo | D101: =D102+D103+D104+D105 -> -2,743,102.68 | E101: -3,523,743.54 | F101: -4,158,794.30 | G101: -4,603,953.40 | H101: -4,426,992.22 | I101: -5,049,045.11 | J101: -5,607,873.99
A102: 9.1.1.0.0.00.0.0.00.00 | B102: 9.1.1.0.0.00.0.0 | C102: Deduções da Receita de Impostos, Taxas e Contribuições de Melhoria (digitar com sinal negativo) | D102: =-49630.25-563.27 -> -50,193.52 | E102: =-53061.03 -> -53,061.03 | F102: =-30152.6+96.43+452.31 -> -29,603.86 | G102: =-(1694.67/6)*12 -> -3,389.34 | H102: =(((E102*(1+Parâmetros!B11)*(1+Parâmetros!C11)*(1+Parâmetros!D11))+(F102*(1+Parâmetros!C11)*(1+Parâmetros!D11)+(G102*(1+Parâmetros!D11))))/3)*(1+Parâmetros!E11) -> -34,119.60 | I102: =H102*(1+Parâmetros!F11) -> -35,484.38 | J102: =I102*(1+Parâmetros!G11) -> -36,903.75
A103: 9.1.7.0.0.00.0.0.00.00 | B103: 9.1.7.0.0.00.0.0 | C103: Deduções para o FUNDEB | D103: =-2692909.16 -> -2,692,909.16 | E103: =-3470682.51 -> -3,470,682.51 | F103: =-4125180.5 -> -4,125,180.50 | G103: =-(2298989.38/6)*12 -> -4,597,978.76 | H103: =-((H39+H42+H47+H51+H52+H53)*0.2) -> -4,390,396.77 | I103: -5,010,985.84 | J103: -5,568,292.35
A104: 9.1.0.0.0.00.0.0.00.00 | B104: 9.1.0.0.0.00.0.0 | C104: Demais Deduções da Receita Corrente (digitar com sinal negativo) | F104: =-2851.51+60.95-1219.38 -> -4,009.94 | G104: =-((1281.5+11.15)/6)*12 -> -2,585.30 | H104: =(((E104*(1+Parâmetros!B11)*(1+Parâmetros!C11)*(1+Parâmetros!D11))+(F104*(1+Parâmetros!C11)*(1+Parâmetros!D11)+(G104*(1+Parâmetros!D11))))/3)*(1+Parâmetros!E11) -> -2,475.86 | I104: =H104*(1+Parâmetros!F11) -> -2,574.89 | J104: =I104*(1+Parâmetros!G11) -> -2,677.89
A105: 9.2.0.0.0.00.0.0.00.00 | B105: 9.2.0.0.0.00.0.0 | C105: Deduções da Receita de Capital (digitar com sinal negativo) | H105: =(((E105*(1+Parâmetros!B11)*(1+Parâmetros!C11)*(1+Parâmetros!D11))+(F105*(1+Parâmetros!C11)*(1+Parâmetros!D11)+(G105*(1+Parâmetros!D11))))/3)*(1+Parâmetros!E11) -> 0.00 | I105: =H105*(1+Parâmetros!F11) -> 0.00 | J105: =I105*(1+Parâmetros!G11) -> 0.00
C107: TOTAL DAS RECEITAS ARRECADADAS | D107: =D8+D76+D95+D98+D101 -> 15,955,974.34 | E107: 20,703,377.43 | F107: 26,905,103.16 | G107: 27,572,504.77 | H107: 28,373,000.00 | I107: 32,620,624.07 | J107: 36,456,696.01
A109: =Parâmetros!A7 -> Município de : NOVA PÁDUA
A110: =Parâmetros!A8 -> LEI DE DIRETRIZES ORÇAMENTÁRIAS PARA 2025
A111: Memória de Cálculo das Estimativas de Pagamento das Despesas - Inclusive Restos a Pagar - Exceto Despesas do RPPS
J112: Valores em R$ 1,00
A113: Código | C113: Descrição | D113: PAGA | E113: PAGA | F113: PAGA | G113: PAGA(Estim) | H113: PROJETADO | I113: PROJETADO | J113: PROJETADO
D114: =D7 -> 2021 | E114: =D114+1 -> 2022 | F114: 2023 | G114: 2024 | H114: 2025 | I114: 2026 | J114: 2027
A115: 3.0.00.00.00.00.00 | C115: DESPESAS CORRENTES | D115: =D116+D121+D126 -> 13,989,732.59 | E115: 15,332,150.86 | F115: 21,192,375.71 | G115: 23,211,244.47 | H115: 24,561,745.83 | I115: 29,292,524.44 | J115: 33,583,085.95
A116: 3.1.00.00.00.00.00 | C116: PESSOAL E ENCARGOS SOCIAIS | D116: =SUM(D117:D120) -> 7,138,452.42 | E116: 6,678,093.40 | F116: 9,283,513.14 | G116: 10,368,547.28 | H116: 10,795,021.82 | I116: 13,221,282.94 | J116: 15,078,124.33
A117: 3.1.00.00.00.00.00 | C117: Pessoal - Executivo / Indiretes | D117: 6,763,303.32 | E117: 6,288,047.85 | F117: =8812206.92-F120 -> 7,531,041.35 | G117: =((4593488.24/6.2)*13.2)-G120 -> 8,242,205.84 | H117: =(((E117*(1+Parâmetros!B11)*(1+Parâmetros!C11)*(1+Parâmetros!D11))+(F117*(1+Parâmetros!C11)*(1+Parâmetros!D11)+(G117*(1+Parâmetros!D11))))/3)*(1+Parâmetros!E11)*(1+Parâmetros!E13)*(1+Parâmetros!E18) -> 9,218,629.14 | I117: =H117*(1+Parâmetros!F11)*(1+Parâmetros!F13)*(1+Parâmetros!F18) -> 11,174,401.25 | J117: =I117*(1+Parâmetros!G11)*(1+Parâmetros!G13)*(1+Parâmetros!G18) -> 12,899,681.54
A118: 3.1.00.00.00.00.00 | C118: Pessoal - Legislativo | D118: 375,149.10 | E118: 390,045.55 | F118: 464,911.12 | G118: =(236697.59/6.2)*13 -> 496,301.40 | H118: =(((E118*(1+Parâmetros!B11)*(1+Parâmetros!C11)*(1+Parâmetros!D11))+(F118*(1+Parâmetros!C11)*(1+Parâmetros!D11)+(G118*(1+Parâmetros!D11))))/3)*(1+Parâmetros!E11)*(1+Parâmetros!E13)*(1+Parâmetros!E19) -> 564,957.77 | I118: =H118*(1+Parâmetros!F11)*(1+Parâmetros!F13)*(1+Parâmetros!F19) -> 684,816.00 | J118: =I118*(1+Parâmetros!G11)*(1+Parâmetros!G13)*(1+Parâmetros!G19) -> 790,548.70
A119: 3.1.00.00.00.00.00 | C119: Pessoal - Restos a Pagar Pagos | F119: =6395.1 -> 6,395.10 | G119: =91300.56+1260.68 -> 92,561.24 | H119: =((E119+F119+G119)/3)*(1+Parâmetros!E11) -> 34,304.86 | I119: =((F119+G119+H119)/3)*(1+Parâmetros!F11) -> 46,197.22 | J119: =((G119+H119+I119)/3)*(1+Parâmetros!G11) -> 59,995.28
A120: 3.1.91.00.00.00.00 | C120: Despesas Com Pessoal - INTRAORÇAMENTÁRIAS | F120: 1,281,165.57 | G120: =((709605.6/6)*13) -> 1,537,478.80 | H120: =((E120+F120+G120)/3)*(1+Parâmetros!E11) -> 977,130.05 | I120: =((F120+G120+H120)/3)*(1+Parâmetros!F11) -> 1,315,868.46 | J120: =((G120+H120+I120)/3)*(1+Parâmetros!G11) -> 1,327,898.80
A121: 3.2.00.00.00.00.00 | C121: JUROS E ENCARGOS DA DÍVIDA | D121: =SUM(D122:D125) -> 0 | E121: 0 | F121: 222,997.41 | G121: 222,997.41 | H121: 176,014.44 | I121: 191,855.74 | J121: 208,643.12
A122: 3.2.00.00.00.00.00 | C122: Juros e Encargos da Dívida - Executiv / Indiretas | F122: 222,997.41 | G122: =F122 -> 222,997.41 | H122: =(((E122*(1+Parâmetros!B11)*(1+Parâmetros!C11)*(1+Parâmetros!D11))+(F122*(1+Parâmetros!C11)*(1+Parâmetros!D11)+(G122*(1+Parâmetros!D11))))/3)*(1+Parâmetros!E21) -> 176,014.44 | I122: =H122*(1+Parâmetros!F21) -> 191,855.74 | J122: =I122*(1+Parâmetros!G21) -> 208,643.12
A123: 3.2.00.00.00.00.00 | C123: Juros e Encargos da Dívida - Legislativo | H123: =(((E123*(1+Parâmetros!B11)*(1+Parâmetros!C11)*(1+Parâmetros!D11))+(F123*(1+Parâmetros!C11)*(1+Parâmetros!D11)+(G123*(1+Parâmetros!D11))))/3)*(1+Parâmetros!E21) -> 0 | I123: =H123*(1+Parâmetros!F21) -> 0 | J123: =I123*(1+Parâmetros!G21) -> 0
A124: 3.2.00.00.00.00.00 | C124: Juros e encargos da Dívida - Restos a Pagar Pagos | H124: =((E124+F124+G124)/3)*(1+Parâmetros!E11) -> 0 | I124: =((F124+G124+H124)/3)*(1+Parâmetros!F11) -> 0 | J124: =((G124+H124+I124)/3)*(1+Parâmetros!G11) -> 0
A125: 3.2.91.00.00.00.00 | C125: Juros e encargos da Dívida - INTRAORÇAMENTÁRIAS | H125: =((E125+F125+G125)/3)*(1+Parâmetros!E11) -> 0 | I125: =((F125+G125+H125)/3)*(1+Parâmetros!F11) -> 0 | J125: =((G125+H125+I125)/3)*(1+Parâmetros!G11) -> 0
A126: 3.3.00.00.00.00.00 | C126: OUTRAS DESPESAS CORRENTES | D126: =SUM(D127:D130) -> 6,851,280.17 | E126: 8,654,057.46 | F126: 11,685,865.16 | G126: 12,619,699.78 | H126: 13,590,709.57 | I126: 15,879,385.76 | J126: 18,296,318.50
A127: 3.3.00.00.00.00.00 | C127: Outras Despesas Correntes - Executivo | D127: 6,613,448.86 | E127: 8,542,864.90 | F127: 11,439,327.82 | G127: =(5438822.17/6)*13 -> 11,784,114.70 | H127: =(G127*1.05)+328421.32-5928.84 -> 12,695,812.92 | I127: =H127*(1+Parâmetros!F11)*(1+Parâmetros!F14) -> 15,159,707.60 | J127: =I127*(1+Parâmetros!G11)*(1+Parâmetros!G14) -> 17,407,077.36
A128: 3.3.00.00.00.00.00 | C128: Outras Despesas Correntes - Legislativo | D128: 60,162.96 | E128: 77,098.66 | F128: 99,034.86 | G128: =F128 -> 99,034.86 | H128: =(((E128*(1+Parâmetros!B11)*(1+Parâmetros!C11)*(1+Parâmetros!D11))+(F128*(1+Parâmetros!C11)*(1+Parâmetros!D11)+(G128*(1+Parâmetros!D11))))/3)*(1+Parâmetros!E11)*(1+Parâmetros!E14) -> 121,518.92 | I128: =H128*(1+Parâmetros!F11)*(1+Parâmetros!F14) -> 145,102.27 | J128: =I128*(1+Parâmetros!G11)*(1+Parâmetros!G14) -> 166,613.14
A129: 3.3.00.00.00.00.00 | C129: Outras Despesas Correntes - Restos a Pagar Pagos | D129: =28185.18+149483.17 -> 177,668.35 | E129: =8750+186.43+25157.47 -> 34,093.90 | F129: =94947.21+52555.27 -> 147,502.48 | G129: =185033.93+551516.29 -> 736,550.22 | H129: =G129*1.05 -> 773,377.73 | I129: =((F129+G129+H129)/3)*(1+Parâmetros!F11) -> 574,575.88 | J129: =((G129+H129+I129)/3)*(1+Parâmetros!G11) -> 722,628.00
A130: 3.3.91.00.00.00.00 | C130: Outras Despesas Correntes - INTRAORÇAMENTÁRIAS | H130: =((E130+F130+G130)/3)*(1+Parâmetros!E11) -> 0 | I130: =((F130+G130+H130)/3)*(1+Parâmetros!F11) -> 0 | J130: =((G130+H130+I130)/3)*(1+Parâmetros!G11) -> 0
A131: 4.0.00.00.00.00.00 | C131: DESPESAS DE CAPITAL | D131: =D132+D137+D143 -> 1,355,745.76 | E131: 3,391,925.29 | F131: 3,885,382.57 | G131: 3,662,493.75 | H131: 3,611,254.17 | I131: 3,883,945.16 | J131: 4,417,981.50
A132: 4.4.00.00.00.00.00 | C132: INVESTIMENTOS | D132: =SUM(D133:D136) -> 1,307,083.21 | E132: 3,391,925.29 | F132: 3,618,715.93 | G132: 3,395,827.11 | H132: 3,344,587.53 | I132: 3,706,167.40 | J132: 4,417,981.50
A133: 4.4.00.00.00.00.00 | C133: Investimentos - Executvi / Indiretas | D133: 1,303,627.71 | E133: 2,590,053.34 | F133: =3365557.32-F134 -> 3,341,979.32 | G133: =(618978.39/6)*12+1300000 -> 2,537,956.78 | H133: =G133*1.05 -> 2,664,854.62 | I133: =H133*(1+Parâmetros!F11)*(1+Parâmetros!F20) -> 3,068,704.62 | J133: =I133*(1+Parâmetros!G11)*(1+Parâmetros!G20) -> 3,651,196.44
A134: 4.4.00.00.00.00.00 | C134: Investimentos - Legislativo | D134: 3,455.50 | E134: 12,369.00 | F134: 23,578.00 | G134: =(1050/6)*12 -> 2,100.00 | H134: =(((E134*(1+Parâmetros!B11)*(1+Parâmetros!C11)*(1+Parâmetros!D11))+(F134*(1+Parâmetros!C11)*(1+Parâmetros!D11)+(G134*(1+Parâmetros!D11))))/3)*(1+Parâmetros!E11)*(1+Parâmetros!E20) -> 21,609.85 | I134: =H134*(1+Parâmetros!F11)*(1+Parâmetros!F20) -> 24,884.76 | J134: =I134*(1+Parâmetros!G11)*(1+Parâmetros!G20) -> 29,608.30
A135: 4.4.90.00.00.00.00 | C135: Investimentos - Restos a Pagar Pagos | E135: 789,502.95 | F135: =247914.49+5244.12 -> 253,158.61 | G135: =855770.33 -> 855,770.33 | H135: =((E135+F135+G135)/3)*(1+Parâmetros!E11) -> 658,123.06 | I135: =((F135+G135+H135)/3)*(1+Parâmetros!F11) -> 612,578.03 | J135: =((G135+H135+I135)/3)*(1+Parâmetros!G11) -> 737,176.76
A136: 4.4.91.00.00.00.00 | C136: Investimentos - INTRAORÇAMENTÁRIAS | H136: =((E136+F136+G136)/3)*(1+Parâmetros!E11) -> 0 | I136: =((F136+G136+H136)/3)*(1+Parâmetros!F11) -> 0 | J136: =((G136+H136+I136)/3)*(1+Parâmetros!G11) -> 0
A137: 4.5.00.00.00.00.00 | C137: INVERSÕES FINANCEIRAS | D137: =SUM(D138:D142) -> 48,662.55 | E137: 0 | F137: 0 | G137: 0 | H137: 0 | I137: 0 | J137: 0
A138: 4.5.90.66.00.00.00 | C138: Concessão de Empréstimos e Financiamentos | H138: =(((E138*(1+Parâmetros!B11)*(1+Parâmetros!C11)*(1+Parâmetros!D11))+(F138*(1+Parâmetros!C11)*(1+Parâmetros!D11)+(G138*(1+Parâmetros!D11))))/3)*(1+Parâmetros!E11) -> 0 | I138: =H138*(1+Parâmetros!F11) -> 0 | J138: =I138*(1+Parâmetros!G11) -> 0
A139: 4.5.90.99.00.00.00 | C139: Outras Inversões Financeiras - Executvi / Indiretas | D139: 48,662.55 | H139: =(((E139*(1+Parâmetros!B11)*(1+Parâmetros!C11)*(1+Parâmetros!D11))+(F139*(1+Parâmetros!C11)*(1+Parâmetros!D11)+(G139*(1+Parâmetros!D11))))/3)*(1+Parâmetros!E11) -> 0 | I139: =H139*(1+Parâmetros!F11) -> 0 | J139: =I139*(1+Parâmetros!G11) -> 0
A140: 4.5.90.99.00.00.00 | C140: Outras Inversões Financeiras - Legislativo | H140: =(((E140*(1+Parâmetros!B11)*(1+Parâmetros!C11)*(1+Parâmetros!D11))+(F140*(1+Parâmetros!C11)*(1+Parâmetros!D11)+(G140*(1+Parâmetros!D11))))/3)*(1+Parâmetros!E11) -> 0 | I140: =H140*(1+Parâmetros!F11) -> 0 | J140: =I140*(1+Parâmetros!G11) -> 0
A141: 4.5.90.99.00.00.00 | C141: Outras Inversões Financeiras - Restos a a Pagar Pagos | H141: =((E141+F141+G141)/3)*(1+Parâmetros!E11) -> 0 | I141: =((F141+G141+H141)/3)*(1+Parâmetros!F11) -> 0 | J141: =((G141+H141+I141)/3)*(1+Parâmetros!G11) -> 0
A142: 4.5.91.00.00.00.00 | C142: Inversões Financeiras - INTRAORÇAMENTÁRIAS | H142: =((E142+F142+G142)/3)*(1+Parâmetros!E11) -> 0 | I142: =((F142+G142+H142)/3)*(1+Parâmetros!F11) -> 0 | J142: =((G142+H142+I142)/3)*(1+Parâmetros!G11) -> 0
A143: 4.6.00.00.00.00.00 | C143: AMORTIZAÇÃO DA DÍVIDA PÚBLICA | D143: =SUM(D144:D147) -> 0 | E143: 0 | F143: 266,666.64 | G143: 266,666.64 | H143: 266,666.64 | I143: 177,777.76 | J143: 0
A144: 4.6.00.00.00.00.00 | C144: Amortização da Dívida - Executivo / Indiretas | F144: 266,666.64 | G144: =F144 -> 266,666.64 | H144: =G144 -> 266,666.64 | I144: =(H144/12)*8 -> 177,777.76
A145: 4.6.00.00.00.00.00 | C145: Amortização da Dívida - Legislativo | H145: =(((E145*(1+Parâmetros!B11)*(1+Parâmetros!C11)*(1+Parâmetros!D11))+(F145*(1+Parâmetros!C11)*(1+Parâmetros!D11)+(G145*(1+Parâmetros!D11))))/3)*(1+Parâmetros!E11) -> 0 | I145: =H145*(1+Parâmetros!F11) -> 0 | J145: =I145*(1+Parâmetros!G11) -> 0
A146: 4.6.00.00.00.00.00 | C146: Amortização da Dívida - Restos a Pagar Pagos | H146: =((E146+F146+G146)/3)*(1+Parâmetros!E11) -> 0 | I146: =((F146+G146+H146)/3)*(1+Parâmetros!F11) -> 0 | J146: =((G146+H146+I146)/3)*(1+Parâmetros!G11) -> 0
A147: 4.6.91.00.00.00.00 | C147: Amortização da Dívida - INTRAORÇAMENTÁRIAS | H147: =((E147+F147+G147)/3)*(1+Parâmetros!E11) -> 0 | I147: =((F147+G147+H147)/3)*(1+Parâmetros!F11) -> 0 | J147: =((G147+H147+I147)/3)*(1+Parâmetros!G11) -> 0
C148: TOTAL DAS DESPESAS CONSIDERADAS | D148: =D115+D131 -> 15,345,478.35 | E148: 18,724,076.15 | F148: 25,077,758.28 | G148: 26,873,738.22 | H148: 28,173,000.00 | I148: 33,176,469.60 | J148: 38,001,067.45
C149: Operação de Crédito Externo
C150: RESULTADOS | D150: REALIZADO | E150: =IF(#REF!>0,"REALIZADO","PROJETADO") ->  | F150: =IF(#REF!>0,"REALIZADO","PROJETADO") ->  | G150: =IF(#REF!>0,"REALIZADO","PROJETADO") ->  | H150: PROJETADO | J150: PROJETADO
C151: FISCAIS | D151: 1999 | E151: 2000 | F151: 2001 | G151: 2002 | H151: 2003 | J151: 2004
C153: 1. RECEITA CORRENTE LÍQUIDA | D153: =D8-#REF!-D14+D157-#REF! ->  | E153: =E8-#REF!-E14+E157-#REF! ->  | F153: =F8-#REF!-F14+F157-#REF! ->  | G153: =G8-#REF!-G14+G157-#REF! ->  | H153: =H8-#REF!-H14+H157-#REF! ->  | J153: =J8-#REF!-J14+J157-#REF! -> 
C154: 2. RECEITAS DE TRIBUTOS | D154: =D9 -> 1,287,075 | E154: =E9 -> 1,308,350 | F154: =F9 -> 2,108,530 | G154: =G9 -> 2,292,880 | H154: =H9 -> 2,530,457 | J154: =J9 -> 3,868,693
C155: 3. RECEITAS FINANCEIRAS | D155: =D18+D19+D20+#REF!+#REF!+#REF!+#REF! ->  | E155: =E18+E19+E20+#REF!+#REF!+#REF!+#REF! ->  | F155: =F18+F19+F20+#REF!+#REF!+#REF!+#REF! ->  | G155: =G18+G19+G20+#REF!+#REF!+#REF!+#REF! ->  | H155: =H18+H19+H20+#REF!+#REF!+#REF!+#REF! ->  | J155: =J18+J19+J20+#REF!+#REF!+#REF!+#REF! -> 
C156: 4. RENÚNCIA FISCAL | D156: =#REF! ->  | E156: =#REF! ->  | F156: =#REF! ->  | G156: =#REF! ->  | H156: =#REF! ->  | J156: =#REF! -> 
C157: 5. VALOR LÍQUIDO DO FUNDEF | D157: =#REF!-#REF! ->  | E157: =#REF!-#REF! ->  | F157: =#REF!-#REF! ->  | G157: =#REF!-#REF! ->  | H157: =#REF!-#REF! ->  | J157: =#REF!-#REF! -> 
C158: 6. TRANSFERÊNCIAS DA UNIÃO | D158: =#REF! ->  | E158: =#REF! ->  | F158: =#REF! ->  | G158: =#REF! ->  | H158: =#REF! ->  | J158: =#REF! -> 
C159: 7. TRANSFERÊNCIAS DOS ESTADOS | D159: =#REF! ->  | E159: =#REF! ->  | F159: =#REF! ->  | G159: =#REF! ->  | H159: =#REF! ->  | J159: =#REF! -> 
C160: 8. OPERAÇÕES DE CRÉDITO | D160: =#REF! ->  | E160: =#REF! ->  | F160: =#REF! ->  | G160: =#REF! ->  | H160: =#REF! ->  | J160: =#REF! -> 
C161: 9. AROS | D161: =#REF! ->  | E161: =#REF! ->  | F161: =#REF! ->  | G161: =#REF! ->  | H161: =#REF! ->  | J161: =#REF! -> 
C162: 10. PESSOAL ATIVO | D162: =#REF!+#REF!+D138+D139+D143+#REF!+#REF!+D148+D121+#REF! ->  | E162: =#REF!+#REF!+E138+E139+E143+#REF!+#REF!+E148+E121+#REF! ->  | F162: =#REF!+#REF!+F138+F139+F143+#REF!+#REF!+F148+F121+#REF! ->  | G162: =#REF!+#REF!+G138+G139+G143+#REF!+#REF!+G148+G121+#REF! ->  | H162: =#REF!+#REF!+H138+H139+H143+#REF!+#REF!+H148+H121+#REF! ->  | J162: =#REF!+#REF!+J138+J139+J143+#REF!+#REF!+J148+J121+#REF! -> 
C163: 11. PESSOAL INATIVO | D163: =#REF!+#REF! ->  | E163: =#REF!+#REF! ->  | F163: =#REF!+#REF! ->  | G163: =#REF!+#REF! ->  | H163: =#REF!+#REF! ->  | J163: =#REF!+#REF! -> 
C164: 12. PENSIONISTAS | D164: =D132+D137 -> 1,355,746 | E164: =E132+E137 -> 3,391,925 | F164: =F132+F137 -> 3,618,716 | G164: =G132+G137 -> 3,395,827 | H164: =H132+H137 -> 3,344,588 | J164: =J132+J137 -> 4,417,981
C165: 13. SERVIÇOS DE TERCEIROS | D165: =#REF! ->  | E165: =#REF! ->  | F165: =#REF! ->  | G165: =#REF! ->  | H165: =#REF! ->  | J165: =#REF! -> 
C166: 14. OUTROS CUSTEIOS CORRENTES | D166: =D126+#REF!+#REF!+#REF!+#REF!+#REF!+#REF! ->  | E166: =E126+#REF!+#REF!+#REF!+#REF!+#REF!+#REF! ->  | F166: =F126+#REF!+#REF!+#REF!+#REF!+#REF!+#REF! ->  | G166: =G126+#REF!+#REF!+#REF!+#REF!+#REF!+#REF! ->  | H166: =H126+#REF!+#REF!+#REF!+#REF!+#REF!+#REF! ->  | J166: =J126+#REF!+#REF!+#REF!+#REF!+#REF!+#REF! -> 
C167: 15. INVESTIMENTOS | D167: =#REF! ->  | E167: =#REF! ->  | F167: =#REF! ->  | G167: =#REF! ->  | H167: =#REF! ->  | J167: =#REF! -> 
C168: 16. ENCARGOS DA DÍVIDA | D168: =#REF!+#REF! ->  | E168: =#REF!+#REF! ->  | F168: =#REF!+#REF! ->  | G168: =#REF!+#REF! ->  | H168: =#REF!+#REF! ->  | J168: =#REF!+#REF! -> 
C169: 17. AMORTIZAÇÕES DA DÍVIDA | D169: =#REF!+#REF! ->  | E169: =#REF!+#REF! ->  | F169: =#REF!+#REF! ->  | G169: =#REF!+#REF! ->  | H169: =#REF!+#REF! ->  | J169: =#REF!+#REF! -> 
C170: 18. DESPESAS FINANCEIRAS | D170: =D168+D169 ->  | E170: =E168+E169 -> 
C171: 19. RESULTADO PRIMÁRIO | D171: =((D8+#REF!)-(D155)-((#REF!+#REF!)-D170)) ->  | E171: =((E8+#REF!)-(E155)-((#REF!+#REF!)-E170)) ->  | F171: =((F8+#REF!)-(F155)-((#REF!+#REF!)-F170)) ->  | G171: =((G8+#REF!)-(G155)-((#REF!+#REF!)-G170)) ->  | H171: =((H8+#REF!)-(H155)-((#REF!+#REF!)-H170)) ->  | J171: =((J8+#REF!)-(J155)-((#REF!+#REF!)-J170)) -> 
C172: 20. RESULTADO NOMINAL | D172: =-(D171-(D168-D18-D19-D20-#REF!)) ->  | E172: =-(E171-(E168-E18-E19-E20-#REF!)) ->  | F172: =-(F171-(F168-F18-F19-F20-#REF!)) ->  | G172: =-(G171-(G168-G18-G19-G20-#REF!)) ->  | H172: =-(H171-(H168-H18-H19-H20-#REF!)) ->  | J172: =-(J171-(J168-J18-J19-J20-#REF!)) -> 
A174: NOTA: Conforme consta na página 79 da 14ª Edição do Manual dos Demonstrativos Fiscais, não se aplica, para fins de estimativas de metas fiscais da LDO a necessidade de equilíbrio entre receitas e despesas exigido para a Lei Orçamentária Anual.

Sheet Projeções - RPPS
A1: =Parâmetros!A7 -> Município de : NOVA PÁDUA
A2: =Parâmetros!A8 -> LEI DE DIRETRIZES ORÇAMENTÁRIAS PARA 2025
A3: Tabela 02 - Memória de Cálculo das Estimativas das Receitas específicas do RPPS
J5: Valores em R$ 1,00
A6: Código até 2022 | B6: Código a partir de 2023 | C6: CONTAS | D6: ARRECADADA | E6: ARRECADADA | F6: ARRECADADA | G6: REESTIMADO | H6: PROJETADO | I6: PROJETADO | J6: PROJETADO
C7: CONSOLIDADAS ANUAIS | D7: =Parâmetros!B10-1 -> 2021 | E7: =D7+1 -> 2022 | F7: 2023 | G7: 2024 | H7: 2025 | I7: 2026 | J7: 2027 | K7: OK
A8: 1.0.0.0.00.0.0.00.00.00 | B8: 1.0.0.0.00.0.0 | C8: Receitas Correntes | D8: =SUM(D9:D17) -> 1,458,107.83 | E8: 844,072.69 | F8: 3,549,140.27 | G8: 2,292,262.39 | H8: 2,770,415.28 | I8: 3,054,933.51 | J8: 3,327,664.16
A9: 1.2.1.8.01.0.0.00.00.00 | B9: 1.2.1.5.00.0.0 | C9: Contribuição para o Regime Próprio de Previdência Social - RPPS (dos servidores) | D9: 498,485.70 | E9: 527,514.09 | F9: 627,928.37 | G9: =(312291.4/6)*13 -> 676,631.37 | H9: =(G9*1.1)+4627000-4603950.35 -> 767,344.15 | I9: =H9*(1+Parâmetros!F11)*(1+Parâmetros!F13)*(1+Parâmetros!F18) -> 930,139.54 | J9: =I9*(1+Parâmetros!G11)*(1+Parâmetros!G13)*(1+Parâmetros!G18) -> 1,073,749.15
A10: 1.3.2.1.00.4.0.00.00.00 | B10: 1.3.2.1.04.0.0 | C10: Remuneração dos Recursos do Regime Próprio de Previdência Social - RPPS | D10: 959,622.13 | E10: 316,558.60 | F10: =2915677.68 -> 2,915,677.68 | G10: =((958275.18-151355.49)/6)*12 -> 1,613,839.38 | H10: 2,000,000.00 | I10: =H10*(1+Parâmetros!F11)*(1+Parâmetros!F12) -> 2,121,600.00 | J10: =I10*(1+Parâmetros!G11)*(1+Parâmetros!G12) -> 2,250,593.28
A11: 1.3.6.0.00.0.0.00.00.00 | B11: 1.3.6.1.00.0.0 | C11: Cessão de Direitos / Venda da Folha dos Aposentados e Pensionistas | H11: =(((E11*(1+Parâmetros!B11)*(1+Parâmetros!C11)*(1+Parâmetros!D11))+(F11*(1+Parâmetros!C11)*(1+Parâmetros!D11)+(G11*(1+Parâmetros!D11))))/3)*(1+Parâmetros!E11) -> 0 | I11: =H11*(1+Parâmetros!F11) -> 0 | J11: =I11*(1+Parâmetros!G11) -> 0
A12: 1.3.9.0.00.0.0.00.00.00 | B12: 1.3.9.0.00.0.0 | C12: Demais Receitas Patrimoniais do RPPS | H12: =(((E12*(1+Parâmetros!B11)*(1+Parâmetros!C11)*(1+Parâmetros!D11))+(F12*(1+Parâmetros!C11)*(1+Parâmetros!D11)+(G12*(1+Parâmetros!D11))))/3)*(1+Parâmetros!E11)*(1+Parâmetros!E12) -> 0 | I12: =H12*(1+Parâmetros!F11)*(1+Parâmetros!F12) -> 0 | J12: =I12*(1+Parâmetros!G11)*(1+Parâmetros!G12) -> 0
A13: 1.6.0.0.00.0.0.00.00 | B13: 1.6.9.9.99.0.0 | C13: Demais Serviços | H13: =(((E13*(1+Parâmetros!B11)*(1+Parâmetros!C11)*(1+Parâmetros!D11))+(F13*(1+Parâmetros!C11)*(1+Parâmetros!D11)+(G13*(1+Parâmetros!D11))))/3)*(1+Parâmetros!E11)*(1+Parâmetros!E11) -> 0 | I13: =H13*(1+Parâmetros!F1) -> 0 | J13: =I13*(1+Parâmetros!G11) -> 0
A14: 1.9.1.0.00.0.0.00.00.00 | B14: 1.9.1.1.00.0.0 | C14: Multas Administrativas, Contratuais e Judiciais recebidas pelo RPPS | H14: =(((E14*(1+Parâmetros!B11)*(1+Parâmetros!C11)*(1+Parâmetros!D11))+(F14*(1+Parâmetros!C11)*(1+Parâmetros!D11)+(G14*(1+Parâmetros!D11))))/3)*(1+Parâmetros!E11) -> 0 | I14: =H14*(1+Parâmetros!F11) -> 0 | J14: =I14*(1+Parâmetros!G11) -> 0
A15: 1.9.2.0.00.0.0.00.00 | B15: 1.9.2.2.00.0.0 | C15: Indenizações, Restituições e Ressarcimentos | H15: =(((E15*(1+Parâmetros!B11)*(1+Parâmetros!C11)*(1+Parâmetros!D11))+(F15*(1+Parâmetros!C11)*(1+Parâmetros!D11)+(G15*(1+Parâmetros!D11))))/3)*(1+Parâmetros!E11) -> 0 | I15: =H15*(1+Parâmetros!F11) -> 0 | J15: =I15*(1+Parâmetros!G11) -> 0
A16: 1.9.9.0.03.0.0.00.00.00 | B16: 1.9.9.9.03.0.0 | C16: Compensações Financeiras entre o Regime Geral e os Regimes Próprios de Previdência dos Servidores | H16: =(((E16*(1+Parâmetros!B11)*(1+Parâmetros!C11)*(1+Parâmetros!D11))+(F16*(1+Parâmetros!C11)*(1+Parâmetros!D11)+(G16*(1+Parâmetros!D11))))/3)*(1+Parâmetros!E11) -> 0 | I16: =H16*(1+Parâmetros!F11) -> 0 | J16: =I16*(1+Parâmetros!G11) -> 0
A17: 1.9.9.0.99.0.0.00.00.00 | B17: 1.9.9.9.99.0.0 | C17: Outras Receitas (demais receitas diversas do RPPS) | F17: 5,534.22 | G17: =(826.91/6)*13 -> 1,791.64 | H17: =(((E17*(1+Parâmetros!B11)*(1+Parâmetros!C11)*(1+Parâmetros!D11))+(F17*(1+Parâmetros!C11)*(1+Parâmetros!D11)+(G17*(1+Parâmetros!D11))))/3)*(1+Parâmetros!E11)+298.28 -> 3,071.13 | I17: =H17*(1+Parâmetros!F11) -> 3,193.97 | J17: =I17*(1+Parâmetros!G11) -> 3,321.73
A18: 2.0.0.0.00.0.0.00.00.00 | B18: 2.0.0.0.00.0.0 | C18: Receitas de Capital | D18: =SUM(D19:D24) -> 0 | E18: 0 | F18: 0 | G18: 0 | H18: 0 | I18: 0 | J18: 0
A19: 2.2.1.8.01.1.0.00.00.00 | B19: 2.2.1.1.01.0.0 | C19: Alienação de Investimentos Temporários | H19: =((D19+E19+F19+G19)/4)*(1+Parâmetros!E11) -> 0 | I19: =((E19+F19+G19+H19)/4)*(1+Parâmetros!F11) -> 0 | J19: =((F19+G19+H19+I19)/4)*(1+Parâmetros!G11) -> 0
A20: 2.2.1.8.01.2.0.00.00.00 | B20: 2.2.1.1.02.0.0 | C20: Alienação de Investimenros Permanentes | H20: =((D20+E20+F20+G20)/4)*(1+Parâmetros!E11) -> 0 | I20: =((E20+F20+G20+H20)/4)*(1+Parâmetros!F11) -> 0 | J20: =((F20+G20+H20+I20)/4)*(1+Parâmetros!G11) -> 0
A21: 2.2.1.0.00.0.0.00.00.00 | B21: 2.2.1.0.00.0.0 | C21: Alienação de Bens Móveis | H21: =(((E21*(1+Parâmetros!B11)*(1+Parâmetros!C11)*(1+Parâmetros!D11))+(F21*(1+Parâmetros!C11)*(1+Parâmetros!D11)+(G21*(1+Parâmetros!D11))))/3)*(1+Parâmetros!E11) -> 0 | I21: =H21*(1+Parâmetros!F11) -> 0 | J21: =I21*(1+Parâmetros!G11) -> 0
A22: 2.2.2.0.00.0.0.00.00.00 | B22: 2.2.2.1.01.0.0 | C22: Alienação de Bens Imóveis | H22: =(((E22*(1+Parâmetros!B11)*(1+Parâmetros!C11)*(1+Parâmetros!D11))+(F22*(1+Parâmetros!C11)*(1+Parâmetros!D11)+(G22*(1+Parâmetros!D11))))/3)*(1+Parâmetros!E11) -> 0 | I22: =H22*(1+Parâmetros!F11) -> 0 | J22: =I22*(1+Parâmetros!G11) -> 0
A23: 2.3.0.0.00.0.0.00.00.00 | B23: 2.3.1.1.00.0.0 | C23: Amortização de Empréstimos | H23: =(((E23*(1+Parâmetros!B11)*(1+Parâmetros!C11)*(1+Parâmetros!D11))+(F23*(1+Parâmetros!C11)*(1+Parâmetros!D11)+(G23*(1+Parâmetros!D11))))/3)*(1+Parâmetros!E11) -> 0 | I23: =H23*(1+Parâmetros!F11) -> 0 | J23: =I23*(1+Parâmetros!G11) -> 0
A24: 2.9.9.0.00.1.1.01.00.00 | B24: 2.9.9.9.99.0.0 | C24: Outras Receitas Diretamente Arrecadadas pelo RPPS - Principal | H24: =(((E24*(1+Parâmetros!B11)*(1+Parâmetros!C11)*(1+Parâmetros!D11))+(F24*(1+Parâmetros!C11)*(1+Parâmetros!D11)+(G24*(1+Parâmetros!D11))))/3)*(1+Parâmetros!E11) -> 0 | I24: =H24*(1+Parâmetros!F11) -> 0 | J24: =I24*(1+Parâmetros!G11) -> 0
A25: 7.0.0.0.00.0.0.00.00.00 | B25: 7.0.0.0.00.0.0 | C25: Receitas Correntes Intraorçamentárias | D25: =SUM(D26:D27) -> 1,077,061.15 | E25: =E26+E27 -> 1,080,720.92 | F25: 1,246,404.67 | G25: 1,557,973.19 | H25: 1,856,584.72 | I25: 1,930,848.11 | J25: 2,008,082.03
B26: 7.0.0.0.00.0.0 | C26: Receitas Correntes Intraorçamentárias - Primárias | D26: 1,077,061.15 | E26: 1,080,720.92 | F26: 1,246,404.67 | G26: =(719064.55/6)*13 -> 1,557,973.19 | H26: =((((G26*100)/18)*0.2145)) -> 1,856,584.72 | I26: =H26*(1+Parâmetros!F11) -> 1,930,848.11 | J26: =I26*(1+Parâmetros!G11) -> 2,008,082.03 | IV26: 100.00
B27: 7.0.0.0.00.0.0 | C27: Receitas Correntes Intraorçamentárias - Financeiras/Não Primárias | H27: =(((E27*(1+Parâmetros!B11)*(1+Parâmetros!C11)*(1+Parâmetros!D11))+(F27*(1+Parâmetros!C11)*(1+Parâmetros!D11)+(G27*(1+Parâmetros!D11))))/3)*(1+Parâmetros!E11) -> 0 | I27: =H27*(1+Parâmetros!F11) -> 0 | J27: =I27*(1+Parâmetros!G11) -> 0
A28: 8.0.0.0.00.0.0.00.00.00 | B28: 8.0.0.0.00.0.0 | C28: Receitas de Capital Intraorçamentárias | D28: =SUM(D29:D30) -> 0 | E28: 0 | F28: 0 | G28: 0 | H28: 0 | I28: 0 | J28: 0
B29: 8.0.0.0.00.0.0 | C29: Receitas de Capital Intraorçamentárias - Primárias | H29: =(((E29*(1+Parâmetros!B11)*(1+Parâmetros!C11)*(1+Parâmetros!D11))+(F29*(1+Parâmetros!C11)*(1+Parâmetros!D11)+(G29*(1+Parâmetros!D11))))/3)*(1+Parâmetros!E11) -> 0 | I29: =H29*(1+Parâmetros!F11) -> 0 | J29: =I29*(1+Parâmetros!G11) -> 0
B30: 8.0.0.0.00.0.0 | C30: Receitas de Capital Intraorçamentárias - Financeiras / Não Primárias | H30: =(((E30*(1+Parâmetros!B11)*(1+Parâmetros!C11)*(1+Parâmetros!D11))+(F30*(1+Parâmetros!C11)*(1+Parâmetros!D11)+(G30*(1+Parâmetros!D11))))/3)*(1+Parâmetros!E11) -> 0 | I30: =H30*(1+Parâmetros!F11) -> 0 | J30: =I30*(1+Parâmetros!G11) -> 0
A31: 9.0.0.0.0.00.0.0.00.00 | B31: 9.0.0.0.0.00.0.0 | C31: ( R ) Deduções da Receita - Digitar com Sinal Negativo | D31: =SUM(D32:D34) -> 0 | E31: 0 | F31: 0 | G31: 0 | H31: 0 | I31: 0 | J31: 0
A32: 9.1.3.2.1.00.0.0.00.00 | B32: 9.1.3.2.1.00.0.0 | C32: Deduções da Receita de Rendimentos de Aplicações do RPPS | H32: =(((E32*(1+Parâmetros!B11)*(1+Parâmetros!C11)*(1+Parâmetros!D11))+(F32*(1+Parâmetros!C11)*(1+Parâmetros!D11)+(G32*(1+Parâmetros!D11))))/3)*(1+Parâmetros!E11) -> 0.00 | I32: =H32*(1+Parâmetros!F11) -> 0.00 | J32: =I32*(1+Parâmetros!G11) -> 0.00
A33: 9.1.0.0.0.00.0.0.00.00 | B33: 9.1.0.0.0.00.0.0 | C33: Demais Dedu.da Receita Corrente do RPPS | H33: =(((E33*(1+Parâmetros!B11)*(1+Parâmetros!C11)*(1+Parâmetros!D11))+(F33*(1+Parâmetros!C11)*(1+Parâmetros!D11)+(G33*(1+Parâmetros!D11))))/3)*(1+Parâmetros!E11) -> 0.00 | I33: =H33*(1+Parâmetros!F11) -> 0.00 | J33: =I33*(1+Parâmetros!G11) -> 0.00
A34: 9.2.0.0.0.00.0.0.00.00 | B34: 9.2.0.0.0.00.0.0 | C34: Demais Deduções da Receita de Capital | H34: =(((E34*(1+Parâmetros!B11)*(1+Parâmetros!C11)*(1+Parâmetros!D11))+(F34*(1+Parâmetros!C11)*(1+Parâmetros!D11)+(G34*(1+Parâmetros!D11))))/3)*(1+Parâmetros!E11) -> 0.00 | I34: =H34*(1+Parâmetros!F11) -> 0.00 | J34: =I34*(1+Parâmetros!G11) -> 0.00
C35: TOTAL DAS RECEITAS ARRECADADAS PELO RPPS | D35: =D8+D18+D25+D28+D31 -> 2,535,168.98 | E35: 1,924,793.61 | F35: 4,795,544.94 | G35: 3,850,235.58 | H35: 4,627,000.00 | I35: 4,985,781.62 | J35: 5,335,746.20
A37: =Parâmetros!A7 -> Município de : NOVA PÁDUA
A38: =Parâmetros!A8 -> LEI DE DIRETRIZES ORÇAMENTÁRIAS PARA 2025
A39: Memória de Cálculo das Estimativas de Pagamento das Despesas - do RPPS
J40: Valores em R$ 1,00
A41: Código | C41: Descrição | D41: PAGA | E41: PAGA | F41: PAGA | G41: PAGA(Estim) | H41: PROJETADO | I41: PROJETADO | J41: PROJETADO
D42: =D7 -> 2021 | E42: =D42+1 -> 2022 | F42: 2023 | G42: 2024 | H42: 2025 | I42: 2026 | J42: 2027
A43: 3.0.00.00.00.00.00 | C43: DESPESAS CORRENTES | D43: =D44+D48+D52 -> 1,023,213.85 | E43: 1,090,171.80 | F43: 1,575,408.65 | G43: 1,875,688.90 | H43: 2,000,000.00 | I43: 2,092,790.36 | J43: 2,208,720.89
A44: 3.1.00.00.00.00.00 | C44: PESSOAL E ENCARGOS SOCIAIS | D44: =SUM(D45:D47) -> 886,683.21 | E44: 1,060,585.74 | F44: 1,474,990.91 | G44: 1,753,109.94 | H44: 1,850,000.00 | I44: 1,935,290.36 | J44: 2,043,345.89
A45: 3.1.00.00.00.00.00 | C45: Pessoal do R P P S | D45: 886,683.21 | E45: 1,060,585.74 | F45: 1,474,990.91 | G45: =(843218.1/6.5)*13 -> 1,686,436.20 | H45: =(G45*1.05)+36128.43 -> 1,806,886.44 | I45: =H45*1.05 -> 1,897,230.76 | J45: =I45*1.05 -> 1,992,092.30
A46: 3.1.00.00.00.00.00 | C46: Pessoal - Restos a Pagar Pagos | G46: =66673.74 -> 66,673.74 | H46: =((E46+F46+G46)/3)*(1+Parâmetros!E11)+20000 -> 43,113.56 | I46: =((F46+G46+H46)/3)*(1+Parâmetros!F11) -> 38,059.60 | J46: =((G46+H46+I46)/3)*(1+Parâmetros!G11) -> 51,253.59
A47: 3.1.91.00.00.00.00 | C47: Despesas Com Pessoal - INTRAORÇAMENTÁRIAS | H47: =((E47+F47+G47)/3)*(1+Parâmetros!E11) -> 0 | I47: =((F47+G47+H47)/3)*(1+Parâmetros!F11) -> 0 | J47: =((G47+H47+I47)/3)*(1+Parâmetros!G11) -> 0
A48: 3.2.00.00.00.00.00 | C48: JUROS E ENCARGOS DA DÍVIDA | D48: =SUM(D49:D51) -> 0 | E48: 0 | F48: 0 | G48: 0 | H48: 0 | I48: 0 | J48: 0
A49: 3.2.00.00.00.00.00 | C49: Juros e encargos da Dívida RPPS | H49: =(((E49*(1+Parâmetros!B11)*(1+Parâmetros!C11)*(1+Parâmetros!D11))+(F49*(1+Parâmetros!C11)*(1+Parâmetros!D11)+(G49*(1+Parâmetros!D11))))/3)*(1+Parâmetros!E21) -> 0 | I49: =H49*(1+Parâmetros!F21) -> 0 | J49: =I49*(1+Parâmetros!G21) -> 0
A50: 3.2.00.00.00.00.00 | C50: Juros e encargos da Dívida - Restos a Pagar Pagos | H50: =((E50+F50+G50)/3)*(1+Parâmetros!E11) -> 0 | I50: =((F50+G50+H50)/3)*(1+Parâmetros!F11) -> 0 | J50: =((G50+H50+I50)/3)*(1+Parâmetros!G11) -> 0
A51: 3.2.91.00.00.00.00 | C51: Juros e encargos da Dívida - INTRAORÇAMENTÁRIAS | H51: =((E51+F51+G51)/3)*(1+Parâmetros!E11) -> 0 | I51: =((F51+G51+H51)/3)*(1+Parâmetros!F11) -> 0 | J51: =((G51+H51+I51)/3)*(1+Parâmetros!G11) -> 0
A52: 3.3.00.00.00.00.00 | C52: OUTRAS DESPESAS CORRENTES | D52: =SUM(D53:D55) -> 136,530.64 | E52: 29,586.06 | F52: 100,417.74 | G52: 122,578.96 | H52: 150,000.00 | I52: 157,500.00 | J52: 165,375.00
A53: 3.3.00.00.00.00.00 | C53: Outras Despesas Correntes RPPS | D53: 136,530.64 | E53: 29,586.06 | F53: 92,666.28 | G53: =(61289.48/6)*12 -> 122,578.96 | H53: 150,000.00 | I53: =H53*1.05 -> 157,500.00 | J53: =I53*1.05 -> 165,375.00
A54: 3.3.00.00.00.00.00 | C54: Outras Despesas Correntes - Restos a Pagar Pagos | F54: 7,751.46 | J54: =((G54+H54+I54)/3)*(1+Parâmetros!G11) -> 0
A55: 3.3.91.00.00.00.00 | C55: Outras Despesas Correntes - INTRAORÇAMENTÁRIAS | H55: =((E55+F55+G55)/3)*(1+Parâmetros!E11) -> 0 | I55: =((F55+G55+H55)/3)*(1+Parâmetros!F11) -> 0 | J55: =((G55+H55+I55)/3)*(1+Parâmetros!G11) -> 0
A56: 4.0.00.00.00.00.00 | C56: DESPESAS DE CAPITAL | D56: =D57+D61+D65 -> 0 | E56: 0 | F56: 0 | G56: 0 | H56: 0 | I56: 0 | J56: 0
A57: 4.4.00.00.00.00.00 | C57: INVESTIMENTOS | D57: =SUM(D58:D60) -> 0 | E57: 0 | F57: 0 | G57: 0 | H57: 0 | I57: 0 | J57: 0
A58: 4.4.00.00.00.00.00 | C58: Investimentos RPPS | H58: =(((E58*(1+Parâmetros!B11)*(1+Parâmetros!C11)*(1+Parâmetros!D11))+(F58*(1+Parâmetros!C11)*(1+Parâmetros!D11)+(G58*(1+Parâmetros!D11))))/3)*(1+Parâmetros!E11)*(1+Parâmetros!E20) -> 0 | I58: =H58*(1+Parâmetros!F11)*(1+Parâmetros!F20) -> 0 | J58: =I58*(1+Parâmetros!G11)*(1+Parâmetros!G20) -> 0
A59: 4.4.91.00.00.00.00 | C59: Investimentos - Restos a Pagar Pagos | H59: =((E59+F59+G59)/3)*(1+Parâmetros!E11) -> 0 | I59: =((F59+G59+H59)/3)*(1+Parâmetros!F11) -> 0 | J59: =((G59+H59+I59)/3)*(1+Parâmetros!G11) -> 0
A60: 4.4.91.00.00.00.00 | C60: Investimentos - INTRAORÇAMENTÁRIAS | H60: =((E60+F60+G60)/3)*(1+Parâmetros!E11) -> 0 | I60: =((F60+G60+H60)/3)*(1+Parâmetros!F11) -> 0 | J60: =((G60+H60+I60)/3)*(1+Parâmetros!G11) -> 0
A61: 4.5.00.00.00.00.00 | C61: INVERSÕES FINANCEIRAS | D61: =SUM(D62:D64) -> 0 | E61: 0 | F61: 0 | G61: 0 | H61: 0 | I61: 0 | J61: 0
A62: 4.5.90.99.00.00.00 | C62: Outras Inversões Financeiras - RPPS | H62: =(((E62*(1+Parâmetros!B11)*(1+Parâmetros!C11)*(1+Parâmetros!D11))+(F62*(1+Parâmetros!C11)*(1+Parâmetros!D11)+(G62*(1+Parâmetros!D11))))/3)*(1+Parâmetros!E11) -> 0 | I62: =H62*(1+Parâmetros!F11) -> 0 | J62: =I62*(1+Parâmetros!G11) -> 0
A63: 4.5.90.99.00.00.00 | C63: Outras Inversões Financeiras - Restos a a Pagar Pagos | H63: =((E63+F63+G63)/3)*(1+Parâmetros!E11) -> 0 | I63: =((F63+G63+H63)/3)*(1+Parâmetros!F11) -> 0 | J63: =((G63+H63+I63)/3)*(1+Parâmetros!G11) -> 0
A64: 4.5.91.00.00.00.00 | C64: Inversões Financeiras - INTRAORÇAMENTÁRIAS | H64: =((E64+F64+G64)/3)*(1+Parâmetros!E11) -> 0 | I64: =((F64+G64+H64)/3)*(1+Parâmetros!F11) -> 0 | J64: =((G64+H64+I64)/3)*(1+Parâmetros!G11) -> 0
A65: 4.6.00.00.00.00.00 | C65: AMORTIZAÇÃO DA DÍVIDA PÚBLICA | D65: =SUM(D66:D68) -> 0 | E65: 0 | F65: 0 | G65: 0 | H65: 0 | I65: 0 | J65: 0
A66: 4.6.00.00.00.00.00 | C66: Amortização da Dívida - RPPS | H66: =(((E66*(1+Parâmetros!B11)*(1+Parâmetros!C11)*(1+Parâmetros!D11))+(F66*(1+Parâmetros!C11)*(1+Parâmetros!D11)+(G66*(1+Parâmetros!D11))))/3)*(1+Parâmetros!E11) -> 0 | I66: =H66*(1+Parâmetros!F11) -> 0 | J66: =I66*(1+Parâmetros!G11) -> 0
A67: 4.6.00.00.00.00.00 | C67: Amortização da Dívida - Restos a Pagar Pagos | H67: =((E67+F67+G67)/3)*(1+Parâmetros!E11) -> 0 | I67: =((F67+G67+H67)/3)*(1+Parâmetros!F11) -> 0 | J67: =((G67+H67+I67)/3)*(1+Parâmetros!G11) -> 0
A68: 4.6.91.00.00.00.00 | C68: Amortização da Dívida - INTRAORÇAMENTÁRIAS | H68: =((E68+F68+G68)/3)*(1+Parâmetros!E11) -> 0 | I68: =((F68+G68+H68)/3)*(1+Parâmetros!F11) -> 0 | J68: =((G68+H68+I68)/3)*(1+Parâmetros!G11) -> 0
C69: TOTAL DAS DESPESAS CONSIDERADAS | D69: =D43+D56 -> 1,023,213.85 | E69: 1,090,171.80 | F69: 1,575,408.65 | G69: 1,875,688.90 | H69: 2,000,000.00 | I69: 2,092,790.36 | J69: 2,208,720.89
C70: Operação de Crédito Externo
C71: RESULTADOS | D71: REALIZADO | E71: =IF(#REF!>0,"REALIZADO","PROJETADO") ->  | F71: =IF(#REF!>0,"REALIZADO","PROJETADO") ->  | G71: =IF(#REF!>0,"REALIZADO","PROJETADO") ->  | H71: PROJETADO | J71: PROJETADO
C72: FISCAIS | D72: 1999 | E72: 2000 | F72: 2001 | G72: 2002 | H72: 2,003.00 | J72: 2004
C74: 1. RECEITA CORRENTE LÍQUIDA | D74: =D8-#REF!-#REF!+D78-#REF! ->  | E74: =E8-#REF!-#REF!+E78-#REF! ->  | F74: =F8-#REF!-#REF!+F78-#REF! ->  | G74: =G8-#REF!-#REF!+G78-#REF! ->  | H74: =H8-#REF!-#REF!+H78-#REF! ->  | J74: =J8-#REF!-#REF!+J78-#REF! -> 
C75: 2. RECEITAS DE TRIBUTOS | D75: =#REF! ->  | E75: =#REF! ->  | F75: =#REF! ->  | G75: =#REF! ->  | H75: =#REF! ->  | J75: =#REF! -> 
C76: 3. RECEITAS FINANCEIRAS | D76: =#REF!+#REF!+#REF!+#REF!+#REF!+#REF!+#REF! ->  | E76: =#REF!+#REF!+#REF!+#REF!+#REF!+#REF!+#REF! ->  | F76: =#REF!+#REF!+#REF!+#REF!+#REF!+#REF!+#REF! ->  | G76: =#REF!+#REF!+#REF!+#REF!+#REF!+#REF!+#REF! ->  | H76: =#REF!+#REF!+#REF!+#REF!+#REF!+#REF!+#REF! ->  | J76: =#REF!+#REF!+#REF!+#REF!+#REF!+#REF!+#REF! -> 
C77: 4. RENÚNCIA FISCAL | D77: =#REF! ->  | E77: =#REF! ->  | F77: =#REF! ->  | G77: =#REF! ->  | H77: =#REF! ->  | J77: =#REF! -> 
C78: 5. VALOR LÍQUIDO DO FUNDEF | D78: =#REF!-#REF! ->  | E78: =#REF!-#REF! ->  | F78: =#REF!-#REF! ->  | G78: =#REF!-#REF! ->  | H78: =#REF!-#REF! ->  | J78: =#REF!-#REF! -> 
C79: 6. TRANSFERÊNCIAS DA UNIÃO | D79: =#REF! ->  | E79: =#REF! ->  | F79: =#REF! ->  | G79: =#REF! ->  | H79: =#REF! ->  | J79: =#REF! -> 
C80: 7. TRANSFERÊNCIAS DOS ESTADOS | D80: =#REF! ->  | E80: =#REF! ->  | F80: =#REF! ->  | G80: =#REF! ->  | H80: =#REF! ->  | J80: =#REF! -> 
C81: 8. OPERAÇÕES DE CRÉDITO | D81: =#REF! ->  | E81: =#REF! ->  | F81: =#REF! ->  | G81: =#REF! ->  | H81: =#REF! ->  | J81: =#REF! -> 
C82: 9. AROS | D82: =#REF! ->  | E82: =#REF! ->  | F82: =#REF! ->  | G82: =#REF! ->  | H82: =#REF! ->  | J82: =#REF! -> 
C83: 10. PESSOAL ATIVO | D83: =#REF!+#REF!+#REF!+#REF!+D65+#REF!+#REF!+D69+D48+#REF! ->  | E83: =#REF!+#REF!+#REF!+#REF!+E65+#REF!+#REF!+E69+E48+#REF! ->  | F83: =#REF!+#REF!+#REF!+#REF!+F65+#REF!+#REF!+F69+F48+#REF! ->  | G83: =#REF!+#REF!+#REF!+#REF!+G65+#REF!+#REF!+G69+G48+#REF! ->  | H83: =#REF!+#REF!+#REF!+#REF!+H65+#REF!+#REF!+H69+H48+#REF! ->  | J83: =#REF!+#REF!+#REF!+#REF!+J65+#REF!+#REF!+J69+J48+#REF! -> 
C84: 11. PESSOAL INATIVO | D84: =#REF!+#REF! ->  | E84: =#REF!+#REF! ->  | F84: =#REF!+#REF! ->  | G84: =#REF!+#REF! ->  | H84: =#REF!+#REF! ->  | J84: =#REF!+#REF! -> 
C85: 12. PENSIONISTAS | D85: =D57+D61 -> 0 | E85: =E57+E61 -> 0 | F85: =F57+F61 -> 0 | G85: =G57+G61 -> 0 | H85: =H57+H61 -> 0 | J85: =J57+J61 -> 0
C86: 13. SERVIÇOS DE TERCEIROS | D86: =#REF! ->  | E86: =#REF! ->  | F86: =#REF! ->  | G86: =#REF! ->  | H86: =#REF! ->  | J86: =#REF! -> 
C87: 14. OUTROS CUSTEIOS CORRENTES | D87: =D52+#REF!+#REF!+#REF!+#REF!+#REF!+#REF! ->  | E87: =E52+#REF!+#REF!+#REF!+#REF!+#REF!+#REF! ->  | F87: =F52+#REF!+#REF!+#REF!+#REF!+#REF!+#REF! ->  | G87: =G52+#REF!+#REF!+#REF!+#REF!+#REF!+#REF! ->  | H87: =H52+#REF!+#REF!+#REF!+#REF!+#REF!+#REF! ->  | J87: =J52+#REF!+#REF!+#REF!+#REF!+#REF!+#REF! -> 
C88: 15. INVESTIMENTOS | D88: =#REF! ->  | E88: =#REF! ->  | F88: =#REF! ->  | G88: =#REF! ->  | H88: =#REF! ->  | J88: =#REF! -> 
C89: 16. ENCARGOS DA DÍVIDA | D89: =#REF!+#REF! ->  | E89: =#REF!+#REF! ->  | F89: =#REF!+#REF! ->  | G89: =#REF!+#REF! ->  | H89: =#REF!+#REF! ->  | J89: =#REF!+#REF! -> 
C90: 17. AMORTIZAÇÕES DA DÍVIDA | D90: =#REF!+#REF! ->  | E90: =#REF!+#REF! ->  | F90: =#REF!+#REF! ->  | G90: =#REF!+#REF! ->  | H90: =#REF!+#REF! ->  | J90: =#REF!+#REF! -> 
C91: 18. DESPESAS FINANCEIRAS | D91: =D89+D90 ->  | E91: =E89+E90 -> 
C92: 19. RESULTADO PRIMÁRIO | D92: =((D8+#REF!)-(D76)-((#REF!+#REF!)-D91)) ->  | E92: =((E8+#REF!)-(E76)-((#REF!+#REF!)-E91)) ->  | F92: =((F8+#REF!)-(F76)-((#REF!+#REF!)-F91)) ->  | G92: =((G8+#REF!)-(G76)-((#REF!+#REF!)-G91)) ->  | H92: =((H8+#REF!)-(H76)-((#REF!+#REF!)-H91)) ->  | J92: =((J8+#REF!)-(J76)-((#REF!+#REF!)-J91)) -> 
C93: 20. RESULTADO NOMINAL | D93: =-(D92-(D89-#REF!-#REF!-#REF!-#REF!)) ->  | E93: =-(E92-(E89-#REF!-#REF!-#REF!-#REF!)) ->  | F93: =-(F92-(F89-#REF!-#REF!-#REF!-#REF!)) ->  | G93: =-(G92-(G89-#REF!-#REF!-#REF!-#REF!)) ->  | H93: =-(H92-(H89-#REF!-#REF!-#REF!-#REF!)) ->  | J93: =-(J92-(J89-#REF!-#REF!-#REF!-#REF!)) -> 
H94: =4627000-H69 -> 2,627,000.00 | I94: =4627000-I69 -> 2,534,209.64 | J94: 2,418,279.11
H95: 200,000.00
H96: =H69+H94+Projeções!H148+H95 -> 33,000,000.00

Sheet RCL
A1: =Parâmetros!A7 -> Município de : NOVA PÁDUA
A2: =Parâmetros!A8 -> LEI DE DIRETRIZES ORÇAMENTÁRIAS PARA 2025
A3: Tabela 03 - Estimativas para a Receita Corrente Líquida
A5: ESPECIFICAÇÃO | B5: =Parâmetros!$E$10 -> 2025 | C5: =B5+1 -> 2026 | D5: =C5+1 -> 2027
A6: I - RECEITAS CORRENTES (Exceto Intraorçamentárias e recursos do RPPS) | B6: =Projeções!H8 -> 32,321,166.70 | C6: =Projeções!I8 -> 37,164,916.99 | D6: =Projeções!J8 -> 41,532,442.25
A7: II - DEDUÇÕES
A8: Deduções da Receita Corrente | B8: =-(Projeções!H102+Projeções!H103+Projeções!H104) -> 4,426,992.22 | C8: =-(Projeções!I102+Projeções!I103+Projeções!I104) -> 5,049,045.11 | D8: =-(Projeções!J102+Projeções!J103+Projeções!J104) -> 5,607,873.99
A9: Outras deduções | B9: 0 | C9: =B9*(1+Parâmetros!F11) -> 0 | D9: =C9*(1+Parâmetros!G11) -> 0
A10: IV - RECEITA CORRENTE LÍQUIDA PREVISTA (I-II+III) | B10: =B6-B8-B9 -> 27,894,174.48 | C10: =C6-C8-C9 -> 32,115,871.88 | D10: =D6-D8-D9 -> 35,924,568.26
A11: (-) Recursos de Emendas Parlamentares Individuais (código de natureza 1.7.1.0.00.00.00 com complemento de vínculo 3110) | C11: =B11*(1+Parâmetros!F11) -> 0 | D11: =C11*(1+Parâmetros!G11) -> 0
A12: V - Receita Corrente Líquida para Fins de Endividamento | B12: =B10-B11 -> 27,894,174.48 | C12: =C10-C11 -> 32,115,871.88 | D12: =D10-D11 -> 35,924,568.26
A13: (-) Recursos de Emendas Parlamentares de Bancada (código de natureza 1.7.1.0.00.00.00 com complemento de vínculo 3120) | C13: =B13*(1+Parâmetros!F11) -> 0 | D13: =C13*(1+Parâmetros!G11) -> 0
A14: VI - Receita Corrente Líquida p/Despesas com Pessoal | B14: =B12-B13 -> 27,894,174.48 | C14: =C12-C13 -> 32,115,871.88 | D14: =D12-D13 -> 35,924,568.26

Sheet Pessoal
A1: =Parâmetros!A7 -> Município de : NOVA PÁDUA
A2: =Parâmetros!A8 -> LEI DE DIRETRIZES ORÇAMENTÁRIAS PARA 2025
A3: Tabela 04 - Estimativa de Limites de Gastos com Pessoal do Poder Executivo e Legislativo para o período de 2025 a 2027
A5: PODER EXECUTIVO
B6: =Parâmetros!E10 -> 2025 | C6: =Parâmetros!F10 -> 2026 | D6: =Parâmetros!G10 -> 2027
A7: Limite Máximo Legal - 54 % da RCL (alínea “b” do inciso III do artigo 20 da LRF) | B7: =RCL!B14*0.54 -> 15,062,854.22 | C7: =RCL!C14*0.54 -> 17,342,570.82 | D7: =RCL!D14*0.54 -> 19,399,266.86
A8: Limite Prudencial - 51,30 % da RCL (parágrafo único do artigo 22 daLRF) | B8: =B7*0.95 -> 14,309,711.51 | C8: =C7*0.95 -> 16,475,442.28 | D8: =D7*0.95 -> 18,429,303.52
A9: Limite de Alerta - 48,60 % da RCL (inciso II do § 1º do artigo 59 da LRF) | B9: =B7*0.9 -> 13,556,568.80 | C9: =C7*0.9 -> 15,608,313.74 | D9: =D7*0.9 -> 17,459,340.17
A12: PODER LEGISLATIVO
B13: =Parâmetros!E10 -> 2025 | C13: =Parâmetros!F10 -> 2026 | D13: =Parâmetros!G10 -> 2027
A14: Limite Máximo Legal - 6 % da RCL (alínea “b” do inciso III do artigo 20 da LRF) | B14: =RCL!B14*0.06 -> 1,673,650.47 | C14: =RCL!C14*0.06 -> 1,926,952.31 | D14: =RCL!D14*0.06 -> 2,155,474.10
A15: Limite Prudencial - 5,70 % da RCL (parágrafo único do artigo 22 daLRF) | B15: =B14*0.95 -> 1,589,967.95 | C15: =C14*0.95 -> 1,830,604.70 | D15: =D14*0.95 -> 2,047,700.39
A16: Limite de Alerta - 5,40 % da RCL (inciso II do § 1º do artigo 59 da LRF) | B16: =B14*0.9 -> 1,506,285.42 | C16: =C14*0.9 -> 1,734,257.08 | D16: =D14*0.9 -> 1,939,926.69

Sheet Dívida
A1: =Parâmetros!A7 -> Município de : NOVA PÁDUA
A2: =Parâmetros!A8 -> LEI DE DIRETRIZES ORÇAMENTÁRIAS PARA 2025
A3: TABELA 05 - Demonstrativo da Evolução da Dívida Consolidada Líquida
A5: Exercício | B5: =Parâmetros!B10 -> 2,022 | C5: =B5+1 -> 2,023 | D5: =C5+1 -> 2,024 | E5: =D5+1 -> 2,025 | F5: =E5+1 -> 2,026 | G5: =F5+1 -> 2,027
B6: Saldo | C6: Saldo | D6: Reestimativa | E6: Previsão (Saldo Médio) | F6: Previsão (Saldo Médio) | G6: Previsão (Saldo Médio)
A7: DÍVIDA CONSOLIDADA (I) | B7: =B8+B9+B10 -> 933,333.36 | C7: 666,666.72 | D7: 443,669.31 | E7: 220,671.90 | F7: 0 | G7: 0
A8: Dívida Mobiliária | E8: =(B8+C8+D8)/3 -> 0 | F8: 0 | G8: 0
A9: Dívida Contratual (inclusive parcelamentos) | B9: 933,333.36 | C9: 666,666.72 | D9: =C9-C22 -> 443,669.31 | E9: =D9-C22 -> 220,671.90 | F9: 0 | G9: 0
A10: Precatórios posteriores a 05-05-2000 | B10: 0 | C10: 0 | D10: 0 | E10: 0 | F10: 0 | G10: 0
A11: DISPONIBILIDADES DE CAIXA (II) | B11: =B12-B13+B14 -> 3,259,155.70 | C11: 4,240,529.08 | D11: 3,053,349.67 | E11: 3,517,678.15 | F11: 3,603,852.30 | G11: 3,391,626.71
A12: Disponibilidade da Caixa Bruta - Excet RPPS | B12: 3,292,228.83 | C12: 5,314,470.51 | D12: =((C12+B12)/2)-1000000 -> 3,303,349.67 | E12: =(B12+C12+D12)/3 -> 3,970,016.34 | F12: 4,195,945.51 | G12: 3,823,103.84
A13: (-) Restos a Pagar Processados - Excto restos do RPPS | B13: 170.50 | C13: 851,176.65 | D13: 200,000.00 | E13: 350,449.05 | F13: 467,208.57 | G13: 339,219.21
A14: (-) Depósitos restituíveis | B14: (32,902.63) | C14: (222,764.78) | D14: (50,000.00) | E14: (101,889.14) | F14: (124,884.64) | G14: (92,257.93)
A15: DIVIDA CONSOLIDADA LÍQUIDA (III = I - II) | B15: =B7-B11 -> (2,325,822.34) | C15: (3,573,862.36) | D15: (2,609,680.36) | E15: (3,297,006.25) | F15: (3,603,852.30) | G15: (3,391,626.71)
A16: Previsão de comprometimento da RCL com a Dívida Consolidada Líquida | E16: =E15/RCL!B12 -> -11.82% | F16: =F15/RCL!C12 -> -11.22% | G16: =G15/RCL!D12 -> -9.44%
A18: Cronograma Anual de Operações de Crédito e de Amortização e Serviço da Dívida | G18: Valores em R$
A19: Operações de Crédito / Pagamentos | B19: =Parâmetros!B10 -> 2,022 | C19: =B19+1 -> 2,023 | D19: =C19+1 -> 2,024 | E19: =D19+1 -> 2,025 | F19: =E19+1 -> 2,026 | G19: =F19+1 -> 2,027
B20: Realizado | C20: Realizado | D20: Reestimativa | E20: Previsão | F20: Previsão | G20: Previsão
A21: 2.1 - Operações de Crédito | B21: 227,000.00 | C21: =Projeções!F77 -> 0 | D21: =Projeções!G77 -> 0 | G21: 0
A22: 2.2 Encargos - Exceto RPPS | B22: 262,283.51 | C22: =Projeções!F121 -> 222,997.41 | D22: =Projeções!G121 -> 222,997.41 | E22: =Projeções!H121 -> 176,014.44 | F22: 0 | G22: 0
A23: 2.3 Amortizações - Exceto RPPS | B23: 266,666.64 | C23: =Projeções!F143 -> 266,666.64 | D23: =Projeções!G143 -> 266,666.64 | E23: =Projeções!H143 -> 266,666.64 | F23: 0 | G23: =Projeções!J143 -> 0
A24: 2.2.3 Dívida Mobiliária
A25: Fonte: Demonstrativo divida fundada- rgf

Sheet Dem-1-Metas
A1: =Parâmetros!A7 -> Município de : NOVA PÁDUA
A2: LEI DE DIRETRIZES ORÇAMENTÁRIAS
A3: ANEXO DE METAS FISCAIS
A4: METAS ANUAIS
A5: =Parâmetros!E10 -> 2025
A6: AMF - Demonstrativo 1 (LRF, art. 4º, § 1º) | J6: R$ 1.00
A7: ESPECIFICAÇÃO | B7: =Parâmetros!E10 -> 2025 | F7: =B7+1 -> 2026 | J7: =F7+1 -> 2027
B8: Valor | C8: Valor | D8: % PIB | E8: % RCL | F8: Valor | G8: Valor | H8: % PIB | I8: % RCL | J8: Valor | K8: Valor | L8: % PIB | M8: % RCL
B9: Corrente | C9: Constante | D9: (a / PIB) | E9: (a / RCL) | F9: Corrente | G9: Constante | H9: (b / PIB) | I9: (b / RCL) | J9: Corrente | K9: Constante | L9: (c / PIB) | M9: (c / RCL)
B10: (a) | D10: x 100 | E10: x 100 | F10: (b) | H10: x 100 | I10: x 100 | J10: (c) | L10: x 100 | M10: x 100
A11: Receita Total (Exceto Fontes RPPS) | B11: =Projeções!H107 -> 28,373,000.00 | C11: =B11/(1+Parâmetros!E11) -> 27,281,730.77 | D11: Preenchimento Opcional Cfe. Item 02.01.03.01 da 14ª Edição do MDF | E11: =B11/RCL!B12 -> 101.72% | F11: =Projeções!I107 -> 32,620,624.07 | G11: =F11/((1+Parâmetros!E11)*(1+Parâmetros!F11)) -> 30,159,600.66 | H11: Preenchimento Opcional Cfe. Item 02.01.03.01 da 14ª Edição do MDF | I11: =F11/RCL!C12 -> 101.57% | J11: =Projeções!J107 -> 36,456,696.01 | K11: =J11/((1+Parâmetros!E11)*(1+Parâmetros!F11)*(1+Parâmetros!G11)) -> 32,409,870.01 | L11: Preenchimento Opcional Cfe. Item 02.01.03.01 da 14ª Edição do MDF | M11: =J11/RCL!D12 -> 101.48%
A12: Receitas Primárias (Exceto Fontes RPPS) - I | B12: =B13+B17 -> 27,928,995.53 | C12: =C13+C17 -> 29,890,025.32 | E12: =B12/RCL!B12 -> 100.12% | F12: =F13+F17 -> 32,150,924.88 | G12: =F12/((1+Parâmetros!E11)*(1+Parâmetros!F11)) -> 29,725,337.36 | I12: =F12/RCL!C12 -> 100.11% | J12: =J13+J17 -> 35,959,791.91 | K12: =K13+K17 -> 31,968,124.07 | M12: =J12/RCL!D12 -> 100.10%
A13: Receitas Primárias Correntes | B13: =B14+B15+B16 -> 27,512,706.67 | C13: =C14+C18 -> 29,489,747.58 | E13: =B13/RCL!B12 -> 98.63% | F13: =F14+F15+F16 -> 31,711,210.83 | G13: =G14+G15+G16 -> 29,318,797.00 | I13: =F13/RCL!C12 -> 98.74% | J13: =J14+J15+J16 -> 35,495,303.82 | K13: =K14+K15+K16 -> 31,555,195.84 | M13: =J13/RCL!D12 -> 98.81%
A14: Impostos, Taxas e Contribuições de Melhoria | B14: =Projeções!H9+Projeções!H102 -> 2,496,337.48 | C14: =B14/(1+Parâmetros!E11) -> 2,400,324.50 | E14: =B14/RCL!B12 -> 8.95% | F14: =Projeções!I9+Projeções!I102 -> 3,228,328.82 | G14: =F14/((1+Parâmetros!E11)*(1+Parâmetros!F11)) -> 2,984,771.47 | I14: =F14/RCL!C12 -> 10.05% | J14: =Projeções!J9+Projeções!J102 -> 3,831,789.67 | K14: =J14/((1+Parâmetros!E11)*(1+Parâmetros!F11)*(1+Parâmetros!G11)) -> 3,406,447.06 | M14: =J14/RCL!D12 -> 10.67%
A15: Transferências Correntes | B15: =Projeções!H37+Projeções!H103 -> 23,835,374.67 | C15: =B15/(1+Parâmetros!E11) -> 22,918,629.49 | E15: =B15/RCL!B12 -> 85.45% | F15: =Projeções!I37+Projeções!I103 -> 27,232,350.68 | G15: =F15/((1+Parâmetros!E11)*(1+Parâmetros!F11)) -> 25,177,839.02 | I15: =F15/RCL!C12 -> 84.79% | J15: =Projeções!J37+Projeções!J103 -> 30,339,308.88 | K15: =J15/((1+Parâmetros!E11)*(1+Parâmetros!F11)*(1+Parâmetros!G11)) -> 26,971,535.11 | M15: =J15/RCL!D12 -> 84.45%
A16: Demais Receitas Primárias Correntes | B16: =(Projeções!H8+Projeções!H95+Projeções!H102+Projeções!H103+Projeções!H104)-Projeções!H24-Projeções!H35-Projeções!H68-Projeções!H74-Projeções!H97-B14-B15 -> 1,180,994.52 | C16: =B16/(1+Parâmetros!E11) -> 1,135,571.66 | E16: =B16/RCL!B12 -> 4.23% | F16: =(Projeções!I8+Projeções!I95+Projeções!I102+Projeções!I103+Projeções!I104)-Projeções!I24-Projeções!I35-Projeções!I68-Projeções!I74-Projeções!I97-F14-F15 -> 1,250,531.33 | G16: =F16/((1+Parâmetros!E11)*(1+Parâmetros!F11)) -> 1,156,186.51 | I16: =F16/RCL!C12 -> 3.89% | J16: =(Projeções!J8+Projeções!J95+Projeções!J102+Projeções!J103+Projeções!J104)-Projeções!J24-Projeções!J35-Projeções!J68-Projeções!J74-Projeções!J97-J14-J15 -> 1,324,205.28 | K16: =J16/((1+Parâmetros!E11)*(1+Parâmetros!F11)*(1+Parâmetros!G11)) -> 1,177,213.67 | M16: =J16/RCL!D12 -> 3.69%
A17: Receitas Primárias de Capital | B17: =Projeções!H76+Projeções!H98+Projeções!H105-Projeções!H77-Projeções!H79-Projeções!H80-Projeções!H83-Projeções!H94-Projeções!H100 -> 416,288.85 | C17: =B17/(1+Parâmetros!E11) -> 400,277.74 | E17: =B17/RCL!B12 -> 1.49% | F17: =Projeções!I76+Projeções!I98+Projeções!I105-Projeções!I77-Projeções!I79-Projeções!I80-Projeções!I83-Projeções!I94-Projeções!I100 -> 439,714.05 | G17: =F17/((1+Parâmetros!E11)*(1+Parâmetros!F11)) -> 406,540.36 | I17: =F17/RCL!C12 -> 1.37% | J17: =Projeções!J76+Projeções!J98+Projeções!J105-Projeções!J77-Projeções!J79-Projeções!J80-Projeções!J83-Projeções!J94-Projeções!J100 -> 464,488.09 | K17: =J17/((1+Parâmetros!E11)*(1+Parâmetros!F11)*(1+Parâmetros!G11)) -> 412,928.22 | M17: =J17/RCL!D12 -> 1.29%
A18: Despesa Total (Exceto Fontes RPPS) | B18: =Projeções!H148 -> 28,173,000.00 | C18: =B18/(1+Parâmetros!E11) -> 27,089,423.07 | E18: =B18/RCL!B12 -> 101.00% | F18: =Projeções!I148 -> 33,176,469.60 | G18: =F18/((1+Parâmetros!E11)*(1+Parâmetros!F11)) -> 30,673,511.10 | I18: =F18/RCL!C12 -> 103.30% | J18: =Projeções!J148 -> 38,001,067.45 | K18: =J18/((1+Parâmetros!E11)*(1+Parâmetros!F11)*(1+Parâmetros!G11)) -> 33,782,810.58 | M18: =J18/RCL!D12 -> 105.78%
A19: Despesas Primárias (Exceto Fontes RPPS) - II | B19: =B20+B23+B24 -> 27,730,318.91 | C19: =C20+C23+C24 -> 26,663,768.19 | E19: =B19/RCL!B12 -> 99.41% | F19: =F20+F23+F24 -> 32,806,836.10 | G19: =G20+G23+G24 -> 30,331,764.15 | I19: =F19/RCL!C12 -> 102.15% | J19: =J20+J23+J24 -> 37,792,424.33 | K19: =K20+K23+K24 -> 33,597,327.61 | M19: =J19/RCL!D12 -> 105.20%
A20: Despesas Primárias Correntes | B20: =B21+B22 -> 23,578,048.79 | C20: =C21+C22 -> 22,671,200.76 | E20: =B20/RCL!B12 -> 84.53% | F20: =F21+F22 -> 28,479,895.60 | G20: =G21+G22 -> 26,331,264.42 | I20: =F20/RCL!C12 -> 88.68% | J20: =J21+J22 -> 32,591,819.55 | K20: =K21+K22 -> 28,974,008.90 | M20: =J20/RCL!D12 -> 90.72%
A21: Pessoal e Encargos Sociais | B21: =Projeções!H116-Projeções!H119 -> 10,760,716.95 | C21: =B21/(1+Parâmetros!E11) -> 10,346,843.22 | E21: =B21/RCL!B12 -> 38.58% | F21: =Projeções!I116-Projeções!I119 -> 13,175,085.72 | G21: =F21/((1+Parâmetros!E11)*(1+Parâmetros!F11)) -> 12,181,107.36 | I21: =F21/RCL!C12 -> 41.02% | J21: =Projeções!J116-Projeções!J119 -> 15,018,129.04 | K21: =J21/((1+Parâmetros!E11)*(1+Parâmetros!F11)*(1+Parâmetros!G11)) -> 13,351,062.03 | M21: =J21/RCL!D12 -> 41.80%
A22: Outras Despesas Correntes | B22: =Projeções!H126-Projeções!H129 -> 12,817,331.84 | C22: =B22/(1+Parâmetros!E11) -> 12,324,357.54 | E22: =B22/RCL!B12 -> 45.95% | F22: =Projeções!I126-Projeções!I129 -> 15,304,809.87 | G22: =F22/((1+Parâmetros!E11)*(1+Parâmetros!F11)) -> 14,150,157.06 | I22: =F22/RCL!C12 -> 47.65% | J22: =Projeções!J126-Projeções!J129 -> 17,573,690.50 | K22: =J22/((1+Parâmetros!E11)*(1+Parâmetros!F11)*(1+Parâmetros!G11)) -> 15,622,946.86 | M22: =J22/RCL!D12 -> 48.92%
A23: Despesas Primárias de Capital | B23: =Projeções!H132-Projeções!H135+Projeções!H137-Projeções!H138-Projeções!H141 -> 2,686,464.47 | C23: =B23/(1+Parâmetros!E11) -> 2,583,138.92 | E23: =B23/RCL!B12 -> 9.63% | F23: =Projeções!I132-Projeções!I135+Projeções!I137-Projeções!I138-Projeções!I141 -> 3,093,589.38 | G23: =F23/((1+Parâmetros!E11)*(1+Parâmetros!F11)) -> 2,860,197.28 | I23: =F23/RCL!C12 -> 9.63% | J23: =Projeções!J132-Projeções!J135+Projeções!J137-Projeções!J138-Projeções!J141 -> 3,680,804.74 | K23: =J23/((1+Parâmetros!E11)*(1+Parâmetros!F11)*(1+Parâmetros!G11)) -> 3,272,222.01 | M23: =J23/RCL!D12 -> 10.25%
A24: Pagamento de Restos a Pagar de Despesas Primárias | B24: =Projeções!H119+Projeções!H129+Projeções!H135+Projeções!H141 -> 1,465,805.65 | C24: =B24/(1+Parâmetros!E11) -> 1,409,428.51 | E24: =B24/RCL!B12 -> 5.25% | F24: =Projeções!I119+Projeções!I129+Projeções!I135+Projeções!I141 -> 1,233,351.13 | G24: =F24/((1+Parâmetros!E11)*(1+Parâmetros!F11)) -> 1,140,302.45 | I24: =F24/RCL!C12 -> 3.84% | J24: =Projeções!J119+Projeções!J129+Projeções!J135+Projeções!J141 -> 1,519,800.04 | K24: =J24/((1+Parâmetros!E11)*(1+Parâmetros!F11)*(1+Parâmetros!G11)) -> 1,351,096.70 | M24: =J24/RCL!D12 -> 4.23%
A25: Receita Total (Com Fontes RPPS) | B25: ='Projeções - RPPS'!H35 -> 4,627,000.00 | C25: =B25/(1+Parâmetros!E11) -> 4,449,038.46 | E25: =B25/RCL!B12 -> 16.59% | F25: ='Projeções - RPPS'!I35 -> 4,985,781.62 | G25: =F25/((1+Parâmetros!E11)*(1+Parâmetros!F11)) -> 4,609,635.37 | I25: =F25/RCL!C12 -> 15.52% | J25: ='Projeções - RPPS'!J35 -> 5,335,746.20 | K25: =J25/((1+Parâmetros!E11)*(1+Parâmetros!F11)*(1+Parâmetros!G11)) -> 4,743,458.94 | M25: =J25/RCL!D12 -> 14.85%
A26: Receitas Primárias (Com Fontes RPPS) - III | B26: =B25-'Projeções - RPPS'!H10-'Projeções - RPPS'!H19-'Projeções - RPPS'!H23-'Projeções - RPPS'!H27-'Projeções - RPPS'!H30-'Projeções - RPPS'!H32 -> 2,627,000.00 | C26: =B26/(1+Parâmetros!E11) -> 2,525,961.54 | E26: =B26/RCL!B12 -> 9.42% | F26: =F25-'Projeções - RPPS'!I10-'Projeções - RPPS'!I19-'Projeções - RPPS'!I23-'Projeções - RPPS'!I27-'Projeções - RPPS'!I30-'Projeções - RPPS'!I32 -> 2,864,181.62 | G26: =F26/((1+Parâmetros!E11)*(1+Parâmetros!F11)) -> 2,648,096.91 | I26: =F26/RCL!C12 -> 8.92% | J26: =J25-'Projeções - RPPS'!J10-'Projeções - RPPS'!J19-'Projeções - RPPS'!J23-'Projeções - RPPS'!J27-'Projeções - RPPS'!J30-'Projeções - RPPS'!J32 -> 3,085,152.92 | K26: =J26/((1+Parâmetros!E11)*(1+Parâmetros!F11)*(1+Parâmetros!G11)) -> 2,742,689.71 | M26: =J26/RCL!D12 -> 8.59%
A27: Despesa Total (Com Fontes RPPS) | B27: ='Projeções - RPPS'!H69 -> 2,000,000.00 | C27: =B27/(1+Parâmetros!E11) -> 1,923,076.93 | E27: =B27/RCL!B12 -> 7.17% | F27: ='Projeções - RPPS'!I69 -> 2,092,790.36 | G27: =F27/((1+Parâmetros!E11)*(1+Parâmetros!F11)) -> 1,934,902.33 | I27: =F27/RCL!C12 -> 6.52% | J27: ='Projeções - RPPS'!J69 -> 2,208,720.89 | K27: =J27/((1+Parâmetros!E11)*(1+Parâmetros!F11)*(1+Parâmetros!G11)) -> 1,963,544.83 | M27: =J27/RCL!D12 -> 6.15%
A28: Despesas Primárias (Com Fontes RPPS) - IV | B28: =B27-'Projeções - RPPS'!H48-'Projeções - RPPS'!H65 -> 2,000,000.00 | C28: =B28/(1+Parâmetros!E11) -> 1,923,076.93 | E28: =B28/RCL!B12 -> 7.17% | F28: =F27-'Projeções - RPPS'!I48-'Projeções - RPPS'!I65 -> 2,092,790.36 | G28: =F28/((1+Parâmetros!E11)*(1+Parâmetros!F11)) -> 1,934,902.33 | I28: =F28/RCL!C12 -> 6.52% | J28: =J27-'Projeções - RPPS'!J48-'Projeções - RPPS'!J65 -> 2,208,720.89 | K28: =J28/((1+Parâmetros!E11)*(1+Parâmetros!F11)*(1+Parâmetros!G11)) -> 1,963,544.83 | M28: =J28/RCL!D12 -> 6.15%
A29: Resultado Primário (SEM RPPS) - Acima da Linha (V) = (I – II) | B29: =B12-B19 -> 198,676.61 | C29: =C12-C19 -> 3,226,257.13 | E29: =B29/RCL!B12 -> 0.71% | F29: =F12-F19 -> -655,911.22 | G29: =G12-G19 -> -606,426.79 | I29: =F29/RCL!C12 -> -2.04% | J29: =J12-J19 -> -1,832,632.42 | K29: =K12-K19 -> -1,629,203.54 | M29: =J29/RCL!D12 -> -5.10%
A30: Resultado Primário (COM RPPS) - Acima da Linha (VI) = V + (III –IV) | B30: =B29+(B26-B28) -> 825,676.61 | C30: =C29+(C26-C28) -> 3,829,141.74 | E30: =B30/RCL!B12 -> 2.96% | F30: =F29+(F26-F28) -> 115,480.04 | G30: =G29+(G26-G28) -> 106,767.79 | I30: =F30/RCL!C12 -> 0.36% | J30: =J29+(J26-J28) -> -956,200.39 | K30: =K29+(K26-K28) -> -850,058.67 | M30: =J30/RCL!D12 -> -2.66%
A31: Juros, Encargos e Variações Monetárias Ativos (Exceto RPPS) | B31: =Projeções!H25+Projeções!H26+Projeções!H27+Projeções!H35+Projeções!H72 -> 381,467.81 | C31: =B31/(1+Parâmetros!E11) -> 366,795.97 | E31: =B31/RCL!B12 -> 1.37% | F31: =Projeções!I25+Projeções!I26+Projeções!I27+Projeções!I35+Projeções!I72 -> 404,661.05 | G31: =F31/((1+Parâmetros!E11)*(1+Parâmetros!F11)) -> 374,131.89 | I31: =F31/RCL!C12 -> 1.26% | J31: =Projeções!J25+Projeções!M26+Projeções!M27+Projeções!M35+Projeções!M72 -> 206,575.96 | K31: =J31/((1+Parâmetros!E11)*(1+Parâmetros!F11)*(1+Parâmetros!G11)) -> 183,645.28 | M31: =J31/RCL!D12 -> 0.58%
A32: Juros, Encargos e Variações Monetárias Passivos (Exceto RPPS) | B32: =Projeções!H121 -> 176,014.44 | C32: =B32/(1+Parâmetros!E11) -> 169,244.66 | E32: =B32/RCL!B12 -> 0.63% | F32: =Projeções!I121 -> 191,855.74 | G32: =F32/((1+Parâmetros!E11)*(1+Parâmetros!F11)) -> 177,381.42 | I32: =F32/RCL!C12 -> 0.60% | J32: =Projeções!J121 -> 208,643.12 | K32: =J32/((1+Parâmetros!E11)*(1+Parâmetros!F11)*(1+Parâmetros!G11)) -> 185,482.97 | M32: =J32/RCL!D12 -> 0.58%
A33: Dívida Pública Consolidada (DC) | B33: =Dívida!E7 -> 220,671.90 | C33: =B33/(1+Parâmetros!E11) -> 212,184.52 | E33: =B33/RCL!B12 -> 0.79% | F33: =Dívida!F7 -> 0.00 | G33: =F33/((1+Parâmetros!E11)*(1+Parâmetros!F11)) -> 0.00 | I33: =F33/RCL!C12 -> 0.00% | J33: =Dívida!G7 -> 0.00 | K33: =J33/((1+Parâmetros!E11)*(1+Parâmetros!F11)*(1+Parâmetros!G11)) -> 0.00 | M33: =J33/RCL!D12 -> 0.00%
A34: Dívida Consolidada Líquida (DCL) | B34: =Dívida!E15 -> -3,297,006.25 | C34: =B34/(1+Parâmetros!E11) -> -3,170,198.32 | E34: =B34/RCL!B12 -> -11.82% | F34: =Dívida!F15 -> -3,603,852.30 | G34: =F34/((1+Parâmetros!E11)*(1+Parâmetros!F11)) -> -3,331,964.03 | I34: =F34/RCL!C12 -> -11.22% | J34: =Dívida!G15 -> -3,391,626.71 | K34: =J34/((1+Parâmetros!E11)*(1+Parâmetros!F11)*(1+Parâmetros!G11)) -> -3,015,143.79 | M34: =J34/RCL!D12 -> -9.44%
A35: Resultado Nominal (SEM RPPS) - Abaixo da linha | B35: =Dívida!D15-Dívida!E15 -> 687,325.89 | C35: =B35/(1+Parâmetros!E11) -> 660,890.28 | E35: =B35/RCL!B12 -> 2.46% | F35: =Dívida!E15-Dívida!F15 -> 306,846.05 | G35: =F35/((1+Parâmetros!E11)*(1+Parâmetros!F11)) -> 283,696.42 | I35: =F35/RCL!C12 -> 0.96% | J35: =Dívida!F15-Dívida!G15 -> -212,225.59 | K35: =J35/((1+Parâmetros!E11)*(1+Parâmetros!F11)*(1+Parâmetros!G11)) -> -188,667.78 | M35: =J35/RCL!D12 -> -0.59%
A36: FONTE: Sistema <Nome>, Unidade Responsável <Nome>, Data da emissão <dd/mmm/aaaa> e hora de emissão <hhh e mmm>
A37: NOTA 1 : A elaboração desse demonstrativo seguiu a metodologia de cálculo disposta no item 03.06.00 - Anexo 6 da Parte III do MDF. Portanto, não foram consideradas as receitas e despesas com as fontes do RPPS no cálculo do Resultado Primário acima da linha. Também não devem ser consideradas as dívidas, disponibilidade de caixa e haveres financeiros do RPPS no cálculo do Resultado Primário abaixo da linha.
A38: NOTA 2: Conforme consta na página 79 da 14ª Edição do Manual dos Demonstrativos Fiscais, não se aplica nesse demonstrativo a necessidade de equilíbrio entre receitas e despesas exigido para a Lei Orçamentária Anual.
A39: Nota 3: foi considerada a prjeção da Receita Corrente Líquida ajustada para cálculo dos limites de endividamento, ou seja, após a exclusão dos valores de transferências obrigatórias da União relativas às emendas individuais, conforme disciplina o § 1º, art. 166-A da CF.

Sheet Dem-2-Avalia
A1: =Parâmetros!A7 -> Município de : NOVA PÁDUA
A2: LEI DE DIRETRIZES ORÇAMENTÁRIAS
A3: ANEXO DE METAS FISCAIS
A4: AVALIAÇÃO DO CUMPRIMENTO DAS METAS FISCAIS DO EXERCÍCIO ANTERIOR
A5: =Parâmetros!E10 -> 2025
A6: AMF - Demonstrativo 2 (LRF, art. 4º, §2º, inciso I) | H6: R$ 1.00
A7: ESPECIFICAÇÃO | B7: Metas Previstas em 2023 | C7: % PIB | D7: % RCL | E7: Metas Realizadas em 2023 | F7: % PIB | G7: % RCL | H7: Variação
H8: Valor | I8: %
B9: (a) | E9: (b) | H9: (c) = (b-a) | I9: (c/a) x 100
A10: Receita Total (EXCETO FONTES RPPS) | B10: ='[1]Metas Cons'!$B$12-[1]MetasRPPS!$B$12 -> 21,339,506.83 | C10: Preenchimento opcional cfe. Item 02.01.03.01 da 14ª edição do MDF | D10: =B10/B25 -> 84.32% | E10: =Projeções!F107 -> 26,905,103.16 | F10: Preenchimento opcional cfe. Item 02.01.03.01 da 14ª edição do MDF | G10: =E10/B26 -> 108.20% | H10: =E10-B10 -> 5,565,596.33 | I10: =H10/B10 -> 26.08%
A11: Receitas Primárias (EXCETO FONTES RPPS) (I) | B11: ='[1]Metas Cons'!$B$13-[1]MetasRPPS!$B$13 -> 21,257,409.57 | D11: =B11/B25 -> 84.00% | E11: =E10-Projeções!F24-Projeções!F35-Projeções!F68-Projeções!F72-Projeções!F74-Projeções!F77-Projeções!F79-Projeções!F83-Projeções!F94-Projeções!F97-Projeções!F100 -> 26,514,443.29 | G11: =E11/B26 -> 106.63% | H11: =E11-B11 -> 5,257,033.72 | I11: =H11/B11 -> 24.73%
A12: Despesa Total (EXCETO FONTES RPPS) | B12: ='[1]Metas Cons'!$B$20-[1]MetasRPPS!$B$14 -> 22,597,515.84 | D12: =B12/B25 -> 89.29% | E12: =Projeções!F148 -> 25,077,758.28 | G12: =E12/B26 -> 100.85% | H12: 2,480,242.44 | I12: 10.98%
A13: Despesas Primárias (EXCETO FONTES RPPS) (II) | B13: ='[1]Metas Cons'!$B$21-[1]MetasRPPS!$B$15 -> 23,721,071.15 | D13: =B13/B25 -> 93.73% | E13: =E12-Projeções!F121-Projeções!F138-Projeções!F143 -> 24,588,094.23 | G13: =E13/B26 -> 98.88% | H13: 867,023.08 | I13: 3.66%
A14: Receita Total (COM FONTES RPPS) | B14: 25,800,000.00 | D14: =B14/B25 -> 101.94% | E14: ='Projeções - RPPS'!F35 -> 4,795,544.94 | G14: =E14/B26 -> 19.28% | H14: -21,004,455.06 | I14: -81.41%
A15: Receitas Primárias (COM FONTES RPPS) (III) | B15: ='[1]Metas Cons'!$B$13 -> 23,199,509.06 | D15: =B15/B25 -> 91.67% | E15: =E14-'Projeções - RPPS'!F11-'Projeções - RPPS'!F19-'Projeções - RPPS'!F23-'Projeções - RPPS'!F27-'Projeções - RPPS'!F30 -> 4,795,544.94 | G15: =E15/B26 -> 19.28% | H15: -18,403,964.12 | I15: -79.33%
A16: Despesa Total (COM FONTES RPPS) | B16: 25,800,000.00 | D16: =B16/B25 -> 101.94% | E16: ='Projeções - RPPS'!F69 -> 1,575,408.65 | G16: =E16/B26 -> 6.34% | H16: -24,224,591.35 | I16: -93.89%
A17: Despesas Primárias (COM FONTES RPPS) (IV) | B17: ='[1]Metas Cons'!$B$21 -> 25,271,555.32 | D17: =B17/B25 -> 99.86% | E17: =E16-'Projeções - RPPS'!F48-'Projeções - RPPS'!F65 -> 1,575,408.65 | G17: =E17/B26 -> 6.34% | H17: -23,696,146.67 | I17: -93.77%
A18: Resultado Primário (SEM RPPS) - Acima da Linha (V) = (I – II) | B18: =B11-B13 -> -2,463,661.59 | D18: =B18/B25 -> -9.73% | E18: =E11-E13 -> 1,926,349.06 | G18: =E18/B26 -> 7.75% | H18: 4,390,010.65 | I18: -178.19%
A19: Resultado Primário (COM RPPS) – Acima da Linha (VI) = (V) + (III – IV) | B19: =B18+(B15-B17) -> -4,535,707.84 | D19: =B19/B25 -> -17.92% | E19: =E18+(E15-E17) -> 5,146,485.35 | G19: =E19/B26 -> 20.70% | H19: 9,682,193.19 | I19: -213.47%
A20: Dívida Pública Consolidada (DC) | B20: ='[1]Metas Cons'!$B$32 -> 746,666.66 | D20: =B20/B25 -> 2.95% | E20: =Dívida!C7 -> 666,666.72 | G20: =E20/B26 -> 2.68% | H20: -79,999.94 | I20: -10.71%
A21: Dívida Consolidada Líquida – DCL | B21: ='[1]Metas Cons'!$B$33 -> -2,324,065.58 | D21: =B21/B25 -> -9.18% | E21: =Dívida!C15 -> -3,573,862.36 | G21: =E21/B26 -> -14.37% | H21: -1,249,796.78 | I21: 53.78%
A22: Resultado Nominal (SEM RPPS) - Abaixo da Linha | B22: 444,777.81 | D22: =B22/B25 -> 1.76% | E22: =Dívida!B15-Dívida!C15 -> 1,248,040.02 | G22: =E22/B26 -> 5.02% | H22: 803,262.21 | I22: 180.60%
A23: FONTE: Sistema <Nome>, Unidade Responsável <Nome>, Data da emissão <dd/mmm/aaaa> e hora de emissão <hhh e mmm>
A25: Valor da Receita Corrente Líquida Prevista para 2023 | B25: 25,307,801.58
A26: Valor da Receita Corrente Líquida Arrecadada em 2023 | B26: 24,866,887.67
A27: NOTA: A elaboração desse demonstrativo deve seguir a metodologia de cálculo disposta no item 03.06.00 - Anexo 6 da Parte III do MDF. Portanto, não devem ser consideradas as receitas e despesas com as fontes do RPPS no cálculo acima da linha. Também não devem ser consideradas as dívidas, disponibilidade de caixa e haveres financeiros do RPPS no cálculo abaixo da linha.

Sheet Dem-3-Comp
A1: =Parâmetros!A7 -> Município de : NOVA PÁDUA
A2: LEI DE DIRETRIZES ORÇAMENTÁRIAS
A3: ANEXO DE METAS FISCAIS
A4: METAS FISCAIS ATUAIS COMPARADAS COM AS FIXADAS NOS TRÊS EXERCÍCIOS ANTERIORES
A5: =Parâmetros!E10 -> 2025
A6: AMF – Demonstrativo 3 (LRF, art.4º, §2º, inciso II) | L6: R$ 1.00
B7: VALORES A PREÇOS CORRENTES
A8: ESPECIFICAÇÃO | B8: =Parâmetros!B10 -> 2022 | C8: =B8+1 -> 2023 | D8: % | E8: =C8+1 -> 2024 | F8: % | G8: =E8+1 -> 2025 | H8: % | I8: =G8+1 -> 2026 | J8: % | K8: =I8+1 -> 2027 | L8: %
A9: Receita Total (EXCETO FONTES RPPS) | B9: ='[2]Metas Cons'!$B$12-[2]MetasRPPS!$B$12 -> 16,840,722.67 | C9: =' Dem-2-Avalia'!B10 -> 21,339,506.83 | D9: =(C9/B9)-1 -> 26.71% | E9: ='[3] Dem-1-Metas'!$B$11-'[3]Dem-1A-Metas RPPS'!$B$11 -> 21,600,000.00 | F9: =(E9/C9)-1 -> 1.22% | G9: =' Dem-1-Metas'!B11 -> 28,373,000.00 | H9: =(G9/E9)-1 -> 31.36% | I9: =' Dem-1-Metas'!F11 -> 32,620,624.07 | J9: =(I9/G9)-1 -> 14.97% | K9: =' Dem-1-Metas'!J11 -> 36,456,696.01 | L9: =(K9/I9)-1 -> 11.76%
A10: Receitas Primárias (EXCETO FONTES RPPS) (I) | B10: ='[2]Metas Cons'!$B$13-[2]MetasRPPS!$B$13 -> 16,808,660.86 | C10: =' Dem-2-Avalia'!B11 -> 21,257,409.57 | D10: =(C10/B10)-1 -> 26.47% | E10: ='[3] Dem-1-Metas'!$B$12-'[3]Dem-1A-Metas RPPS'!$B$12 -> 23,325,826.63 | F10: =(E10/C10)-1 -> 9.73% | G10: =' Dem-1-Metas'!B12 -> 27,928,995.53 | H10: =(G10/E10)-1 -> 19.73% | I10: =' Dem-1-Metas'!F12 -> 32,150,924.88 | J10: 15.12% | K10: =' Dem-1-Metas'!J12 -> 35,959,791.91 | L10: =(K10/I10)-1 -> 11.85%
A11: Despesa Total (EXCETO FONTES RPPS) | B11: ='[2]Metas Cons'!$B$20-[2]MetasRPPS!$B$14 -> 17,989,749.93 | C11: =' Dem-2-Avalia'!B12 -> 22,597,515.84 | D11: 25.61% | E11: ='[3] Dem-1-Metas'!$B$18-'[3]Dem-1A-Metas RPPS'!$B$13 -> 23,746,491.54 | F11: 5.08% | G11: =' Dem-1-Metas'!B18 -> 28,173,000.00 | H11: 18.64% | I11: =' Dem-1-Metas'!F18 -> 33,176,469.60 | J11: 17.76% | K11: =' Dem-1-Metas'!J18 -> 38,001,067.45 | L11: 14.54%
A12: Despesas Primárias (EXCETO FONTES RPPS) (II) | B12: ='[2]Metas Cons'!$B$21-[2]MetasRPPS!$B$15 -> 18,989,417.90 | C12: =' Dem-2-Avalia'!B13 -> 23,721,071.15 | D12: 24.92% | E12: ='[3] Dem-1-Metas'!$B$19-'[3]Dem-1A-Metas RPPS'!$B$14 -> 23,335,220.63 | F12: -1.63% | G12: =' Dem-1-Metas'!B19 -> 27,730,318.91 | H12: 18.83% | I12: =' Dem-1-Metas'!F19 -> 32,806,836.10 | J12: 18.31% | K12: =' Dem-1-Metas'!J19 -> 37,792,424.33 | L12: 15.20%
A13: Receita Total (COM FONTES RPPS) | B13: 20,400,000.00 | C13: =' Dem-2-Avalia'!B14 -> 25,800,000.00 | D13: 26.47% | E13: ='[3] Dem-1-Metas'!$B$11 -> 25,600,000.00 | F13: -0.78% | G13: =' Dem-1-Metas'!B25 -> 4,627,000.00 | H13: -81.93% | I13: =' Dem-1-Metas'!F25 -> 4,985,781.62 | J13: 7.75% | K13: =' Dem-1-Metas'!J25 -> 5,335,746.20 | L13: 7.02%
A14: Receitas Primárias (COM FONTES RPPS) (III) | B14: ='[2]Metas Cons'!$B$13 -> 18,518,910.93 | C14: =' Dem-2-Avalia'!B15 -> 23,199,509.06 | D14: 25.27% | E14: ='[3] Dem-1-Metas'!$B$12 -> 25,251,831.46 | F14: 8.85% | G14: =' Dem-1-Metas'!B26 -> 2,627,000.00 | H14: -89.60% | I14: =' Dem-1-Metas'!F26 -> 2,864,181.62 | J14: 9.03% | K14: =' Dem-1-Metas'!J26 -> 3,085,152.92 | L14: 7.71%
A15: Despesa Total (COM FONTES RPPS) | B15: ='[2]Metas Cons'!$B$20 -> 20,400,000.00 | C15: =' Dem-2-Avalia'!B16 -> 25,800,000.00 | D15: 26.47% | E15: ='[3] Dem-1-Metas'!$B$18 -> 25,600,000.00 | F15: -0.78% | G15: =' Dem-1-Metas'!B27 -> 2,000,000.00 | H15: -92.19% | I15: =' Dem-1-Metas'!F27 -> 2,092,790.36 | J15: 4.64% | K15: =' Dem-1-Metas'!J27 -> 2,208,720.89 | L15: 5.54%
A16: Despesas Primárias (COM FONTES RPPS) (IV) | B16: ='[2]Metas Cons'!$B$21 -> 20,160,000.00 | C16: =' Dem-2-Avalia'!B17 -> 25,271,555.32 | D16: 25.35% | E16: ='[3] Dem-1-Metas'!$B$19 -> 25,188,729.09 | F16: -0.33% | G16: =' Dem-1-Metas'!B28 -> 2,000,000.00 | H16: -92.06% | I16: =' Dem-1-Metas'!F28 -> 2,092,790.36 | J16: 4.64% | K16: =' Dem-1-Metas'!J28 -> 2,208,720.89 | L16: 5.54%
A17: Resultado Primário (SEM RPPS) - Acima da Linha (V) = (I – II) | B17: =B10-B12 -> -2,180,757.04 | C17: =' Dem-2-Avalia'!B18 -> -2,463,661.59 | D17: 12.97% | E17: =E10-E12 -> -9,394.00 | F17: -99.62% | G17: =' Dem-1-Metas'!B29 -> 198,676.61 | H17: -2214.93% | I17: =' Dem-1-Metas'!F29 -> -655,911.22 | J17: -430.14% | K17: =' Dem-1-Metas'!J29 -> -1,832,632.42 | L17: 179.40%
A18: Resultado Primário (COM RPPS) – Acima da Linha (VI) = (V) + (III – IV) | B18: =B17+(B14-B16) -> -3,821,846.11 | C18: =' Dem-2-Avalia'!B19 -> -4,535,707.84 | D18: 18.68% | E18: =E17+(E14-E16) -> 53,708.36 | F18: -101.18% | G18: =' Dem-1-Metas'!B30 -> 825,676.61 | H18: 1437.33% | I18: =' Dem-1-Metas'!F30 -> 115,480.04 | J18: -86.01% | K18: =' Dem-1-Metas'!J30 -> -956,200.39 | L18: -928.02%
A19: Dívida Pública Consolidada (DC) | B19: ='[2]Metas Cons'!$B$32 -> 974,800.00 | C19: =' Dem-2-Avalia'!B20 -> 746,666.66 | D19: -23.40% | E19: ='[3] Dem-1-Metas'!$B$26 -> 389,386.75 | F19: -47.85% | G19: =' Dem-1-Metas'!B33 -> 220,671.90 | H19: -43.33% | I19: =' Dem-1-Metas'!F33 -> 0.00 | J19: -100.00% | K19: =' Dem-1-Metas'!J33 -> 0.00
A20: Dívida Consolidada Líquida – DCL | B20: ='[2]Metas Cons'!$B$33 -> -998,832.02 | C20: =' Dem-2-Avalia'!B21 -> -2,324,065.58 | D20: 132.68% | E20: ='[3] Dem-1-Metas'!$B$27 -> -3,074,622.05 | F20: 32.29% | G20: =' Dem-1-Metas'!B34 -> -3,297,006.25 | H20: 7.23% | I20: =' Dem-1-Metas'!F34 -> -3,603,852.30 | J20: 9.31% | K20: =' Dem-1-Metas'!J34 -> -3,391,626.71 | L20: -5.89%
A21: Resultado Nominal (SEM RPPS) - Abaixo da Linha | B21: 986065.47 | C21: =B20-C20 -> 1,325,233.57 | D21: 34.40% | E21: ='[3] Dem-1-Metas'!$B$28 -> -482,133.07 | F21: -136.38% | G21: =' Dem-1-Metas'!B35 -> 687,325.89 | H21: -242.56% | I21: =' Dem-1-Metas'!F35 -> 306,846.05 | J21: -55.36% | K21: =' Dem-1-Metas'!J35 -> -212,225.59 | L21: -169.16%
B23: VALORES A PREÇOS CONSTANTES
A24: ESPECIFICAÇÃO | B24: =B8 -> 2022 | C24: =C8 -> 2023 | D24: % | E24: =E8 -> 2024 | F24: % | G24: =G8 -> 2025 | H24: % | I24: =I8 -> 2026 | J24: % | K24: =K8 -> 2027 | L24: %
A25: Receita Total (EXCETO FONTES RPPS) | B25: =B9*(1+Parâmetros!C11)*(1+Parâmetros!D11) -> 18,637,088.87 | C25: =C9*(1+Parâmetros!D11) -> 22,321,124.14 | D25: =(C25/B25)-1 -> 19.77% | E25: 21,600,000.00 | F25: =(E25/C25)-1 -> -3.23% | G25: =' Dem-1-Metas'!C11 -> 27,281,730.77 | H25: =(G25/E25)-1 -> 26.30% | I25: =' Dem-1-Metas'!G11 -> 30,159,600.66 | J25: =(I25/G25)-1 -> 10.55% | K25: =' Dem-1-Metas'!K11 -> 32,409,870.01 | L25: =(K25/I25)-1 -> 7.46%
A26: Receitas Primárias (EXCETO FONTES RPPS) (I) | B26: =B10*(1+Parâmetros!C11)*(1+Parâmetros!D11) -> 18,601,607.09 | C26: =C10*(1+Parâmetros!D11) -> 22,235,250.41 | D26: =(C26/B26)-1 -> 19.53% | E26: 23,325,826.63 | F26: =(E26/C26)-1 -> 4.90% | G26: =' Dem-1-Metas'!C12 -> 29,890,025.32 | H26: =(G26/E26)-1 -> 28.14% | I26: =' Dem-1-Metas'!J12 -> 35,959,791.91 | J26: =(I26/G26)-1 -> 20.31% | K26: =' Dem-1-Metas'!K12 -> 31,968,124.07 | L26: =(K26/I26)-1 -> -11.10%
A27: Despesa Total (EXCETO FONTES RPPS) | B27: =B11*(1+Parâmetros!C11)*(1+Parâmetros!D11) -> 19,908,680.57 | C27: =C11*(1+Parâmetros!D11) -> 23,637,001.57 | D27: 18.73% | E27: 23,746,491.54 | F27: 0.46% | G27: =' Dem-1-Metas'!C18 -> 27,089,423.07 | H27: 14.08% | I27: =' Dem-1-Metas'!G18 -> 30,673,511.10 | J27: 13.23% | K27: =' Dem-1-Metas'!K18 -> 33,782,810.58 | L27: 10.14%
A28: Despesas Primárias (EXCETO FONTES RPPS) (II) | B28: =B12*(1+Parâmetros!C11)*(1+Parâmetros!D11) -> 21,014,981.13 | C28: =C12*(1+Parâmetros!D11) -> 24,812,240.43 | D28: 18.07% | E28: 23,335,220.63 | F28: -5.95% | G28: =' Dem-1-Metas'!C19 -> 26,663,768.19 | H28: 14.26% | I28: =' Dem-1-Metas'!G19 -> 30,331,764.15 | J28: 13.76% | K28: =' Dem-1-Metas'!K19 -> 33,597,327.61 | L28: 10.77%
A29: Receita Total (COM FONTES RPPS) | B29: =B13*(1+Parâmetros!C11)*(1+Parâmetros!D11) -> 22,576,027.20 | C29: =C13*(1+Parâmetros!D11) -> 26,986,800.00 | D29: 19.54% | E29: 25,600,000.00 | F29: -5.14% | G29: =' Dem-1-Metas'!C25 -> 4,449,038.46 | H29: -82.62% | I29: =' Dem-1-Metas'!G25 -> 4,609,635.37 | J29: 3.61% | K29: =' Dem-1-Metas'!K25 -> 4,743,458.94 | L29: 2.90%
A30: Receitas Primárias (COM FONTES RPPS) (III) | B30: =B14*(1+Parâmetros!C11)*(1+Parâmetros!D11) -> 20,494,286.12 | C30: =C14*(1+Parâmetros!D11) -> 24,266,686.48 | D30: 18.41% | E30: 25,251,831.46 | F30: 4.06% | G30: =' Dem-1-Metas'!C26 -> 2,525,961.54 | H30: -90.00% | I30: =' Dem-1-Metas'!G26 -> 2,648,096.91 | J30: 4.84% | K30: =' Dem-1-Metas'!K26 -> 2,742,689.71 | L30: 3.57%
A31: Despesa Total (COM FONTES RPPS) | B31: =B15*(1+Parâmetros!C11)*(1+Parâmetros!D11) -> 22,576,027.19 | C31: =C15*(1+Parâmetros!D11) -> 26,986,800.00 | D31: 19.54% | E31: 25,600,000.00 | F31: -5.14% | G31: =' Dem-1-Metas'!C27 -> 1,923,076.93 | H31: -92.49% | I31: =' Dem-1-Metas'!G27 -> 1,934,902.33 | J31: 0.61% | K31: =' Dem-1-Metas'!K27 -> 1,963,544.83 | L31: 1.48%
A32: Despesas Primárias (COM FONTES RPPS) (IV) | B32: =B16*(1+Parâmetros!C11)*(1+Parâmetros!D11) -> 22,310,426.87 | C32: =C16*(1+Parâmetros!D11) -> 26,434,046.86 | D32: 18.48% | E32: 25,188,729.09 | F32: -4.71% | G32: =' Dem-1-Metas'!C28 -> 1,923,076.93 | H32: -92.37% | I32: =' Dem-1-Metas'!G28 -> 1,934,902.33 | J32: 0.61% | K32: =' Dem-1-Metas'!K28 -> 1,963,544.83 | L32: 1.48%
A33: Resultado Primário (SEM RPPS) - Acima da Linha (V) = (I – II) | B33: =B17*(1+Parâmetros!C11)*(1+Parâmetros!D11) -> -2,413,374.04 | C33: =C17*(1+Parâmetros!D11) -> -2,576,990.02 | D33: 6.78% | E33: -9,394.00 | F33: -99.64% | G33: =' Dem-1-Metas'!C29 -> 3,226,257.13 | H33: -34443.80% | I33: =' Dem-1-Metas'!G29 -> -606,426.79 | J33: -118.80% | K33: =' Dem-1-Metas'!K29 -> -1,629,203.54 | L33: 168.66%
A34: Resultado Primário (COM RPPS) – Acima da Linha (VI) = (V) + (III – IV) | B34: =B18*(1+Parâmetros!C11)*(1+Parâmetros!D11) -> -4,229,514.79 | C34: =C18*(1+Parâmetros!D11) -> -4,744,350.40 | D34: 12.17% | E34: 53,708.36 | F34: -101.13% | G34: =' Dem-1-Metas'!C30 -> 3,829,141.74 | H34: 7029.51% | I34: =' Dem-1-Metas'!G30 -> 106,767.79 | J34: -97.21% | K34: =' Dem-1-Metas'!K30 -> -850,058.67 | L34: -896.18%
A35: Dívida Pública Consolidada (DC) | B35: =B19*(1+Parâmetros!C11)*(1+Parâmetros!D11) -> 1,078,779.97 | C35: =C19*(1+Parâmetros!D11) -> 781,013.33 | D35: -27.60% | E35: 389,386.75 | F35: -50.14% | G35: =' Dem-1-Metas'!C33 -> 212,184.52 | H35: -45.51% | I35: =' Dem-1-Metas'!G33 -> 0.00 | J35: -100.00% | K35: =' Dem-1-Metas'!K33 -> 0.00
A36: Dívida Consolidada Líquida – DCL | B36: =B20*(1+Parâmetros!C11)*(1+Parâmetros!D11) -> -1,105,375.43 | C36: =C20*(1+Parâmetros!D11) -> -2,430,972.60 | D36: 119.92% | E36: -3,074,622.05 | F36: 26.48% | G36: =' Dem-1-Metas'!C34 -> -3,170,198.32 | H36: 3.11% | I36: =' Dem-1-Metas'!G34 -> -3,331,964.03 | J36: 5.10% | K36: =' Dem-1-Metas'!K34 -> -3,015,143.79 | L36: -9.51%
A37: Resultado Nominal (SEM RPPS) - Abaixo da Linha | B37: =B21*(1+Parâmetros!C11)*(1+Parâmetros!D11) -> 1,091,247.10 | C37: =C21*(1+Parâmetros!D11) -> 1,386,194.31 | D37: 27.03% | E37: -482,133.07 | F37: -134.78% | G37: =' Dem-1-Metas'!C35 -> 660,890.28 | H37: -237.08% | I37: =' Dem-1-Metas'!G35 -> 283,696.42 | J37: -57.07% | K37: =' Dem-1-Metas'!K35 -> -188,667.78 | L37: -166.50%
A39: NOTA: A elaboração desse demonstrativo deve seguir a metodologia de cálculo disposta no item 03.06.00 - Anexo 6 da Parte III do MDF. Portanto, não devem ser consideradas as receitas e despesas com as fontes do RPPS no cálculo acima da linha. Também não devem ser consideradas as dívidas, disponibilidade de caixa e haveres financeiros do RPPS no cálculo abaixo da linha.
B58: =250*4.5 -> 1125
B59: =B58*0.4 -> 450

Sheet Dem-4-Patr
A1: =Parâmetros!A7 -> Município de : NOVA PÁDUA
A2: LEI DE DIRETRIZES ORÇAMENTÁRIAS
A3: ANEXO DE METAS FISCAIS
A4: EVOLUÇÃO DO PATRIMÔNIO LÍQUIDO
A5: EXERCÍCIO DE 2025
A6: AMF - Demonstrativo 4 (LRF, art.4º, §2º, inciso III) | G6: R$ 1.00
A7: PATRIMÔNIO LÍQUIDO | B7: =Parâmetros!C10 -> 2023 | C7: % | D7: =B7-1 -> 2022 | E7: % | F7: =D7-1 -> 2021 | G7: %
A8: Patrimônio/Capital | C8: =IF(B12=0,"-",(B8/B12)) -> 0.00% | E8: =IF(D12=0,"-",(D8/D12)) -> 0.00% | G8: =IF(F12=0,"-",(F8/F12)) -> 0.00%
A9: Reservas | C9: =IF(B12=0,"-",(B9/B12)) -> 0.00% | E9: =IF(D12=0,"-",(D9/D12)) -> 0.00% | G9: =IF(F12=0,"-",(F9/F12)) -> 0.00%
A10: Resultado Acumulado | B10: 33,284,122.42 | C10: =IF(B12=0,"-",(B10/B12)) -> 100.00% | D10: 29,620,498.62 | E10: =IF(D12=0,"-",(D10/D12)) -> 100.00% | F10: 23,466,322.03 | G10: =IF(F12=0,"-",(F10/F12)) -> 100.00%
A11: Ajustes de Exerc.Anteriores | B11: 0 | C11: =IF(B12=0,"-",(B11/B12)) -> 0.00% | E11: =IF(D12=0,"-",(D11/D12)) -> 0.00% | G11: =IF(F12=0,"-",(F11/F12)) -> 0.00%
A12: TOTAL | B12: =SUM(B8:B11) -> 33,284,122.42 | C12: 100.00% | D12: 29,620,498.62 | E12: 100.00% | F12: 23,466,322.03 | G12: 100.00%
A14: REGIME PREVIDENCIÁRIO
A15: PATRIMÔNIO LÍQUIDO | B15: =Parâmetros!C10 -> 2023 | C15: % | D15: =B15-1 -> 2022 | E15: % | F15: =D15-1 -> 2021 | G15: %
A16: Patrimônio/Capital | C16: =IF(B20=0,"-",(B16/B20)) -> 0.00% | E16: =IF(D20=0,"-",(D16/D20)) -> 0.00% | G16: =IF(F20=0,"-",(F16/F20)) -> 0.00%
A17: Reservas | B17: 0 | C17: =IF(B20=0,"-",(B17/B20)) -> 0.00% | D17: 0 | E17: =IF(D20=0,"-",(D17/D20)) -> 0.00% | F17: 0 | G17: =IF(F20=0,"-",(F17/F20)) -> 0.00%
A18: Resultado Acumulado | B18: =-11295070.17 -> (11,295,070.17) | C18: =IF(B20=0,"-",(B18/B20)) -> 100.00% | D18: =-1375317.52 -> (1,375,317.52) | E18: =IF(D20=0,"-",(D18/D20)) -> 100.00% | F18: 4,803,993.17 | G18: =IF(F20=0,"-",(F18/F20)) -> 100.00%
A19: Ajustes de Exerc.Anteiores | B19: 0 | C19: =IF(B20=0,"-",(B19/B20)) -> 0.00% | D19: 0 | E19: =IF(D20=0,"-",(D19/D20)) -> 0.00% | F19: 0 | G19: =IF(F20=0,"-",(F19/F20)) -> 0.00%
A20: TOTAL | B20: =SUM(B16:B19) -> (11,295,070.17) | C20: 100.00% | D20: (1,375,317.52) | E20: 100.00% | F20: 4,803,993.17 | G20: 100.00%
A22: CONSOLIDAÇÃO GERAL
A23: PATRIMÔNIO LÍQUIDO | B23: =Parâmetros!C10 -> 2023 | C23: % | D23: =B23-1 -> 2022 | E23: % | F23: =D23-1 -> 2021 | G23: %
A24: Patrimônio/Capital | B24: =B8+B16 -> 0 | C24: =IF(B28=0,"-",(B24/B28)) -> 0.00% | D24: =D8+D16 -> 0 | E24: =IF(D28=0,"-",(D24/D28)) -> 0.00% | F24: =F8+F16 -> 0 | G24: =IF(F28=0,"-",(F24/F28)) -> 0.00%
A25: Reservas | B25: =B9+B17 -> 0 | C25: =IF(B28=0,"-",(B25/B28)) -> 0.00% | D25: =D9+D17 -> 0 | E25: =IF(D28=0,"-",(D25/D28)) -> 0.00% | F25: =F9+F17 -> 0 | G25: =IF(F28=0,"-",(F25/F28)) -> 0.00%
A26: Resultado Acumulado | B26: =B10+B18 -> 21,989,052.25 | C26: =IF(B28=0,"-",(B26/B28)) -> 100.00% | D26: =D10+D18 -> 28,245,181.10 | E26: =IF(D28=0,"-",(D26/D28)) -> 100.00% | F26: =F10+F18 -> 28,270,315.20 | G26: =IF(F28=0,"-",(F26/F28)) -> 100.00%
A27: Ajustes de Exerc.Anteiores | B27: =B11+B19 -> 0 | C27: =IF(B28=0,"-",(B27/B28)) -> 0.00% | D27: =D11+D19 -> 0 | E27: =IF(D28=0,"-",(D27/D28)) -> 0.00% | F27: =F11+F19 -> 0 | G27: =IF(F28=0,"-",(F27/F28)) -> 0.00%
A28: TOTAL | B28: =SUM(B24:B27) -> 21,989,052.25 | C28: 100.00% | D28: 28,245,181.10 | E28: 100.00% | F28: 28,270,315.20 | G28: 100.00%
A29: Fonte: Balanço patrimonial 2021, 2022 e 2023

Sheet Dem-5-Alien
A1: =Parâmetros!A7 -> Município de : NOVA PÁDUA
A2: LEI DE DIRETRIZES ORÇAMENTÁRIAS
A3: ANEXO DE METAS FISCAIS
A4: ORIGEM E APLICAÇÃO DOS RECURSOS OBTIDOS COM A ALIENAÇÃO DE ATIVOS
A5: EXERCÍCIO DE 2025
A7: AMF - Demonstrativo 5 (LRF, art.4º, §2º, inciso III) | D7: R$ 1.00
A8: RECEITAS REALIZADAS | B8: =Parâmetros!$C$10 -> 2023 | C8: =B8-1 -> 2022 | D8: =C8-1 -> 2021
A9: SALDOS DE EXERCÍCIOS ANTERIORES A 2021 | D9: 1,388.11
A10: RECEITAS DE CAPITAL
A11: ALIENAÇÃO DE ATIVOS | B11: =B12+B13+B14 -> 92,124.90 | C11: =C12+C13+C14 -> 482,834.04 | D11: =D12+D13+D14 -> 59,437.05
A12: Alienação de Bens Móveis | B12: 0 | C12: 392,200.00 | D12: 59,437.05
A13: Alienação de Bens Imóveis | B13: 92,124.90 | C13: 90,634.04
A14: Alienação de Bens Intangíveis
A15: Rendimento de Aplicações Financeira de Alienaç de Bens | B15: =8852.85+1771.66 -> 10,624.51 | C15: =174.72+174.8 -> 349.52 | D15: 35.34
A16: TOTAL | B16: =B11+B15 -> 102,749.41 | C16: =C11+C15 -> 483,183.56 | D16: =D9+D11+D15 -> 60,860.50
A18: DESPESAS EXECUTADAS | B18: =B8 -> 2023 | C18: =B18-1 -> 2022 | D18: =C18-1 -> 2021
A20: APLICAÇÃO DOS RECURSOS DA ALIENAÇÃO DE ATIVOS
A21: DESPESAS DE CAPITAL | B21: =B22+B23+B24 -> 83,337.77 | C21: =C22+C23+C24 -> 384,553.64 | D21: =D22+D23+D24 -> 59,437.05
A22: Investimentos | B22: 83,337.77 | C22: 384,553.64 | D22: 59,437.05
A23: Inversões Financeiras
A24: Amortização da Dívida
A25: DESPESAS CORRENTES DOS REGIMES DE PREVID. | B25: =B26+B27 -> 0 | C25: =C26+C27 -> 0 | D25: =D26+D27 -> 0
A26: Regime Geral de Previdência Social | B26: 0
A27: Regime Próprio dos Servidores Públicos
A28: TOTAL | B28: =B21+B25 -> 83,337.77 | C28: =C21+C25 -> 384,553.64 | D28: =D21+D25 -> 59,437.05
A29: SALDO FINANCEIRO
B30: 108,840.10 | C30: 100,052.97 | D30: 1,423.05
A31: Fonte: Balancete receita e despesa

Sheet Dem-6-RPPS
A1: =Parâmetros!A7 -> Município de : NOVA PÁDUA
A2: LEI DE DIRETRIZES ORÇAMENTÁRIAS
A3: ANEXO DE METAS FISCAIS
A4: AVALIAÇÃO DA SITUAÇÃO FINANCEIRA E ATUARIAL DO RPPS
A5: EXERCÍCIO DE 2025
A7: AMF - Demonstrativo 6 (LRF, art. 4º, § 2º, inciso IV, alínea "a") | E7: R$ 1.00
A8: RECEITAS E DESPESAS PREVIDENCIÁRIAS DO REGIME PRÓPRIO DE PREVIDÊNCIA DOS SERVIDORES
A9: PLANO PREVIDENCIÁRIO
A10: RECEITAS PREVIDENCIÁRIAS - RPPS | B10: =D10-1 -> 2021 | D10: =E10-1 -> 2022 | E10: =Parâmetros!C10 -> 2023
A11: RECEITAS CORRENTES (I) | B11: =B12+B21+B30+B35 -> 1,924,793.61 | D11: =D12+D21+D30+D38 -> 3,754,468.42 | E11: =E12+E21+E30+E38+E35 -> 4,795,544.94
A12: Receita de Contribuições dos Segurados | B12: 527,514.09 | D12: =D13 -> 593,235.31 | E12: =E13 -> 627,928.37
A13: Civil | B13: 527,514.09 | D13: =D14+D15 -> 593,235.31 | E13: =E14+E15 -> 627,928.37
A14: Ativo | B14: 527,272.42 | D14: 592,317.78 | E14: 627,112.41
A15: Inativo | B15: 241.64 | D15: 917.53 | E15: 815.96
A16: Pensionista
A17: Militar
A18: Ativo
A19: Inativo
A20: Pensionista
A21: Receita de Contribuições Patronais | B21: =B23 -> 1,080,720.92 | D21: =D23 -> 1,218,981.90 | E21: =E23 -> 2,915,677.68
A22: Civil
A23: Ativo | B23: 1,080,720.92 | D23: 1,218,981.90 | E23: 2,915,677.68
A24: Inativo
A25: Pensionista
A26: Militar
A27: Ativo
A28: Inativo
A29: Pensionista
A30: Receita Patrimonial | B30: =B33 -> 316,558.60 | D30: =D33 -> 1,942,246.56 | E30: =E33 -> 1,246,404.67
A31: Receitas Imobiliárias
A32: Receitas de Valores Mobiliários
A33: Outras Receitas Patrimoniais | B33: 316,558.60 | D33: =1942246.56 -> 1,942,246.56 | E33: 1,246,404.67
A34: Receita de Serviços
A35: Outras Receitas Correntes | E35: =E36 -> 5,534.22
A36: Compensação Previdenciária do RGPS para o RPPS | E36: 5,534.22
A37: Aportes Periódicos para Amortização de Déficit Atuarial do RPPS (II)1
A38: Demais Receitas Correntes | D38: 4.65
A39: RECEITAS DE CAPITAL (III)
A40: Alienação de Bens, Direitos e Ativos
A41: Amortização de Empréstimos
A42: Outras Receitas de Capital
A43: TOTAL DAS RECEITAS PREVIDENCIÁRIAS RPPS - (IV) = (I + III - II) | B43: =B11 -> 1,924,793.61 | D43: =D11 -> 3,754,468.42 | E43: =E11+E39 -> 4,795,544.94
A45: DESPESAS PREVIDENCIÁRIAS - RPPS | B45: =B10 -> 2021 | D45: =D10 -> 2022 | E45: =E10 -> 2023
A46: Benefícios - Civil | B46: =B47+B48 -> 1,026,087.79 | D46: =D47+D48 -> 1,331,695.95 | E46: =E47+E48 -> 1,494,905.82
A47: Aposentadorias | B47: 938,127.91 | D47: 1,229,840.15 | E47: 1,384,876.17
A48: Pensões | B48: 87,959.88 | D48: 101,855.80 | E48: 110,029.65
A49: Outros Benefícios Previdenciários
A50: Benefícios - Militar
A51: Reformas
A52: Pensões
A53: Outros Benefícios Previdenciários
A54: Outras Despesas Previdenciárias
A55: Compensação Previdenciária do RPPS para o RGPS | D55: 524,391.04 | E55: 90,527.36
A56: Demais Despesas Previdenciárias
A57: TOTAL DAS DESPESAS PREVIDENCIÁRIAS RPPS (V) | B57: =B46 -> 1,026,087.79 | D57: =D46+D55 -> 1,856,086.99 | E57: =E46+E55 -> 1,585,433.18
A59: RESULTADO PREVIDENCIÁRIO (VI) = (IV – V)2 | B59: =B43-B57 -> 898,705.82 | D59: =D43-D57 -> 1,898,381.43 | E59: =E43-E57 -> 3,210,111.76
A61: RECURSOS RPPS ARRECADADOS EM EXERCÍCIOS ANTERIORES | B61: =B45 -> 2021 | D61: =D45 -> 2022 | E61: =E45 -> 2023
A62: VALOR
A64: RESERVA ORÇAMENTÁRIA DO RPPS | B64: =B61 -> 2021 | D64: =D61 -> 2022 | E64: =E61 -> 2023
A65: VALOR | B65: 1,809,240.00 | D65: 930,000.00 | E65: 1,569,500.00
A67: APORTES DE RECURSOS PARA O PLANO PREVIDENCIÁRIO DO RPPS | B67: =B64 -> 2021 | D67: =D64 -> 2022 | E67: =E64 -> 2023
A68: Plano de Amortização - Contribuição Patronal Suplementar
A69: Plano de Amortização - Aporte Periódico de Valores Predefinidos
A70: Outros Aportes para o RPPS
A71: Recursos para Cobertura de Déficit Financeiro
A73: BENS E DIREITOS DO RPPS | B73: =B67 -> 2021 | D73: =D67 -> 2022 | E73: =E67 -> 2023
A74: Caixa e Equivalentes de Caixa | B74: 488.30 | D74: =111459.63+7822.22 -> 119,281.85 | E74: =18070.81+555.1+58462.66+2556.6 -> 79,645.17
A75: Investimentos e Aplicações | B75: =18902125.18-488.3 -> 18,901,636.88 | D75: =20666413.78-D74 -> 20,547,131.93 | E75: =23857067.74-E74 -> 23,777,422.57
A76: Outro Bens e Direitos
A79: RECEITAS DA ADMINISTRAÇÃO - RPPS | B79: =C80 -> 56,603.91 | D79: =D80 -> 59,145.29 | E79: =E80 -> 78,826.26
A80: RECEITAS CORRENTES | C80: 56,603.91 | D80: 59,145.29 | E80: 78,826.26
A81: TOTAL DAS RECEITAS DA ADMINISTRAÇÃO RPPS - (XII)
A83: DESPESAS DA ADMINISTRAÇÃO - RPPS | B83: =C84 -> 50,479.05 | D83: =D84 -> 42,196.71 | E83: =E84 -> 49,251.48
A84: DESPESAS CORRENTES (XIII) | C84: 50,479.05 | D84: 42,196.71 | E84: =1634684.66-E57 -> 49,251.48
A85: DESPESAS DE CAPITAL (XIV)
A86: TOTAL DAS DESPESAS DA ADMINISTRAÇÃO RPPS (XV) = (XIII + XIV) | B86: =C84 -> 50,479.05 | D86: =D83 -> 42,196.71 | E86: =E83 -> 49,251.48
A88: RESULTADO DA ADMINISTRAÇÃO RPPS (XVI) = (XII – XV) | B88: =C80-C84 -> 6,124.86 | D88: =D79-D83 -> 16,948.58 | E88: =E79-E83 -> 29,574.78
A90: PROJEÇÃO ATUARIAL DO REGIME PRÓPRIO DE PREVIDÊNCIA DOS SERVIDORES
A92: PLANO PREVIDENCIÁRIO
A93: EXERCÍCIO | B93: Receitas Previdenciárias | C93: Despesas Previdenciárias | D93: Resultado Previdenciário | E93: Saldo Financeiro do Exercício
B94: (a) | C94: (b) | D94: (c) = (a-b) | E94: (d) = (d Exercício Anterior) + (c)
A95: 2024 | B95: 2,118,096.23 | C95: 1,671,095.07 | D95: =B95-C95 -> 447,001.16 | E95: 24,201,854.42
A96: 2025 | B96: 2,207,706.64 | C96: 1,667,071.49 | D96: =B96-C96 -> 540,635.15 | E96: =E95+D96 -> 24,742,489.57
A97: 2026 | B97: 2,132,652.39 | C97: 1,589,899.42 | D97: 542,752.97 | E97: =E96+D97 -> 25,285,242.54
A98: 2027 | B98: 2,053,813.53 | C98: 1,614,426.93 | D98: 439,386.60 | E98: 25,724,629.14
A99: 2028 | B99: 1,745,161.77 | C99: 1,610,855.76 | D99: 134,306.01 | E99: 25,858,935.15
A100: 2029 | B100: 1,668,327.35 | C100: 1,774,579.35 | D100: (106,252.00) | E100: 25,752,683.15
A101: 2030 | B101: 1,593,640.21 | C101: 1,793,837.50 | D101: (200,197.29) | E101: 25,552,485.86
A102: 2031 | B102: 1,520,863.61 | C102: 1,808,699.15 | D102: (287,835.54) | E102: 25,264,650.32
A103: 2032 | B103: 1,444,219.44 | C103: 1,806,936.24 | D103: (362,716.80) | E103: 24,901,933.52
A104: 2033 | B104: 1,372,347.71 | C104: 1,907,392.81 | D104: (535,045.10) | E104: 24,366,888.42
A105: 2034 | B105: 1,305,400.37 | C105: 2,006,135.03 | D105: (700,734.66) | E105: 23,666,153.76
A106: 2035 | B106: 1,219,834.12 | C106: 2,114,617.14 | D106: (894,783.02) | E106: 22,771,370.74
A107: 2036 | B107: 1,145,597.06 | C107: 2,146,760.62 | D107: (1,001,163.56) | E107: 21,770,207.18
A108: 2037 | B108: 1,076,932.19 | C108: 2,141,419.14 | D108: (1,064,486.95) | E108: 20,705,720.23
A109: 2038 | B109: 1,034,350.67 | C109: 2,012,333.27 | D109: (977,982.60) | E109: 19,727,737.63
A110: 2039 | B110: 980,899.44 | C110: 1,923,667.30 | D110: (942,767.86) | E110: 18,784,969.77
A111: 2040 | B111: 941,728.91 | C111: 1,805,473.11 | D111: (863,744.20) | E111: 17,921,225.57
A112: 2041 | B112: 892059.79 | C112: 1,732,398.25 | D112: =C111-C112 -> 73,074.86 | E112: 17,994,300.43
A113: 2042 | B113: 855,973.40 | C113: 1,623,698.01 | D113: (767,724.61) | E113: 17,226,575.82
A114: 2043 | B114: 806,316.68 | C114: 1,629,674.13 | D114: (823,357.45) | E114: 16,403,218.37
A115: 2044 | B115: 765,001.58 | C115: 1,576,554.64 | D115: (811,553.06) | E115: 15,591,665.31
A116: 2045 | B116: 733,154.31 | C116: 1,473,401.70 | D116: (740,247.39) | E116: 14,851,417.92
A117: 2046 | B117: 699,530.35 | C117: 1,388,708.07 | D117: (689,177.72) | E117: 14,162,240.20
A118: 2047 | B118: 662,439.14 | C118: 1,341,649.01 | D118: (679,209.87) | E118: 13,483,030.33
A119: 2048 | B119: 621,809.83 | C119: 1,309,297.53 | D119: (687,487.70) | E119: 12,795,542.63
A120: 2049 | B120: 569,823.54 | C120: 1,358,901.89 | D120: (789,078.35) | E120: 12,006,464.28
A121: 2050 | B121: 538,890.41 | C121: 1,285,684.75 | D121: (746,794.34) | E121: 11,259,669.94
A122: 2051 | B122: 511,826.36 | C122: 1,205,595.17 | D122: (693,768.81) | E122: 10,565,901.13
A123: 2052 | B123: 487,347.63 | C123: 1,128,825.20 | D123: (641,477.57) | E123: 9,924,423.56
A124: 2053 | B124: 462,891.39 | C124: 1,060,813.92 | D124: (597,922.53) | E124: 9,326,501.03
A125: 2054 | B125: 440,945.77 | C125: 988,784.33 | D125: (547,838.56) | E125: 8,778,662.47
A126: 2055 | B126: 414,449.01 | C126: 944,273.55 | D126: (529,824.54) | E126: 8,248,837.93
A127: 2056 | B127: 389,408.74 | C127: 898,343.12 | D127: (508,934.38) | E127: 7,739,903.55
A128: 2057 | B128: 372,655.22 | C128: 826,025.40 | D128: (453,370.18) | E128: 7,286,533.37
A129: 2058 | B129: 356,867.51 | C129: 758,956.52 | D129: (402,089.01) | E129: 6,884,444.36
A130: 2059 | B130: 61,534.19 | C130: 695,189.06 | D130: (633,654.87) | E130: 6,250,789.49
A131: 2060 | B131: 55,256.72 | C131: 634,773.75 | D131: (579,517.03) | E131: 5,671,272.46
A132: 2061 | B132: 49,451.88 | C132: 578,187.44 | D132: (528,735.56) | E132: 5,142,536.90
A133: 2062 | B133: 44,103.24 | C133: 525,214.83 | D133: (481,111.59) | E133: 4,661,425.31
A134: 2063 | B134: 39,204.03 | C134: 475,831.02 | D134: (436,626.99) | E134: 4,224,798.32
A135: 2064 | B135: 34,716.75 | C135: 429,852.73 | D135: (395,135.98) | E135: 3,829,662.34
A136: 2065 | B136: 30,627.15 | C136: 387,220.80 | D136: (356,593.65) | E136: 3,473,068.69
A137: 2066 | B137: 26,919.53 | C137: 347,860.76 | D137: (320,941.23) | E137: 3,152,127.46
A138: 2067 | B138: 23,578.30 | C138: 311,651.40 | D138: (288,073.10) | E138: 2,864,054.36
A139: 2068 | B139: 20,568.99 | C139: 278,406.41 | D139: (257,837.42) | E139: 2,606,216.94
A140: 2069 | B140: 17,866.80 | C140: 247,959.58 | D140: (230,092.78) | E140: 2,376,124.16
A141: 2070 | B141: 15,446.72 | C141: 220,074.04 | D141: (204,627.32) | E141: 2,171,496.84
A142: 2071 | B142: 13,285.81 | C142: 194,565.06 | D142: (181,279.25) | E142: 1,990,217.59
A143: 2072 | B143: 11,363.63 | C143: 171,276.79 | D143: (159,913.16) | E143: 1,830,304.43
A144: 2073 | B144: 9,663.17 | C144: 150,091.44 | D144: (140,428.27) | E144: 1,689,876.16
A145: 2074 | B145: 8,162.89 | C145: 130,857.41 | D145: (122,694.52) | E145: 1,567,181.64
A146: 2075 | B146: 6,847.29 | C146: 113,463.50 | D146: (106,616.21) | E146: 1,460,565.43
A147: 2076 | B147: 5,706.58 | C147: 97,832.01 | D147: (92,125.43) | E147: 1,368,440.00
A148: 2077 | B148: 4,719.84 | C148: 83,842.27 | D148: (79,122.43) | E148: 1,289,317.57
A149: 2078 | B149: 3,872.57 | C149: 71,389.82 | D149: (67,517.25) | E149: 1,221,800.32
A150: 2079 | B150: 3,154.28 | C150: 60,417.76 | D150: (57,263.48) | E150: 1,164,536.84
A151: 2080 | B151: 2,549.89 | C151: 50,823.98 | D151: (48,274.09) | E151: 1,116,262.75
A152: 2081 | B152: 2,045.68 | C152: 42,495.90 | D152: (40,450.22) | E152: 1,075,812.53
A153: 2082 | B153: 1,631.08 | C153: 35,327.19 | D153: (33,696.11) | E153: 1,042,116.42
A154: 2083 | B154: 1,291.50 | C154: 29,184.30 | D154: (27,892.80) | E154: 1,014,223.62
A155: 2084 | B155: 1,013.15 | C155: 23,910.98 | D155: (22,897.83) | E155: 991,325.79
A156: 2085 | B156: 785.73 | C156: 19,389.05 | D156: (18,603.32) | E156: 972,722.47
A157: 2086 | B157: 600.90 | C157: 15,533.31 | D157: (14,932.41) | E157: 957,790.06
A158: 2087 | B158: 451.97 | C158: 12,270.18 | D158: (11,818.21) | E158: 945,971.85
A159: 2088 | B159: 333.44 | C159: 9,530.85 | D159: (9,197.41) | E159: 936,774.44
A160: 2089 | B160: 240.57 | C160: 7,258.44 | D160: =B160-C160 -> (7,017.87) | E160: 929,756.57
A161: 2090 | B161: 168.99 | C161: 5,398.70 | D161: (5,229.71) | E161: =E160+D161 -> 924,526.86
A162: 2091 | B162: 114.95 | C162: 3,904.36 | D162: (3,789.41) | E162: 920,737.45
A163: 2092 | B163: 75.11 | C163: 2,732.96 | D163: (2,657.85) | E163: 918,079.60
A164: 2093 | B164: 46.65 | C164: 1,843.98 | D164: (1,797.33) | E164: 916,282.27
A165: 2094 | B165: 27.30 | C165: 1,194.68 | D165: (1,167.38) | E165: 915,114.89
A166: 2095 | B166: 14.89 | C166: 741.16 | D166: (726.27) | E166: 914,388.62
A167: 2096 | B167: 7.43 | C167: 441.51 | D167: (434.08) | E167: 913,954.54
A168: 2097 | B168: 3.37 | C168: 255.22 | D168: (251.85) | E168: 913,702.69
A169: 2098 | B169: 1.49 | C169: 144.52 | D169: (143.03) | E169: 913,559.66
A176: Fonte; Balancete da Receita, despesa e Cálculo atuarial elaborado pela Lumens
A177: NOTA:
A178: 1 Como a Portaria MTP 1.467/2022 determina que os recursos provenientes desses aportes devem permanecer aplicados, no mínimo, por 5 (cinco) anos, essa receita não deverá compor o total das receitas previdenciárias do período de apuração.
A179: 2 O resultado previdenciário poderá ser apresentada por meio da diferença entre previsão da receita e a dotação da despesa e entre a receita realizada e a despesa liquidada (do 1º ao 5º bimestre) e a despesa empenhada (no 6º bimestre).

Sheet Dem-7-Renúnci
A1: =Parâmetros!A7 -> Município de : NOVA PÁDUA
A2: LEI DE DIRETRIZES ORÇAMENTÁRIAS
A3: ANEXO DE METAS FISCAIS
A4: ESTIMATIVA E COMPENSAÇÃO DA RENÚNCIA DE RECEITA
A5: EXERCÍCIO DE 2025
A7: AMF - Demonstrativo 7 (LRF, art. 4°, § 2°, inciso V) | G7: R$ 1.00
A8: TRIBUTO | B8: MODALIDADE | C8: SETORES/ PROGRAMAS/ BENEFICIÁRIO | D8: RENÚNCIA DE RECEITA PREVISTA | G8: COMPENSAÇÃO
D10: =Parâmetros!E10 -> 2025 | E10: =D10+1 -> 2026 | F10: =E10+1 -> 2027
A11: IPTU | B11: Desconto pagamento a vista | C11: Contribuintes que optarem pelo pagamento à vista | D11: 51,900.00 | E11: =D11*(1+B22) -> 53,976.00 | F11: =E11*(1+B23) -> 56,135.04 | G11: Vide Obsevação
A12: Taxa coleta lixo | B12: Desconto pagamento a vista | C12: Contribuintes que optarem pelo pagamento à vista | D12: 4,671.00 | E12: =D12*(1+B22) -> 4,857.84 | F12: =E12*(1+B23) -> 5,052.15
E13: =D13*(1+B22) -> 0 | F13: =E13*(1+B23) -> 0 | G13: abaixo
E14: =D14*(1+B22) -> 0 | F14: =E14*(1+B23) -> 0
E15: =D15*(1+B22) -> 0 | F15: =E15*(1+B23) -> 0
E16: =D16*(1+B22) -> 0 | F16: =E16*(1+B23) -> 0
E17: =D17*(1+B22) -> 0 | F17: =E17*(1+B23) -> 0
A18: TOTAL | D18: =SUM(D11:D17) -> 56,571.00 | E18: =SUM(E11:E17) -> 58,833.84 | F18: =SUM(F11:F17) -> 61,187.19 | G18: -
A19: Fonte: balancete receita
A20: Nota 1: Os valores da renúncia para 2024 foram previstos de acordo com informações da Administração Tributária do Poder Executivo.
A21: 2 - Os valores da renúncia projetados para 2025 e 2026, foram calculados a partir dos valores de 2024 aplicando-se, sobre eles, as projeções de inflação para os referidos exercícios a saber:
A22: Inflação para 2026: | B22: =Parâmetros!F11 -> 4.00%
A23: Inflação para 2027: | B23: =Parâmetros!G11 -> 4.00%

Sheet Dem-8-Docc
A1: =Parâmetros!A7 -> Município de : NOVA PÁDUA
A2: LEI DE DIRETRIZES ORÇAMENTÁRIAS
A3: ANEXO DE METAS FISCAIS
A4: MARGEM DE EXPANSÃO DAS DESPESAS OBRIGATÓRIAS DE CARÁTER CONTINUADO
A5: EXERCÍCIO DE 2025
A7: AMF - Demonstrativo 8 (LRF, art. 4°, § 2°, inciso V) | B7: R$ 1.00
A8: EVENTO | B8: Valor Previsto 2025
A9: Aumento Permanente da Receita | B9: =(B10+B11) -> (1,482,529.20)
A10: Decorrente de Receitas Tributárias | B10: =(Projeções!H9/(1+Parâmetros!E11))-(Projeções!G9*(1+Parâmetros!D11)) -> 34,779.56
A11: Decorrente de Transferências Correntes | B11: =(Projeções!H37/(1+Parâmetros!E11))-(Projeções!G37*(1+Parâmetros!D11)) -> (1,517,308.75)
A12: (-) Transferências Constitucionais | B12: 0
A13: (-) Transferências ao FUNDEB | B13: =(Projeções!H103/(1+Parâmetros!E11)-(Projeções!G103*(1+Parâmetros!D11))) -> 587,950.43
A14: Saldo Final do Aumento Permanente de Receita (I) | B14: =B9+B13 -> (894,578.77)
A15: Redução Permanente de Despesa (II) | B15: 0
A16: Margem Bruta (III) = (I+II) | B16: =B14+B15 -> (894,578.77)
A17: Saldo Utilizado da Margem Bruta (IV)
A18: Novas DOCC | B18: =B19+B20 -> (597,887.78)
A19: Relativas a Pessoal e Encargos Sociais | B19: =Projeções!H116/(1+Parâmetros!E11)-(Projeções!G116*(1+Parâmetros!D11)) -> (465,671.78)
A20: Relativas a Outras Despesas Correntes | B20: =Projeções!H126/(1+Parâmetros!E11)-Projeções!G126*(1+Parâmetros!D11) -> (132,216.00)
A21: Novas DOCC geradas por PPP | B21: 0
A22: Margem Líquida de Expansão de DOCC (V) = (III-IV) | B22: =IF(B16-B17-B18<0,"SEM MARGEM",B16-B17-B18) -> SEM MARGEM
A23: Fonte: Sistema <Nome>, Unidade Responsável <Nome>, Data da emissão <dd/mmm/aaaa> e hora de emissão <hhh e mmm>

Sheet Anexo Riscos
A1: =Parâmetros!A7 -> Município de : NOVA PÁDUA
A2: LEI DE DIRETRIZES ORÇAMENTÁRIAS
A3: ANEXO DE RISCOS FISCAIS
A4: DEMONSTRATIVO DE RISCOS FISCAIS E PROVIDÊNCIAS
A5: EXERCÍCIO DE 2025
A7: ARF (LRF, art 4o, § 3o) | C7: R$ 1.00
A8: PASSIVOS CONTINGENTES | C8: PROVIDÊNCIAS
A9: Descrição | B9: Valor | C9: Descrição | D9: Valor
A10: Demandas Judiciais | B10: 70,000.00 | C10: Abertura e créditos mediante utilização da reserva de contingência | D10: 70,000.00
A11: Dívidas em Processo de Reconhecimento
A12: Avais e Garantias Concedidas
A13: Assunção de Passivos
A14: Assistências Diversas | B14: 50,000.00 | C14: Abertura de creditos adicionais a partir da reserva de contingência | D14: 50,000.00
A15: Outros Passivos Contingentes | B15: 30,000.00 | C15: Abertura de creditos adicionais a partir da reserva de contingência | D15: 30,000.00
A16: SUBTOTAL | B16: =SUM(B10:B15) -> 150,000.00 | C16: SUBTOTAL | D16: =SUM(D10:D15) -> 150,000.00
A18: DEMAIS RISCOS FISCAIS PASSIVOS | C18: PROVIDÊNCIAS
A19: Descrição | B19: Valor | C19: Descrição | D19: Valor
A20: Frustração de Arrecadação | B20: 30,000.00 | C20: Limitação de empenho | D20: 30,000.00
A21: Restituição de Tributos a Maior
A22: Discrepância de Projeções:
A23: Outros Riscos Fiscais
A24: SUBTOTAL | C24: SUBTOTAL | D24: =SUM(D20:D23) -> 30,000.00
A25: TOTAL | B25: =B16+B24 -> 150,000.00 | C25: TOTAL | D25: =D16+D24 -> 180,000.00

Sheet Anexo IV - Cons do Patrimônio
A1: =Parâmetros!A7 -> Município de : NOVA PÁDUA
A3: LEI DE DIRETRIZES ORÇAMENTÁRIAS - 2025
A4: ANEXO IV
A5: RELATÓRIO SOBRE PROJETOS EM EXECUÇÃO E A EXECUTAR E DESPESAS COM CONSERVAÇÃO DO PATRIMÔNIO PÚBLICO
A6: (Art. 45 da LRF)
E7: EXECUÇÃO % | H7: RECURSOS PRIORIZADOS PARA 2025
A8: IDENTIFICAÇÃO DAS AÇÕES | C8: INÍCIO DA EXECUÇÃO | D8: VALOR DO PROJETO | E8: ATÉ EXERC ANTERIOR - 2023 | F8: NO EXERCÍCIO DE 2024 | G8: A EXECUTAR EM 2025 | H8: PROJETOS EM EXECUÇÃO | I8: CONSERVAÇÃO DO PATRIMÔNIO | L8: NOVOS PROJETOS
A10: Pavimentação Asfaltica
A11: Centro Cultural
A17: Total dos Recursos a Priorizar na LOA | H17: =SUM(H10:H16) -> 0 | I17: 0 | L17: =SUM(L10:L16) -> 0
